Workbook

Sheet טיימר עבודות
N2: מתאריך: | O2: עד תאריך: | Q2: שם העבודה | R2: שעות | S2: שכר | T2: אחוזים מהיעד | U2: יעד שכר
J3: =IF(AO10=1,$AO$18,$AO$19) -> ü | N3: 2024-01-07 | O3: 2024-01-07 | Q3: העורך התורני | R3: =IF(SUMIFS(שעות_עבודה7[שעות],שעות_עבודה7[תאריך], ">="&N3,שעות_עבודה7[תאריך], "<="&O3,שעות_עבודה7[שם העבודה],Q3)=0,"", SUMIFS(שעות_עבודה7[שעות],שעות_עבודה7[תאריך], ">="&N3,שעות_עבודה7[תאריך], "<="&O3,שעות_עבודה7[שם העבודה],Q3)) -> 0.1699074074 | S3: =IF(SUMIFS(J9:J208,שעות_עבודה7[תאריך], ">="&N3,שעות_עבודה7[תאריך], "<="&O3,שעות_עבודה7[שם העבודה],Q3)=0,"", SUMIFS(J9:J208,שעות_עבודה7[תאריך], ">="&N3,שעות_עבודה7[תאריך], "<="&O3,שעות_עבודה7[שם העבודה],Q3)) -> 203.8888889 | T3: =IFERROR('טיימר עבודות'!$S3/'טיימר עבודות'!$U3,"") -> 0.3398148148 | U3: 600
N4: 2024-01-01 | O4: 2024-01-07 | Q4: המאיר לדרים | R4: =IF(SUMIFS(שעות_עבודה7[שעות],שעות_עבודה7[תאריך], ">="&N4,שעות_עבודה7[תאריך], "<="&O4,שעות_עבודה7[שם העבודה],Q4)=0,"", SUMIFS(שעות_עבודה7[שעות],שעות_עבודה7[תאריך], ">="&N4,שעות_עבודה7[תאריך], "<="&O4,שעות_עבודה7[שם העבודה],Q4)) -> 0.2094675926 | S4: =IF(SUMIFS(J9:J208,שעות_עבודה7[תאריך], ">="&N4,שעות_עבודה7[תאריך], "<="&O4,שעות_עבודה7[שם העבודה],Q4)=0,"", SUMIFS(J9:J208,שעות_עבודה7[תאריך], ">="&N4,שעות_עבודה7[תאריך], "<="&O4,שעות_עבודה7[שם העבודה],Q4)) -> 301.6333333 | T4: =IFERROR('טיימר עבודות'!$S4/'טיימר עבודות'!$U4,"") -> 0.6032666667 | U4: 500
J5: =IF(הקלקה=1,$AO$18,$AO$19) -> ü | N5: היום הנוכחי | Q5: כל העבודות | R5: =IF(SUMIFS(שעות_עבודה7[שעות],שעות_עבודה7[תאריך],TODAY())=0,"",SUMIFS(שעות_עבודה7[שעות],שעות_עבודה7[תאריך],TODAY())) -> 0.379375 | S5: =IF(SUMIFS(J9:J208,שעות_עבודה7[תאריך],TODAY())=0,"", SUMIFS(J9:J208,שעות_עבודה7[תאריך],TODAY())) -> 505.5222222 | T5: =IFERROR('טיימר עבודות'!$S5/'טיימר עבודות'!$U5,"") -> 1.685074074 | U5: 300
N6: כל התאריכים | Q6: כל העבודות | R6: =IF(SUM(שעות_עבודה7[שעות])=0,"",SUM(שעות_עבודה7[שעות])) -> 0.7689930556 | S6: =IF(SUM(J9:J208)=0,"",SUM(J9:J208)) -> 876.0583333 | T6: =IFERROR('טיימר עבודות'!$S6/'טיימר עבודות'!$U6,"") -> 0.4380291667 | U6: 2000
C8: תאריך | D8: שם העבודה | E8: התחלה | F8: סיום | G8: הוספת שעות | H8: הפחתת שעות | I8: שעות | J8: השכר | L8: הערות | N8: שמות העבודות | P8: שכר לשעה | R8: שעות העבודה | S8: השכר לעבודה | T8: הערות
B9: =IF(שעות_עבודה7[[#This Row],[תאריך]]="","",ROW(A1)) -> 1 | C9: 2024-01-04 | D9: הבית לעורך | E9: 08:49:19 | F9: 10:49:21 | G9: 05:06:00 | I9: =IFERROR(IF(שעות_עבודה7[[#This Row],[סיום]]="","",שעות_עבודה7[[#This Row],[סיום]]-שעות_עבודה7[[#This Row],[התחלה]]+שעות_עבודה7[[#This Row],[הוספת שעות]]-שעות_עבודה7[[#This Row],[הפחתת שעות]]+(שעות_עבודה7[[#This Row],[סיום]]<שעות_עבודה7[[#This Row],[התחלה]])),"") -> 0.2958564815 | J9: =IF(שעות_עבודה7[[#This Row],[שעות]]="","", IF(SUMPRODUCT((שעות_עבודה7[[#This Row],[שם העבודה]]=$N$9:$O$28)*שעות_עבודה7[[#This Row],[שעות]]*($P$9:$Q$28*24))=0,"", SUMPRODUCT((שעות_עבודה7[[#This Row],[שם העבודה]]=$N$9:$O$28)*שעות_עבודה7[[#This Row],[שעות]]*($P$9:$Q$28*24)))) -> 213.0166667 | N9: הבית לעורך | P9: 30 | R9: =IF(N9="","", IFERROR(IF(SUMIFS(שעות_עבודה7[שעות],שעות_עבודה7[שם העבודה],N9)=0,"",SUMIFS(שעות_עבודה7[שעות],שעות_עבודה7[שם העבודה],N9)),"")) -> 0.2958564815 | S9: =IF(OR(P9="",R9=""),"", IF(R9*P9*24=0,"",R9*P9*24)) -> 213.0166667 | AO9: שמירה אוטומטית1=שמור, 0=אל תשמור
B10: =IF(שעות_עבודה7[[#This Row],[תאריך]]="","",ROW(A2)) -> 2 | C10: 2024-01-05 | D10: חיים של תורה | E10: 11:49:30 | F10: 14:59:31 | H10: 00:55:00 | I10: =IFERROR(IF(שעות_עבודה7[[#This Row],[סיום]]="","",שעות_עבודה7[[#This Row],[סיום]]-שעות_עבודה7[[#This Row],[התחלה]]+שעות_עבודה7[[#This Row],[הוספת שעות]]-שעות_עבודה7[[#This Row],[הפחתת שעות]]+(שעות_עבודה7[[#This Row],[סיום]]<שעות_עבודה7[[#This Row],[התחלה]])),"") -> 0.09376157407 | J10: =IF(שעות_עבודה7[[#This Row],[שעות]]="","", IF(SUMPRODUCT((שעות_עבודה7[[#This Row],[שם העבודה]]=$N$9:$O$28)*שעות_עבודה7[[#This Row],[שעות]]*($P$9:$Q$28*24))=0,"", SUMPRODUCT((שעות_עבודה7[[#This Row],[שם העבודה]]=$N$9:$O$28)*שעות_עבודה7[[#This Row],[שעות]]*($P$9:$Q$28*24)))) -> 157.5194444 | N10: העורך התורני | P10: 50 | Q10: 50 | R10: =IF(N10="","", IFERROR(IF(SUMIFS(שעות_עבודה7[שעות],שעות_עבודה7[שם העבודה],N10)=0,"",SUMIFS(שעות_עבודה7[שעות],שעות_עבודה7[שם העבודה],N10)),"")) -> 0.1699074074 | S10: =IF(OR(P10="",R10=""),"", IF(R10*P10*24=0,"",R10*P10*24)) -> 203.8888889 | AO10: 1
B11: =IF(שעות_עבודה7[[#This Row],[תאריך]]="","",ROW(A3)) -> 3 | C11: 2024-01-07 | D11: המאיר לדרים | E11: 08:49:37 | F11: 13:51:15 | I11: =IFERROR(IF(שעות_עבודה7[[#This Row],[סיום]]="","",שעות_עבודה7[[#This Row],[סיום]]-שעות_עבודה7[[#This Row],[התחלה]]+שעות_עבודה7[[#This Row],[הוספת שעות]]-שעות_עבודה7[[#This Row],[הפחתת שעות]]+(שעות_עבודה7[[#This Row],[סיום]]<שעות_עבודה7[[#This Row],[התחלה]])),"") -> 0.2094675926 | J11: =IF(שעות_עבודה7[[#This Row],[שעות]]="","", IF(SUMPRODUCT((שעות_עבודה7[[#This Row],[שם העבודה]]=$N$9:$O$28)*שעות_עבודה7[[#This Row],[שעות]]*($P$9:$Q$28*24))=0,"", SUMPRODUCT((שעות_עבודה7[[#This Row],[שם העבודה]]=$N$9:$O$28)*שעות_עבודה7[[#This Row],[שעות]]*($P$9:$Q$28*24)))) -> 301.6333333 | N11: חיים של תורה | P11: 70 | R11: =IF(N11="","", IFERROR(IF(SUMIFS(שעות_עבודה7[שעות],שעות_עבודה7[שם העבודה],N11)=0,"",SUMIFS(שעות_עבודה7[שעות],שעות_עבודה7[שם העבודה],N11)),"")) -> 0.09376157407 | S11: 157.5194444 | AO11: עבודה נבחרת
B12: =IF(שעות_עבודה7[[#This Row],[תאריך]]="","",ROW(A4)) -> 4 | C12: 2024-01-07 | D12: העורך התורני | E12: 14:00:38 | F12: 15:20:18 | G12: 02:45:00 | I12: =IFERROR(IF(שעות_עבודה7[[#This Row],[סיום]]="","",שעות_עבודה7[[#This Row],[סיום]]-שעות_עבודה7[[#This Row],[התחלה]]+שעות_עבודה7[[#This Row],[הוספת שעות]]-שעות_עבודה7[[#This Row],[הפחתת שעות]]+(שעות_עבודה7[[#This Row],[סיום]]<שעות_עבודה7[[#This Row],[התחלה]])),"") -> 0.1699074074 | J12: =IF(שעות_עבודה7[[#This Row],[שעות]]="","", IF(SUMPRODUCT((שעות_עבודה7[[#This Row],[שם העבודה]]=$N$9:$O$28)*שעות_עבודה7[[#This Row],[שעות]]*($P$9:$Q$28*24))=0,"", SUMPRODUCT((שעות_עבודה7[[#This Row],[שם העבודה]]=$N$9:$O$28)*שעות_עבודה7[[#This Row],[שעות]]*($P$9:$Q$28*24)))) -> 203.8888889 | N12: המאיר לדרים | P12: 60 | Q12: 50 | R12: =IF(N12="","", IFERROR(IF(SUMIFS(שעות_עבודה7[שעות],שעות_עבודה7[שם העבודה],N12)=0,"",SUMIFS(שעות_עבודה7[שעות],שעות_עבודה7[שם העבודה],N12)),"")) -> 0.2094675926 | S12: 301.6333333 | AO12: 2
B13: =IF(שעות_עבודה7[[#This Row],[תאריך]]="","",ROW(A5)) ->  | I13: =IFERROR(IF(שעות_עבודה7[[#This Row],[סיום]]="","",שעות_עבודה7[[#This Row],[סיום]]-שעות_עבודה7[[#This Row],[התחלה]]+שעות_עבודה7[[#This Row],[הוספת שעות]]-שעות_עבודה7[[#This Row],[הפחתת שעות]]+(שעות_עבודה7[[#This Row],[סיום]]<שעות_עבודה7[[#This Row],[התחלה]])),"") ->  | J13: =IF(שעות_עבודה7[[#This Row],[שעות]]="","", IF(SUMPRODUCT((שעות_עבודה7[[#This Row],[שם העבודה]]=$N$9:$O$28)*שעות_עבודה7[[#This Row],[שעות]]*($P$9:$Q$28*24))=0,"", SUMPRODUCT((שעות_עבודה7[[#This Row],[שם העבודה]]=$N$9:$O$28)*שעות_עבודה7[[#This Row],[שעות]]*($P$9:$Q$28*24)))) ->  | N13: עריכת מהדו"ת | P13: 110 | R13: =IF(N13="","", IFERROR(IF(SUMIFS(שעות_עבודה7[שעות],שעות_עבודה7[שם העבודה],N13)=0,"",SUMIFS(שעות_עבודה7[שעות],שעות_עבודה7[שם העבודה],N13)),"")) ->  | AO13: שם עבודה נבחרת
B14: =IF(שעות_עבודה7[[#This Row],[תאריך]]="","",ROW(A6)) ->  | I14: =IFERROR(IF(שעות_עבודה7[[#This Row],[סיום]]="","",שעות_עבודה7[[#This Row],[סיום]]-שעות_עבודה7[[#This Row],[התחלה]]+שעות_עבודה7[[#This Row],[הוספת שעות]]-שעות_עבודה7[[#This Row],[הפחתת שעות]]+(שעות_עבודה7[[#This Row],[סיום]]<שעות_עבודה7[[#This Row],[התחלה]])),"") ->  | J14: =IF(שעות_עבודה7[[#This Row],[שעות]]="","", IF(SUMPRODUCT((שעות_עבודה7[[#This Row],[שם העבודה]]=$N$9:$O$28)*שעות_עבודה7[[#This Row],[שעות]]*($P$9:$Q$28*24))=0,"", SUMPRODUCT((שעות_עבודה7[[#This Row],[שם העבודה]]=$N$9:$O$28)*שעות_עבודה7[[#This Row],[שעות]]*($P$9:$Q$28*24)))) ->  | N14: עיון במקורות | P14: 70 | Q14: 50 | R14: =IF(N14="","", IFERROR(IF(SUMIFS(שעות_עבודה7[שעות],שעות_עבודה7[שם העבודה],N14)=0,"",SUMIFS(שעות_עבודה7[שעות],שעות_עבודה7[שם העבודה],N14)),"")) ->  | AO14: =INDEX('טיימר עבודות'!$N$9:$N$28,AO12) -> העורך התורני
B15: =IF(שעות_עבודה7[[#This Row],[תאריך]]="","",ROW(A7)) ->  | I15: =IFERROR(IF(שעות_עבודה7[[#This Row],[סיום]]="","",שעות_עבודה7[[#This Row],[סיום]]-שעות_עבודה7[[#This Row],[התחלה]]+שעות_עבודה7[[#This Row],[הוספת שעות]]-שעות_עבודה7[[#This Row],[הפחתת שעות]]+(שעות_עבודה7[[#This Row],[סיום]]<שעות_עבודה7[[#This Row],[התחלה]])),"") ->  | J15: =IF(שעות_עבודה7[[#This Row],[שעות]]="","", IF(SUMPRODUCT((שעות_עבודה7[[#This Row],[שם העבודה]]=$N$9:$O$28)*שעות_עבודה7[[#This Row],[שעות]]*($P$9:$Q$28*24))=0,"", SUMPRODUCT((שעות_עבודה7[[#This Row],[שם העבודה]]=$N$9:$O$28)*שעות_עבודה7[[#This Row],[שעות]]*($P$9:$Q$28*24)))) ->  | R15: =IF(N15="","", IFERROR(IF(SUMIFS(שעות_עבודה7[שעות],שעות_עבודה7[שם העבודה],N15)=0,"",SUMIFS(שעות_עבודה7[שעות],שעות_עבודה7[שם העבודה],N15)),"")) ->  | AO15: שכר לעבודה נבחרת
B16: =IF(שעות_עבודה7[[#This Row],[תאריך]]="","",ROW(A8)) ->  | I16: =IFERROR(IF(שעות_עבודה7[[#This Row],[סיום]]="","",שעות_עבודה7[[#This Row],[סיום]]-שעות_עבודה7[[#This Row],[התחלה]]+שעות_עבודה7[[#This Row],[הוספת שעות]]-שעות_עבודה7[[#This Row],[הפחתת שעות]]+(שעות_עבודה7[[#This Row],[סיום]]<שעות_עבודה7[[#This Row],[התחלה]])),"") ->  | J16: =IF(שעות_עבודה7[[#This Row],[שעות]]="","", IF(SUMPRODUCT((שעות_עבודה7[[#This Row],[שם העבודה]]=$N$9:$O$28)*שעות_עבודה7[[#This Row],[שעות]]*($P$9:$Q$28*24))=0,"", SUMPRODUCT((שעות_עבודה7[[#This Row],[שם העבודה]]=$N$9:$O$28)*שעות_עבודה7[[#This Row],[שעות]]*($P$9:$Q$28*24)))) ->  | R16: =IF(N16="","", IFERROR(IF(SUMIFS(שעות_עבודה7[שעות],שעות_עבודה7[שם העבודה],N16)=0,"",SUMIFS(שעות_עבודה7[שעות],שעות_עבודה7[שם העבודה],N16)),"")) ->  | AO16: =VLOOKUP(שם_העבודה,'טיימר עבודות'!$N$9:$S$28,3) -> 50
B17: =IF(שעות_עבודה7[[#This Row],[תאריך]]="","",ROW(A9)) ->  | I17: =IFERROR(IF(שעות_עבודה7[[#This Row],[סיום]]="","",שעות_עבודה7[[#This Row],[סיום]]-שעות_עבודה7[[#This Row],[התחלה]]+שעות_עבודה7[[#This Row],[הוספת שעות]]-שעות_עבודה7[[#This Row],[הפחתת שעות]]+(שעות_עבודה7[[#This Row],[סיום]]<שעות_עבודה7[[#This Row],[התחלה]])),"") ->  | J17: =IF(שעות_עבודה7[[#This Row],[שעות]]="","", IF(SUMPRODUCT((שעות_עבודה7[[#This Row],[שם העבודה]]=$N$9:$O$28)*שעות_עבודה7[[#This Row],[שעות]]*($P$9:$Q$28*24))=0,"", SUMPRODUCT((שעות_עבודה7[[#This Row],[שם העבודה]]=$N$9:$O$28)*שעות_עבודה7[[#This Row],[שעות]]*($P$9:$Q$28*24)))) ->  | R17: =IF(N17="","", IFERROR(IF(SUMIFS(שעות_עבודה7[שעות],שעות_עבודה7[שם העבודה],N17)=0,"",SUMIFS(שעות_עבודה7[שעות],שעות_עבודה7[שם העבודה],N17)),"")) ->  | AO17: סימנים
B18: =IF(שעות_עבודה7[[#This Row],[תאריך]]="","",ROW(A10)) ->  | I18: =IFERROR(IF(שעות_עבודה7[[#This Row],[סיום]]="","",שעות_עבודה7[[#This Row],[סיום]]-שעות_עבודה7[[#This Row],[התחלה]]+שעות_עבודה7[[#This Row],[הוספת שעות]]-שעות_עבודה7[[#This Row],[הפחתת שעות]]+(שעות_עבודה7[[#This Row],[סיום]]<שעות_עבודה7[[#This Row],[התחלה]])),"") ->  | J18: =IF(שעות_עבודה7[[#This Row],[שעות]]="","", IF(SUMPRODUCT((שעות_עבודה7[[#This Row],[שם העבודה]]=$N$9:$O$28)*שעות_עבודה7[[#This Row],[שעות]]*($P$9:$Q$28*24))=0,"", SUMPRODUCT((שעות_עבודה7[[#This Row],[שם העבודה]]=$N$9:$O$28)*שעות_עבודה7[[#This Row],[שעות]]*($P$9:$Q$28*24)))) ->  | R18: =IF(N18="","", IFERROR(IF(SUMIFS(שעות_עבודה7[שעות],שעות_עבודה7[שם העבודה],N18)=0,"",SUMIFS(שעות_עבודה7[שעות],שעות_עבודה7[שם העבודה],N18)),"")) ->  | AO18: ü
B19: =IF(שעות_עבודה7[[#This Row],[תאריך]]="","",ROW(A11)) ->  | I19: =IFERROR(IF(שעות_עבודה7[[#This Row],[סיום]]="","",שעות_עבודה7[[#This Row],[סיום]]-שעות_עבודה7[[#This Row],[התחלה]]+שעות_עבודה7[[#This Row],[הוספת שעות]]-שעות_עבודה7[[#This Row],[הפחתת שעות]]+(שעות_עבודה7[[#This Row],[סיום]]<שעות_עבודה7[[#This Row],[התחלה]])),"") ->  | J19: =IF(שעות_עבודה7[[#This Row],[שעות]]="","", IF(SUMPRODUCT((שעות_עבודה7[[#This Row],[שם העבודה]]=$N$9:$O$28)*שעות_עבודה7[[#This Row],[שעות]]*($P$9:$Q$28*24))=0,"", SUMPRODUCT((שעות_עבודה7[[#This Row],[שם העבודה]]=$N$9:$O$28)*שעות_עבודה7[[#This Row],[שעות]]*($P$9:$Q$28*24)))) ->  | R19: =IF(N19="","", IFERROR(IF(SUMIFS(שעות_עבודה7[שעות],שעות_עבודה7[שם העבודה],N19)=0,"",SUMIFS(שעות_עבודה7[שעות],שעות_עבודה7[שם העבודה],N19)),"")) ->  | AO19: û
B20: =IF(שעות_עבודה7[[#This Row],[תאריך]]="","",ROW(A12)) ->  | I20: =IFERROR(IF(שעות_עבודה7[[#This Row],[סיום]]="","",שעות_עבודה7[[#This Row],[סיום]]-שעות_עבודה7[[#This Row],[התחלה]]+שעות_עבודה7[[#This Row],[הוספת שעות]]-שעות_עבודה7[[#This Row],[הפחתת שעות]]+(שעות_עבודה7[[#This Row],[סיום]]<שעות_עבודה7[[#This Row],[התחלה]])),"") ->  | J20: =IF(שעות_עבודה7[[#This Row],[שעות]]="","", IF(SUMPRODUCT((שעות_עבודה7[[#This Row],[שם העבודה]]=$N$9:$O$28)*שעות_עבודה7[[#This Row],[שעות]]*($P$9:$Q$28*24))=0,"", SUMPRODUCT((שעות_עבודה7[[#This Row],[שם העבודה]]=$N$9:$O$28)*שעות_עבודה7[[#This Row],[שעות]]*($P$9:$Q$28*24)))) ->  | R20: =IF(N20="","", IFERROR(IF(SUMIFS(שעות_עבודה7[שעות],שעות_עבודה7[שם העבודה],N20)=0,"",SUMIFS(שעות_עבודה7[שעות],שעות_עבודה7[שם העבודה],N20)),"")) ->  | AO20: הקלקה כפולה
B21: =IF(שעות_עבודה7[[#This Row],[תאריך]]="","",ROW(A13)) ->  | I21: =IFERROR(IF(שעות_עבודה7[[#This Row],[סיום]]="","",שעות_עבודה7[[#This Row],[סיום]]-שעות_עבודה7[[#This Row],[התחלה]]+שעות_עבודה7[[#This Row],[הוספת שעות]]-שעות_עבודה7[[#This Row],[הפחתת שעות]]+(שעות_עבודה7[[#This Row],[סיום]]<שעות_עבודה7[[#This Row],[התחלה]])),"") ->  | J21: =IF(שעות_עבודה7[[#This Row],[שעות]]="","", IF(SUMPRODUCT((שעות_עבודה7[[#This Row],[שם העבודה]]=$N$9:$O$28)*שעות_עבודה7[[#This Row],[שעות]]*($P$9:$Q$28*24))=0,"", SUMPRODUCT((שעות_עבודה7[[#This Row],[שם העבודה]]=$N$9:$O$28)*שעות_עבודה7[[#This Row],[שעות]]*($P$9:$Q$28*24)))) ->  | R21: =IF(N21="","", IFERROR(IF(SUMIFS(שעות_עבודה7[שעות],שעות_עבודה7[שם העבודה],N21)=0,"",SUMIFS(שעות_עבודה7[שעות],שעות_עבודה7[שם העבודה],N21)),"")) ->  | AO21: 1
B22: =IF(שעות_עבודה7[[#This Row],[תאריך]]="","",ROW(A14)) ->  | I22: =IFERROR(IF(שעות_עבודה7[[#This Row],[סיום]]="","",שעות_עבודה7[[#This Row],[סיום]]-שעות_עבודה7[[#This Row],[התחלה]]+שעות_עבודה7[[#This Row],[הוספת שעות]]-שעות_עבודה7[[#This Row],[הפחתת שעות]]+(שעות_עבודה7[[#This Row],[סיום]]<שעות_עבודה7[[#This Row],[התחלה]])),"") ->  | J22: =IF(שעות_עבודה7[[#This Row],[שעות]]="","", IF(SUMPRODUCT((שעות_עבודה7[[#This Row],[שם העבודה]]=$N$9:$O$28)*שעות_עבודה7[[#This Row],[שעות]]*($P$9:$Q$28*24))=0,"", SUMPRODUCT((שעות_עבודה7[[#This Row],[שם העבודה]]=$N$9:$O$28)*שעות_עבודה7[[#This Row],[שעות]]*($P$9:$Q$28*24)))) ->  | R22: =IF(N22="","", IFERROR(IF(SUMIFS(שעות_עבודה7[שעות],שעות_עבודה7[שם העבודה],N22)=0,"",SUMIFS(שעות_עבודה7[שעות],שעות_עבודה7[שם העבודה],N22)),"")) -> 
B23: =IF(שעות_עבודה7[[#This Row],[תאריך]]="","",ROW(A15)) ->  | I23: =IFERROR(IF(שעות_עבודה7[[#This Row],[סיום]]="","",שעות_עבודה7[[#This Row],[סיום]]-שעות_עבודה7[[#This Row],[התחלה]]+שעות_עבודה7[[#This Row],[הוספת שעות]]-שעות_עבודה7[[#This Row],[הפחתת שעות]]+(שעות_עבודה7[[#This Row],[סיום]]<שעות_עבודה7[[#This Row],[התחלה]])),"") ->  | J23: =IF(שעות_עבודה7[[#This Row],[שעות]]="","", IF(SUMPRODUCT((שעות_עבודה7[[#This Row],[שם העבודה]]=$N$9:$O$28)*שעות_עבודה7[[#This Row],[שעות]]*($P$9:$Q$28*24))=0,"", SUMPRODUCT((שעות_עבודה7[[#This Row],[שם העבודה]]=$N$9:$O$28)*שעות_עבודה7[[#This Row],[שעות]]*($P$9:$Q$28*24)))) ->  | R23: =IF(N23="","", IFERROR(IF(SUMIFS(שעות_עבודה7[שעות],שעות_עבודה7[שם העבודה],N23)=0,"",SUMIFS(שעות_עבודה7[שעות],שעות_עבודה7[שם העבודה],N23)),"")) -> 
B24: =IF(שעות_עבודה7[[#This Row],[תאריך]]="","",ROW(A16)) ->  | I24: =IFERROR(IF(שעות_עבודה7[[#This Row],[סיום]]="","",שעות_עבודה7[[#This Row],[סיום]]-שעות_עבודה7[[#This Row],[התחלה]]+שעות_עבודה7[[#This Row],[הוספת שעות]]-שעות_עבודה7[[#This Row],[הפחתת שעות]]+(שעות_עבודה7[[#This Row],[סיום]]<שעות_עבודה7[[#This Row],[התחלה]])),"") ->  | J24: =IF(שעות_עבודה7[[#This Row],[שעות]]="","", IF(SUMPRODUCT((שעות_עבודה7[[#This Row],[שם העבודה]]=$N$9:$O$28)*שעות_עבודה7[[#This Row],[שעות]]*($P$9:$Q$28*24))=0,"", SUMPRODUCT((שעות_עבודה7[[#This Row],[שם העבודה]]=$N$9:$O$28)*שעות_עבודה7[[#This Row],[שעות]]*($P$9:$Q$28*24)))) ->  | R24: =IF(N24="","", IFERROR(IF(SUMIFS(שעות_עבודה7[שעות],שעות_עבודה7[שם העבודה],N24)=0,"",SUMIFS(שעות_עבודה7[שעות],שעות_עבודה7[שם העבודה],N24)),"")) -> 
B25: =IF(שעות_עבודה7[[#This Row],[תאריך]]="","",ROW(A17)) ->  | I25: =IFERROR(IF(שעות_עבודה7[[#This Row],[סיום]]="","",שעות_עבודה7[[#This Row],[סיום]]-שעות_עבודה7[[#This Row],[התחלה]]+שעות_עבודה7[[#This Row],[הוספת שעות]]-שעות_עבודה7[[#This Row],[הפחתת שעות]]+(שעות_עבודה7[[#This Row],[סיום]]<שעות_עבודה7[[#This Row],[התחלה]])),"") ->  | J25: =IF(שעות_עבודה7[[#This Row],[שעות]]="","", IF(SUMPRODUCT((שעות_עבודה7[[#This Row],[שם העבודה]]=$N$9:$O$28)*שעות_עבודה7[[#This Row],[שעות]]*($P$9:$Q$28*24))=0,"", SUMPRODUCT((שעות_עבודה7[[#This Row],[שם העבודה]]=$N$9:$O$28)*שעות_עבודה7[[#This Row],[שעות]]*($P$9:$Q$28*24)))) ->  | R25: =IF(N25="","", IFERROR(IF(SUMIFS(שעות_עבודה7[שעות],שעות_עבודה7[שם העבודה],N25)=0,"",SUMIFS(שעות_עבודה7[שעות],שעות_עבודה7[שם העבודה],N25)),"")) -> 
B26: =IF(שעות_עבודה7[[#This Row],[תאריך]]="","",ROW(A18)) ->  | I26: =IFERROR(IF(שעות_עבודה7[[#This Row],[סיום]]="","",שעות_עבודה7[[#This Row],[סיום]]-שעות_עבודה7[[#This Row],[התחלה]]+שעות_עבודה7[[#This Row],[הוספת שעות]]-שעות_עבודה7[[#This Row],[הפחתת שעות]]+(שעות_עבודה7[[#This Row],[סיום]]<שעות_עבודה7[[#This Row],[התחלה]])),"") ->  | J26: =IF(שעות_עבודה7[[#This Row],[שעות]]="","", IF(SUMPRODUCT((שעות_עבודה7[[#This Row],[שם העבודה]]=$N$9:$O$28)*שעות_עבודה7[[#This Row],[שעות]]*($P$9:$Q$28*24))=0,"", SUMPRODUCT((שעות_עבודה7[[#This Row],[שם העבודה]]=$N$9:$O$28)*שעות_עבודה7[[#This Row],[שעות]]*($P$9:$Q$28*24)))) ->  | R26: =IF(N26="","", IFERROR(IF(SUMIFS(שעות_עבודה7[שעות],שעות_עבודה7[שם העבודה],N26)=0,"",SUMIFS(שעות_עבודה7[שעות],שעות_עבודה7[שם העבודה],N26)),"")) -> 
B27: =IF(שעות_עבודה7[[#This Row],[תאריך]]="","",ROW(A19)) ->  | I27: =IFERROR(IF(שעות_עבודה7[[#This Row],[סיום]]="","",שעות_עבודה7[[#This Row],[סיום]]-שעות_עבודה7[[#This Row],[התחלה]]+שעות_עבודה7[[#This Row],[הוספת שעות]]-שעות_עבודה7[[#This Row],[הפחתת שעות]]+(שעות_עבודה7[[#This Row],[סיום]]<שעות_עבודה7[[#This Row],[התחלה]])),"") ->  | J27: =IF(שעות_עבודה7[[#This Row],[שעות]]="","", IF(SUMPRODUCT((שעות_עבודה7[[#This Row],[שם העבודה]]=$N$9:$O$28)*שעות_עבודה7[[#This Row],[שעות]]*($P$9:$Q$28*24))=0,"", SUMPRODUCT((שעות_עבודה7[[#This Row],[שם העבודה]]=$N$9:$O$28)*שעות_עבודה7[[#This Row],[שעות]]*($P$9:$Q$28*24)))) ->  | R27: =IF(N27="","", IFERROR(IF(SUMIFS(שעות_עבודה7[שעות],שעות_עבודה7[שם העבודה],N27)=0,"",SUMIFS(שעות_עבודה7[שעות],שעות_עבודה7[שם העבודה],N27)),"")) -> 
B28: =IF(שעות_עבודה7[[#This Row],[תאריך]]="","",ROW(A20)) ->  | I28: =IFERROR(IF(שעות_עבודה7[[#This Row],[סיום]]="","",שעות_עבודה7[[#This Row],[סיום]]-שעות_עבודה7[[#This Row],[התחלה]]+שעות_עבודה7[[#This Row],[הוספת שעות]]-שעות_עבודה7[[#This Row],[הפחתת שעות]]+(שעות_עבודה7[[#This Row],[סיום]]<שעות_עבודה7[[#This Row],[התחלה]])),"") ->  | J28: =IF(שעות_עבודה7[[#This Row],[שעות]]="","", IF(SUMPRODUCT((שעות_עבודה7[[#This Row],[שם העבודה]]=$N$9:$O$28)*שעות_עבודה7[[#This Row],[שעות]]*($P$9:$Q$28*24))=0,"", SUMPRODUCT((שעות_עבודה7[[#This Row],[שם העבודה]]=$N$9:$O$28)*שעות_עבודה7[[#This Row],[שעות]]*($P$9:$Q$28*24)))) ->  | R28: =IF(N28="","", IFERROR(IF(SUMIFS(שעות_עבודה7[שעות],שעות_עבודה7[שם העבודה],N28)=0,"",SUMIFS(שעות_עבודה7[שעות],שעות_עבודה7[שם העבודה],N28)),"")) -> 
B29: =IF(שעות_עבודה7[[#This Row],[תאריך]]="","",ROW(A21)) ->  | I29: =IFERROR(IF(שעות_עבודה7[[#This Row],[סיום]]="","",שעות_עבודה7[[#This Row],[סיום]]-שעות_עבודה7[[#This Row],[התחלה]]+שעות_עבודה7[[#This Row],[הוספת שעות]]-שעות_עבודה7[[#This Row],[הפחתת שעות]]+(שעות_עבודה7[[#This Row],[סיום]]<שעות_עבודה7[[#This Row],[התחלה]])),"") ->  | J29: =IF(שעות_עבודה7[[#This Row],[שעות]]="","", IF(SUMPRODUCT((שעות_עבודה7[[#This Row],[שם העבודה]]=$N$9:$O$28)*שעות_עבודה7[[#This Row],[שעות]]*($P$9:$Q$28*24))=0,"", SUMPRODUCT((שעות_עבודה7[[#This Row],[שם העבודה]]=$N$9:$O$28)*שעות_עבודה7[[#This Row],[שעות]]*($P$9:$Q$28*24)))) -> 
B30: =IF(שעות_עבודה7[[#This Row],[תאריך]]="","",ROW(A22)) ->  | I30: =IFERROR(IF(שעות_עבודה7[[#This Row],[סיום]]="","",שעות_עבודה7[[#This Row],[סיום]]-שעות_עבודה7[[#This Row],[התחלה]]+שעות_עבודה7[[#This Row],[הוספת שעות]]-שעות_עבודה7[[#This Row],[הפחתת שעות]]+(שעות_עבודה7[[#This Row],[סיום]]<שעות_עבודה7[[#This Row],[התחלה]])),"") ->  | J30: =IF(שעות_עבודה7[[#This Row],[שעות]]="","", IF(SUMPRODUCT((שעות_עבודה7[[#This Row],[שם העבודה]]=$N$9:$O$28)*שעות_עבודה7[[#This Row],[שעות]]*($P$9:$Q$28*24))=0,"", SUMPRODUCT((שעות_עבודה7[[#This Row],[שם העבודה]]=$N$9:$O$28)*שעות_עבודה7[[#This Row],[שעות]]*($P$9:$Q$28*24)))) -> 
B31: =IF(שעות_עבודה7[[#This Row],[תאריך]]="","",ROW(A23)) ->  | I31: =IFERROR(IF(שעות_עבודה7[[#This Row],[סיום]]="","",שעות_עבודה7[[#This Row],[סיום]]-שעות_עבודה7[[#This Row],[התחלה]]+שעות_עבודה7[[#This Row],[הוספת שעות]]-שעות_עבודה7[[#This Row],[הפחתת שעות]]+(שעות_עבודה7[[#This Row],[סיום]]<שעות_עבודה7[[#This Row],[התחלה]])),"") ->  | J31: =IF(שעות_עבודה7[[#This Row],[שעות]]="","", IF(SUMPRODUCT((שעות_עבודה7[[#This Row],[שם העבודה]]=$N$9:$O$28)*שעות_עבודה7[[#This Row],[שעות]]*($P$9:$Q$28*24))=0,"", SUMPRODUCT((שעות_עבודה7[[#This Row],[שם העבודה]]=$N$9:$O$28)*שעות_עבודה7[[#This Row],[שעות]]*($P$9:$Q$28*24)))) ->  | S31: נוצר על ידי החפץ בעילו"ש לזיכוי הרבים. קרדיט ל- a5092920673@gmail.com. עותק חופשי - סיסמא 1234
B32: =IF(שעות_עבודה7[[#This Row],[תאריך]]="","",ROW(A24)) ->  | I32: =IFERROR(IF(שעות_עבודה7[[#This Row],[סיום]]="","",שעות_עבודה7[[#This Row],[סיום]]-שעות_עבודה7[[#This Row],[התחלה]]+שעות_עבודה7[[#This Row],[הוספת שעות]]-שעות_עבודה7[[#This Row],[הפחתת שעות]]+(שעות_עבודה7[[#This Row],[סיום]]<שעות_עבודה7[[#This Row],[התחלה]])),"") ->  | J32: =IF(שעות_עבודה7[[#This Row],[שעות]]="","", IF(SUMPRODUCT((שעות_עבודה7[[#This Row],[שם העבודה]]=$N$9:$O$28)*שעות_עבודה7[[#This Row],[שעות]]*($P$9:$Q$28*24))=0,"", SUMPRODUCT((שעות_עבודה7[[#This Row],[שם העבודה]]=$N$9:$O$28)*שעות_עבודה7[[#This Row],[שעות]]*($P$9:$Q$28*24)))) -> 
B33: =IF(שעות_עבודה7[[#This Row],[תאריך]]="","",ROW(A25)) ->  | I33: =IFERROR(IF(שעות_עבודה7[[#This Row],[סיום]]="","",שעות_עבודה7[[#This Row],[סיום]]-שעות_עבודה7[[#This Row],[התחלה]]+שעות_עבודה7[[#This Row],[הוספת שעות]]-שעות_עבודה7[[#This Row],[הפחתת שעות]]+(שעות_עבודה7[[#This Row],[סיום]]<שעות_עבודה7[[#This Row],[התחלה]])),"") ->  | J33: =IF(שעות_עבודה7[[#This Row],[שעות]]="","", IF(SUMPRODUCT((שעות_עבודה7[[#This Row],[שם העבודה]]=$N$9:$O$28)*שעות_עבודה7[[#This Row],[שעות]]*($P$9:$Q$28*24))=0,"", SUMPRODUCT((שעות_עבודה7[[#This Row],[שם העבודה]]=$N$9:$O$28)*שעות_עבודה7[[#This Row],[שעות]]*($P$9:$Q$28*24)))) -> 
B34: =IF(שעות_עבודה7[[#This Row],[תאריך]]="","",ROW(A26)) ->  | I34: =IFERROR(IF(שעות_עבודה7[[#This Row],[סיום]]="","",שעות_עבודה7[[#This Row],[סיום]]-שעות_עבודה7[[#This Row],[התחלה]]+שעות_עבודה7[[#This Row],[הוספת שעות]]-שעות_עבודה7[[#This Row],[הפחתת שעות]]+(שעות_עבודה7[[#This Row],[סיום]]<שעות_עבודה7[[#This Row],[התחלה]])),"") ->  | J34: =IF(שעות_עבודה7[[#This Row],[שעות]]="","", IF(SUMPRODUCT((שעות_עבודה7[[#This Row],[שם העבודה]]=$N$9:$O$28)*שעות_עבודה7[[#This Row],[שעות]]*($P$9:$Q$28*24))=0,"", SUMPRODUCT((שעות_עבודה7[[#This Row],[שם העבודה]]=$N$9:$O$28)*שעות_עבודה7[[#This Row],[שעות]]*($P$9:$Q$28*24)))) -> 
B35: =IF(שעות_עבודה7[[#This Row],[תאריך]]="","",ROW(A27)) ->  | I35: =IFERROR(IF(שעות_עבודה7[[#This Row],[סיום]]="","",שעות_עבודה7[[#This Row],[סיום]]-שעות_עבודה7[[#This Row],[התחלה]]+שעות_עבודה7[[#This Row],[הוספת שעות]]-שעות_עבודה7[[#This Row],[הפחתת שעות]]+(שעות_עבודה7[[#This Row],[סיום]]<שעות_עבודה7[[#This Row],[התחלה]])),"") ->  | J35: =IF(שעות_עבודה7[[#This Row],[שעות]]="","", IF(SUMPRODUCT((שעות_עבודה7[[#This Row],[שם העבודה]]=$N$9:$O$28)*שעות_עבודה7[[#This Row],[שעות]]*($P$9:$Q$28*24))=0,"", SUMPRODUCT((שעות_עבודה7[[#This Row],[שם העבודה]]=$N$9:$O$28)*שעות_עבודה7[[#This Row],[שעות]]*($P$9:$Q$28*24)))) -> 
B36: =IF(שעות_עבודה7[[#This Row],[תאריך]]="","",ROW(A28)) ->  | I36: =IFERROR(IF(שעות_עבודה7[[#This Row],[סיום]]="","",שעות_עבודה7[[#This Row],[סיום]]-שעות_עבודה7[[#This Row],[התחלה]]+שעות_עבודה7[[#This Row],[הוספת שעות]]-שעות_עבודה7[[#This Row],[הפחתת שעות]]+(שעות_עבודה7[[#This Row],[סיום]]<שעות_עבודה7[[#This Row],[התחלה]])),"") ->  | J36: =IF(שעות_עבודה7[[#This Row],[שעות]]="","", IF(SUMPRODUCT((שעות_עבודה7[[#This Row],[שם העבודה]]=$N$9:$O$28)*שעות_עבודה7[[#This Row],[שעות]]*($P$9:$Q$28*24))=0,"", SUMPRODUCT((שעות_עבודה7[[#This Row],[שם העבודה]]=$N$9:$O$28)*שעות_עבודה7[[#This Row],[שעות]]*($P$9:$Q$28*24)))) -> 
B37: =IF(שעות_עבודה7[[#This Row],[תאריך]]="","",ROW(A29)) ->  | I37: =IFERROR(IF(שעות_עבודה7[[#This Row],[סיום]]="","",שעות_עבודה7[[#This Row],[סיום]]-שעות_עבודה7[[#This Row],[התחלה]]+שעות_עבודה7[[#This Row],[הוספת שעות]]-שעות_עבודה7[[#This Row],[הפחתת שעות]]+(שעות_עבודה7[[#This Row],[סיום]]<שעות_עבודה7[[#This Row],[התחלה]])),"") ->  | J37: =IF(שעות_עבודה7[[#This Row],[שעות]]="","", IF(SUMPRODUCT((שעות_עבודה7[[#This Row],[שם העבודה]]=$N$9:$O$28)*שעות_עבודה7[[#This Row],[שעות]]*($P$9:$Q$28*24))=0,"", SUMPRODUCT((שעות_עבודה7[[#This Row],[שם העבודה]]=$N$9:$O$28)*שעות_עבודה7[[#This Row],[שעות]]*($P$9:$Q$28*24)))) -> 
B38: =IF(שעות_עבודה7[[#This Row],[תאריך]]="","",ROW(A30)) ->  | I38: =IFERROR(IF(שעות_עבודה7[[#This Row],[סיום]]="","",שעות_עבודה7[[#This Row],[סיום]]-שעות_עבודה7[[#This Row],[התחלה]]+שעות_עבודה7[[#This Row],[הוספת שעות]]-שעות_עבודה7[[#This Row],[הפחתת שעות]]+(שעות_עבודה7[[#This Row],[סיום]]<שעות_עבודה7[[#This Row],[התחלה]])),"") ->  | J38: =IF(שעות_עבודה7[[#This Row],[שעות]]="","", IF(SUMPRODUCT((שעות_עבודה7[[#This Row],[שם העבודה]]=$N$9:$O$28)*שעות_עבודה7[[#This Row],[שעות]]*($P$9:$Q$28*24))=0,"", SUMPRODUCT((שעות_עבודה7[[#This Row],[שם העבודה]]=$N$9:$O$28)*שעות_עבודה7[[#This Row],[שעות]]*($P$9:$Q$28*24)))) -> 
B39: =IF(שעות_עבודה7[[#This Row],[תאריך]]="","",ROW(A31)) ->  | I39: =IFERROR(IF(שעות_עבודה7[[#This Row],[סיום]]="","",שעות_עבודה7[[#This Row],[סיום]]-שעות_עבודה7[[#This Row],[התחלה]]+שעות_עבודה7[[#This Row],[הוספת שעות]]-שעות_עבודה7[[#This Row],[הפחתת שעות]]+(שעות_עבודה7[[#This Row],[סיום]]<שעות_עבודה7[[#This Row],[התחלה]])),"") ->  | J39: =IF(שעות_עבודה7[[#This Row],[שעות]]="","", IF(SUMPRODUCT((שעות_עבודה7[[#This Row],[שם העבודה]]=$N$9:$O$28)*שעות_עבודה7[[#This Row],[שעות]]*($P$9:$Q$28*24))=0,"", SUMPRODUCT((שעות_עבודה7[[#This Row],[שם העבודה]]=$N$9:$O$28)*שעות_עבודה7[[#This Row],[שעות]]*($P$9:$Q$28*24)))) -> 
B40: =IF(שעות_עבודה7[[#This Row],[תאריך]]="","",ROW(A32)) ->  | I40: =IFERROR(IF(שעות_עבודה7[[#This Row],[סיום]]="","",שעות_עבודה7[[#This Row],[סיום]]-שעות_עבודה7[[#This Row],[התחלה]]+שעות_עבודה7[[#This Row],[הוספת שעות]]-שעות_עבודה7[[#This Row],[הפחתת שעות]]+(שעות_עבודה7[[#This Row],[סיום]]<שעות_עבודה7[[#This Row],[התחלה]])),"") ->  | J40: =IF(שעות_עבודה7[[#This Row],[שעות]]="","", IF(SUMPRODUCT((שעות_עבודה7[[#This Row],[שם העבודה]]=$N$9:$O$28)*שעות_עבודה7[[#This Row],[שעות]]*($P$9:$Q$28*24))=0,"", SUMPRODUCT((שעות_עבודה7[[#This Row],[שם העבודה]]=$N$9:$O$28)*שעות_עבודה7[[#This Row],[שעות]]*($P$9:$Q$28*24)))) -> 
B41: =IF(שעות_עבודה7[[#This Row],[תאריך]]="","",ROW(A33)) ->  | I41: =IFERROR(IF(שעות_עבודה7[[#This Row],[סיום]]="","",שעות_עבודה7[[#This Row],[סיום]]-שעות_עבודה7[[#This Row],[התחלה]]+שעות_עבודה7[[#This Row],[הוספת שעות]]-שעות_עבודה7[[#This Row],[הפחתת שעות]]+(שעות_עבודה7[[#This Row],[סיום]]<שעות_עבודה7[[#This Row],[התחלה]])),"") ->  | J41: =IF(שעות_עבודה7[[#This Row],[שעות]]="","", IF(SUMPRODUCT((שעות_עבודה7[[#This Row],[שם העבודה]]=$N$9:$O$28)*שעות_עבודה7[[#This Row],[שעות]]*($P$9:$Q$28*24))=0,"", SUMPRODUCT((שעות_עבודה7[[#This Row],[שם העבודה]]=$N$9:$O$28)*שעות_עבודה7[[#This Row],[שעות]]*($P$9:$Q$28*24)))) -> 
B42: =IF(שעות_עבודה7[[#This Row],[תאריך]]="","",ROW(A34)) ->  | I42: =IFERROR(IF(שעות_עבודה7[[#This Row],[סיום]]="","",שעות_עבודה7[[#This Row],[סיום]]-שעות_עבודה7[[#This Row],[התחלה]]+שעות_עבודה7[[#This Row],[הוספת שעות]]-שעות_עבודה7[[#This Row],[הפחתת שעות]]+(שעות_עבודה7[[#This Row],[סיום]]<שעות_עבודה7[[#This Row],[התחלה]])),"") ->  | J42: =IF(שעות_עבודה7[[#This Row],[שעות]]="","", IF(SUMPRODUCT((שעות_עבודה7[[#This Row],[שם העבודה]]=$N$9:$O$28)*שעות_עבודה7[[#This Row],[שעות]]*($P$9:$Q$28*24))=0,"", SUMPRODUCT((שעות_עבודה7[[#This Row],[שם העבודה]]=$N$9:$O$28)*שעות_עבודה7[[#This Row],[שעות]]*($P$9:$Q$28*24)))) -> 
B43: =IF(שעות_עבודה7[[#This Row],[תאריך]]="","",ROW(A35)) ->  | I43: =IFERROR(IF(שעות_עבודה7[[#This Row],[סיום]]="","",שעות_עבודה7[[#This Row],[סיום]]-שעות_עבודה7[[#This Row],[התחלה]]+שעות_עבודה7[[#This Row],[הוספת שעות]]-שעות_עבודה7[[#This Row],[הפחתת שעות]]+(שעות_עבודה7[[#This Row],[סיום]]<שעות_עבודה7[[#This Row],[התחלה]])),"") ->  | J43: =IF(שעות_עבודה7[[#This Row],[שעות]]="","", IF(SUMPRODUCT((שעות_עבודה7[[#This Row],[שם העבודה]]=$N$9:$O$28)*שעות_עבודה7[[#This Row],[שעות]]*($P$9:$Q$28*24))=0,"", SUMPRODUCT((שעות_עבודה7[[#This Row],[שם העבודה]]=$N$9:$O$28)*שעות_עבודה7[[#This Row],[שעות]]*($P$9:$Q$28*24)))) -> 
B44: =IF(שעות_עבודה7[[#This Row],[תאריך]]="","",ROW(A36)) ->  | I44: =IFERROR(IF(שעות_עבודה7[[#This Row],[סיום]]="","",שעות_עבודה7[[#This Row],[סיום]]-שעות_עבודה7[[#This Row],[התחלה]]+שעות_עבודה7[[#This Row],[הוספת שעות]]-שעות_עבודה7[[#This Row],[הפחתת שעות]]+(שעות_עבודה7[[#This Row],[סיום]]<שעות_עבודה7[[#This Row],[התחלה]])),"") ->  | J44: =IF(שעות_עבודה7[[#This Row],[שעות]]="","", IF(SUMPRODUCT((שעות_עבודה7[[#This Row],[שם העבודה]]=$N$9:$O$28)*שעות_עבודה7[[#This Row],[שעות]]*($P$9:$Q$28*24))=0,"", SUMPRODUCT((שעות_עבודה7[[#This Row],[שם העבודה]]=$N$9:$O$28)*שעות_עבודה7[[#This Row],[שעות]]*($P$9:$Q$28*24)))) -> 
B45: =IF(שעות_עבודה7[[#This Row],[תאריך]]="","",ROW(A37)) ->  | I45: =IFERROR(IF(שעות_עבודה7[[#This Row],[סיום]]="","",שעות_עבודה7[[#This Row],[סיום]]-שעות_עבודה7[[#This Row],[התחלה]]+שעות_עבודה7[[#This Row],[הוספת שעות]]-שעות_עבודה7[[#This Row],[הפחתת שעות]]+(שעות_עבודה7[[#This Row],[סיום]]<שעות_עבודה7[[#This Row],[התחלה]])),"") ->  | J45: =IF(שעות_עבודה7[[#This Row],[שעות]]="","", IF(SUMPRODUCT((שעות_עבודה7[[#This Row],[שם העבודה]]=$N$9:$O$28)*שעות_עבודה7[[#This Row],[שעות]]*($P$9:$Q$28*24))=0,"", SUMPRODUCT((שעות_עבודה7[[#This Row],[שם העבודה]]=$N$9:$O$28)*שעות_עבודה7[[#This Row],[שעות]]*($P$9:$Q$28*24)))) -> 
B46: =IF(שעות_עבודה7[[#This Row],[תאריך]]="","",ROW(A38)) ->  | I46: =IFERROR(IF(שעות_עבודה7[[#This Row],[סיום]]="","",שעות_עבודה7[[#This Row],[סיום]]-שעות_עבודה7[[#This Row],[התחלה]]+שעות_עבודה7[[#This Row],[הוספת שעות]]-שעות_עבודה7[[#This Row],[הפחתת שעות]]+(שעות_עבודה7[[#This Row],[סיום]]<שעות_עבודה7[[#This Row],[התחלה]])),"") ->  | J46: =IF(שעות_עבודה7[[#This Row],[שעות]]="","", IF(SUMPRODUCT((שעות_עבודה7[[#This Row],[שם העבודה]]=$N$9:$O$28)*שעות_עבודה7[[#This Row],[שעות]]*($P$9:$Q$28*24))=0,"", SUMPRODUCT((שעות_עבודה7[[#This Row],[שם העבודה]]=$N$9:$O$28)*שעות_עבודה7[[#This Row],[שעות]]*($P$9:$Q$28*24)))) -> 
B47: =IF(שעות_עבודה7[[#This Row],[תאריך]]="","",ROW(A39)) ->  | I47: =IFERROR(IF(שעות_עבודה7[[#This Row],[סיום]]="","",שעות_עבודה7[[#This Row],[סיום]]-שעות_עבודה7[[#This Row],[התחלה]]+שעות_עבודה7[[#This Row],[הוספת שעות]]-שעות_עבודה7[[#This Row],[הפחתת שעות]]+(שעות_עבודה7[[#This Row],[סיום]]<שעות_עבודה7[[#This Row],[התחלה]])),"") ->  | J47: =IF(שעות_עבודה7[[#This Row],[שעות]]="","", IF(SUMPRODUCT((שעות_עבודה7[[#This Row],[שם העבודה]]=$N$9:$O$28)*שעות_עבודה7[[#This Row],[שעות]]*($P$9:$Q$28*24))=0,"", SUMPRODUCT((שעות_עבודה7[[#This Row],[שם העבודה]]=$N$9:$O$28)*שעות_עבודה7[[#This Row],[שעות]]*($P$9:$Q$28*24)))) -> 
B48: =IF(שעות_עבודה7[[#This Row],[תאריך]]="","",ROW(A40)) ->  | I48: =IFERROR(IF(שעות_עבודה7[[#This Row],[סיום]]="","",שעות_עבודה7[[#This Row],[סיום]]-שעות_עבודה7[[#This Row],[התחלה]]+שעות_עבודה7[[#This Row],[הוספת שעות]]-שעות_עבודה7[[#This Row],[הפחתת שעות]]+(שעות_עבודה7[[#This Row],[סיום]]<שעות_עבודה7[[#This Row],[התחלה]])),"") ->  | J48: =IF(שעות_עבודה7[[#This Row],[שעות]]="","", IF(SUMPRODUCT((שעות_עבודה7[[#This Row],[שם העבודה]]=$N$9:$O$28)*שעות_עבודה7[[#This Row],[שעות]]*($P$9:$Q$28*24))=0,"", SUMPRODUCT((שעות_עבודה7[[#This Row],[שם העבודה]]=$N$9:$O$28)*שעות_עבודה7[[#This Row],[שעות]]*($P$9:$Q$28*24)))) -> 
B49: =IF(שעות_עבודה7[[#This Row],[תאריך]]="","",ROW(A41)) ->  | I49: =IFERROR(IF(שעות_עבודה7[[#This Row],[סיום]]="","",שעות_עבודה7[[#This Row],[סיום]]-שעות_עבודה7[[#This Row],[התחלה]]+שעות_עבודה7[[#This Row],[הוספת שעות]]-שעות_עבודה7[[#This Row],[הפחתת שעות]]+(שעות_עבודה7[[#This Row],[סיום]]<שעות_עבודה7[[#This Row],[התחלה]])),"") ->  | J49: =IF(שעות_עבודה7[[#This Row],[שעות]]="","", IF(SUMPRODUCT((שעות_עבודה7[[#This Row],[שם העבודה]]=$N$9:$O$28)*שעות_עבודה7[[#This Row],[שעות]]*($P$9:$Q$28*24))=0,"", SUMPRODUCT((שעות_עבודה7[[#This Row],[שם העבודה]]=$N$9:$O$28)*שעות_עבודה7[[#This Row],[שעות]]*($P$9:$Q$28*24)))) -> 
B50: =IF(שעות_עבודה7[[#This Row],[תאריך]]="","",ROW(A42)) ->  | I50: =IFERROR(IF(שעות_עבודה7[[#This Row],[סיום]]="","",שעות_עבודה7[[#This Row],[סיום]]-שעות_עבודה7[[#This Row],[התחלה]]+שעות_עבודה7[[#This Row],[הוספת שעות]]-שעות_עבודה7[[#This Row],[הפחתת שעות]]+(שעות_עבודה7[[#This Row],[סיום]]<שעות_עבודה7[[#This Row],[התחלה]])),"") ->  | J50: =IF(שעות_עבודה7[[#This Row],[שעות]]="","", IF(SUMPRODUCT((שעות_עבודה7[[#This Row],[שם העבודה]]=$N$9:$O$28)*שעות_עבודה7[[#This Row],[שעות]]*($P$9:$Q$28*24))=0,"", SUMPRODUCT((שעות_עבודה7[[#This Row],[שם העבודה]]=$N$9:$O$28)*שעות_עבודה7[[#This Row],[שעות]]*($P$9:$Q$28*24)))) -> 
B51: =IF(שעות_עבודה7[[#This Row],[תאריך]]="","",ROW(A43)) ->  | I51: =IFERROR(IF(שעות_עבודה7[[#This Row],[סיום]]="","",שעות_עבודה7[[#This Row],[סיום]]-שעות_עבודה7[[#This Row],[התחלה]]+שעות_עבודה7[[#This Row],[הוספת שעות]]-שעות_עבודה7[[#This Row],[הפחתת שעות]]+(שעות_עבודה7[[#This Row],[סיום]]<שעות_עבודה7[[#This Row],[התחלה]])),"") ->  | J51: =IF(שעות_עבודה7[[#This Row],[שעות]]="","", IF(SUMPRODUCT((שעות_עבודה7[[#This Row],[שם העבודה]]=$N$9:$O$28)*שעות_עבודה7[[#This Row],[שעות]]*($P$9:$Q$28*24))=0,"", SUMPRODUCT((שעות_עבודה7[[#This Row],[שם העבודה]]=$N$9:$O$28)*שעות_עבודה7[[#This Row],[שעות]]*($P$9:$Q$28*24)))) -> 
B52: =IF(שעות_עבודה7[[#This Row],[תאריך]]="","",ROW(A44)) ->  | I52: =IFERROR(IF(שעות_עבודה7[[#This Row],[סיום]]="","",שעות_עבודה7[[#This Row],[סיום]]-שעות_עבודה7[[#This Row],[התחלה]]+שעות_עבודה7[[#This Row],[הוספת שעות]]-שעות_עבודה7[[#This Row],[הפחתת שעות]]+(שעות_עבודה7[[#This Row],[סיום]]<שעות_עבודה7[[#This Row],[התחלה]])),"") ->  | J52: =IF(שעות_עבודה7[[#This Row],[שעות]]="","", IF(SUMPRODUCT((שעות_עבודה7[[#This Row],[שם העבודה]]=$N$9:$O$28)*שעות_עבודה7[[#This Row],[שעות]]*($P$9:$Q$28*24))=0,"", SUMPRODUCT((שעות_עבודה7[[#This Row],[שם העבודה]]=$N$9:$O$28)*שעות_עבודה7[[#This Row],[שעות]]*($P$9:$Q$28*24)))) -> 
B53: =IF(שעות_עבודה7[[#This Row],[תאריך]]="","",ROW(A45)) ->  | I53: =IFERROR(IF(שעות_עבודה7[[#This Row],[סיום]]="","",שעות_עבודה7[[#This Row],[סיום]]-שעות_עבודה7[[#This Row],[התחלה]]+שעות_עבודה7[[#This Row],[הוספת שעות]]-שעות_עבודה7[[#This Row],[הפחתת שעות]]+(שעות_עבודה7[[#This Row],[סיום]]<שעות_עבודה7[[#This Row],[התחלה]])),"") ->  | J53: =IF(שעות_עבודה7[[#This Row],[שעות]]="","", IF(SUMPRODUCT((שעות_עבודה7[[#This Row],[שם העבודה]]=$N$9:$O$28)*שעות_עבודה7[[#This Row],[שעות]]*($P$9:$Q$28*24))=0,"", SUMPRODUCT((שעות_עבודה7[[#This Row],[שם העבודה]]=$N$9:$O$28)*שעות_עבודה7[[#This Row],[שעות]]*($P$9:$Q$28*24)))) -> 
B54: =IF(שעות_עבודה7[[#This Row],[תאריך]]="","",ROW(A46)) ->  | I54: =IFERROR(IF(שעות_עבודה7[[#This Row],[סיום]]="","",שעות_עבודה7[[#This Row],[סיום]]-שעות_עבודה7[[#This Row],[התחלה]]+שעות_עבודה7[[#This Row],[הוספת שעות]]-שעות_עבודה7[[#This Row],[הפחתת שעות]]+(שעות_עבודה7[[#This Row],[סיום]]<שעות_עבודה7[[#This Row],[התחלה]])),"") ->  | J54: =IF(שעות_עבודה7[[#This Row],[שעות]]="","", IF(SUMPRODUCT((שעות_עבודה7[[#This Row],[שם העבודה]]=$N$9:$O$28)*שעות_עבודה7[[#This Row],[שעות]]*($P$9:$Q$28*24))=0,"", SUMPRODUCT((שעות_עבודה7[[#This Row],[שם העבודה]]=$N$9:$O$28)*שעות_עבודה7[[#This Row],[שעות]]*($P$9:$Q$28*24)))) -> 
B55: =IF(שעות_עבודה7[[#This Row],[תאריך]]="","",ROW(A47)) ->  | I55: =IFERROR(IF(שעות_עבודה7[[#This Row],[סיום]]="","",שעות_עבודה7[[#This Row],[סיום]]-שעות_עבודה7[[#This Row],[התחלה]]+שעות_עבודה7[[#This Row],[הוספת שעות]]-שעות_עבודה7[[#This Row],[הפחתת שעות]]+(שעות_עבודה7[[#This Row],[סיום]]<שעות_עבודה7[[#This Row],[התחלה]])),"") ->  | J55: =IF(שעות_עבודה7[[#This Row],[שעות]]="","", IF(SUMPRODUCT((שעות_עבודה7[[#This Row],[שם העבודה]]=$N$9:$O$28)*שעות_עבודה7[[#This Row],[שעות]]*($P$9:$Q$28*24))=0,"", SUMPRODUCT((שעות_עבודה7[[#This Row],[שם העבודה]]=$N$9:$O$28)*שעות_עבודה7[[#This Row],[שעות]]*($P$9:$Q$28*24)))) -> 
B56: =IF(שעות_עבודה7[[#This Row],[תאריך]]="","",ROW(A48)) ->  | I56: =IFERROR(IF(שעות_עבודה7[[#This Row],[סיום]]="","",שעות_עבודה7[[#This Row],[סיום]]-שעות_עבודה7[[#This Row],[התחלה]]+שעות_עבודה7[[#This Row],[הוספת שעות]]-שעות_עבודה7[[#This Row],[הפחתת שעות]]+(שעות_עבודה7[[#This Row],[סיום]]<שעות_עבודה7[[#This Row],[התחלה]])),"") ->  | J56: =IF(שעות_עבודה7[[#This Row],[שעות]]="","", IF(SUMPRODUCT((שעות_עבודה7[[#This Row],[שם העבודה]]=$N$9:$O$28)*שעות_עבודה7[[#This Row],[שעות]]*($P$9:$Q$28*24))=0,"", SUMPRODUCT((שעות_עבודה7[[#This Row],[שם העבודה]]=$N$9:$O$28)*שעות_עבודה7[[#This Row],[שעות]]*($P$9:$Q$28*24)))) -> 
B57: =IF(שעות_עבודה7[[#This Row],[תאריך]]="","",ROW(A49)) ->  | I57: =IFERROR(IF(שעות_עבודה7[[#This Row],[סיום]]="","",שעות_עבודה7[[#This Row],[סיום]]-שעות_עבודה7[[#This Row],[התחלה]]+שעות_עבודה7[[#This Row],[הוספת שעות]]-שעות_עבודה7[[#This Row],[הפחתת שעות]]+(שעות_עבודה7[[#This Row],[סיום]]<שעות_עבודה7[[#This Row],[התחלה]])),"") ->  | J57: =IF(שעות_עבודה7[[#This Row],[שעות]]="","", IF(SUMPRODUCT((שעות_עבודה7[[#This Row],[שם העבודה]]=$N$9:$O$28)*שעות_עבודה7[[#This Row],[שעות]]*($P$9:$Q$28*24))=0,"", SUMPRODUCT((שעות_עבודה7[[#This Row],[שם העבודה]]=$N$9:$O$28)*שעות_עבודה7[[#This Row],[שעות]]*($P$9:$Q$28*24)))) -> 
B58: =IF(שעות_עבודה7[[#This Row],[תאריך]]="","",ROW(A50)) ->  | I58: =IFERROR(IF(שעות_עבודה7[[#This Row],[סיום]]="","",שעות_עבודה7[[#This Row],[סיום]]-שעות_עבודה7[[#This Row],[התחלה]]+שעות_עבודה7[[#This Row],[הוספת שעות]]-שעות_עבודה7[[#This Row],[הפחתת שעות]]+(שעות_עבודה7[[#This Row],[סיום]]<שעות_עבודה7[[#This Row],[התחלה]])),"") ->  | J58: =IF(שעות_עבודה7[[#This Row],[שעות]]="","", IF(SUMPRODUCT((שעות_עבודה7[[#This Row],[שם העבודה]]=$N$9:$O$28)*שעות_עבודה7[[#This Row],[שעות]]*($P$9:$Q$28*24))=0,"", SUMPRODUCT((שעות_עבודה7[[#This Row],[שם העבודה]]=$N$9:$O$28)*שעות_עבודה7[[#This Row],[שעות]]*($P$9:$Q$28*24)))) -> 
B59: =IF(שעות_עבודה7[[#This Row],[תאריך]]="","",ROW(A51)) ->  | I59: =IFERROR(IF(שעות_עבודה7[[#This Row],[סיום]]="","",שעות_עבודה7[[#This Row],[סיום]]-שעות_עבודה7[[#This Row],[התחלה]]+שעות_עבודה7[[#This Row],[הוספת שעות]]-שעות_עבודה7[[#This Row],[הפחתת שעות]]+(שעות_עבודה7[[#This Row],[סיום]]<שעות_עבודה7[[#This Row],[התחלה]])),"") ->  | J59: =IF(שעות_עבודה7[[#This Row],[שעות]]="","", IF(SUMPRODUCT((שעות_עבודה7[[#This Row],[שם העבודה]]=$N$9:$O$28)*שעות_עבודה7[[#This Row],[שעות]]*($P$9:$Q$28*24))=0,"", SUMPRODUCT((שעות_עבודה7[[#This Row],[שם העבודה]]=$N$9:$O$28)*שעות_עבודה7[[#This Row],[שעות]]*($P$9:$Q$28*24)))) -> 
B60: =IF(שעות_עבודה7[[#This Row],[תאריך]]="","",ROW(A52)) ->  | I60: =IFERROR(IF(שעות_עבודה7[[#This Row],[סיום]]="","",שעות_עבודה7[[#This Row],[סיום]]-שעות_עבודה7[[#This Row],[התחלה]]+שעות_עבודה7[[#This Row],[הוספת שעות]]-שעות_עבודה7[[#This Row],[הפחתת שעות]]+(שעות_עבודה7[[#This Row],[סיום]]<שעות_עבודה7[[#This Row],[התחלה]])),"") ->  | J60: =IF(שעות_עבודה7[[#This Row],[שעות]]="","", IF(SUMPRODUCT((שעות_עבודה7[[#This Row],[שם העבודה]]=$N$9:$O$28)*שעות_עבודה7[[#This Row],[שעות]]*($P$9:$Q$28*24))=0,"", SUMPRODUCT((שעות_עבודה7[[#This Row],[שם העבודה]]=$N$9:$O$28)*שעות_עבודה7[[#This Row],[שעות]]*($P$9:$Q$28*24)))) -> 
B61: =IF(שעות_עבודה7[[#This Row],[תאריך]]="","",ROW(A53)) ->  | I61: =IFERROR(IF(שעות_עבודה7[[#This Row],[סיום]]="","",שעות_עבודה7[[#This Row],[סיום]]-שעות_עבודה7[[#This Row],[התחלה]]+שעות_עבודה7[[#This Row],[הוספת שעות]]-שעות_עבודה7[[#This Row],[הפחתת שעות]]+(שעות_עבודה7[[#This Row],[סיום]]<שעות_עבודה7[[#This Row],[התחלה]])),"") ->  | J61: =IF(שעות_עבודה7[[#This Row],[שעות]]="","", IF(SUMPRODUCT((שעות_עבודה7[[#This Row],[שם העבודה]]=$N$9:$O$28)*שעות_עבודה7[[#This Row],[שעות]]*($P$9:$Q$28*24))=0,"", SUMPRODUCT((שעות_עבודה7[[#This Row],[שם העבודה]]=$N$9:$O$28)*שעות_עבודה7[[#This Row],[שעות]]*($P$9:$Q$28*24)))) -> 
B62: =IF(שעות_עבודה7[[#This Row],[תאריך]]="","",ROW(A54)) ->  | I62: =IFERROR(IF(שעות_עבודה7[[#This Row],[סיום]]="","",שעות_עבודה7[[#This Row],[סיום]]-שעות_עבודה7[[#This Row],[התחלה]]+שעות_עבודה7[[#This Row],[הוספת שעות]]-שעות_עבודה7[[#This Row],[הפחתת שעות]]+(שעות_עבודה7[[#This Row],[סיום]]<שעות_עבודה7[[#This Row],[התחלה]])),"") ->  | J62: =IF(שעות_עבודה7[[#This Row],[שעות]]="","", IF(SUMPRODUCT((שעות_עבודה7[[#This Row],[שם העבודה]]=$N$9:$O$28)*שעות_עבודה7[[#This Row],[שעות]]*($P$9:$Q$28*24))=0,"", SUMPRODUCT((שעות_עבודה7[[#This Row],[שם העבודה]]=$N$9:$O$28)*שעות_עבודה7[[#This Row],[שעות]]*($P$9:$Q$28*24)))) -> 
B63: =IF(שעות_עבודה7[[#This Row],[תאריך]]="","",ROW(A55)) ->  | I63: =IFERROR(IF(שעות_עבודה7[[#This Row],[סיום]]="","",שעות_עבודה7[[#This Row],[סיום]]-שעות_עבודה7[[#This Row],[התחלה]]+שעות_עבודה7[[#This Row],[הוספת שעות]]-שעות_עבודה7[[#This Row],[הפחתת שעות]]+(שעות_עבודה7[[#This Row],[סיום]]<שעות_עבודה7[[#This Row],[התחלה]])),"") ->  | J63: =IF(שעות_עבודה7[[#This Row],[שעות]]="","", IF(SUMPRODUCT((שעות_עבודה7[[#This Row],[שם העבודה]]=$N$9:$O$28)*שעות_עבודה7[[#This Row],[שעות]]*($P$9:$Q$28*24))=0,"", SUMPRODUCT((שעות_עבודה7[[#This Row],[שם העבודה]]=$N$9:$O$28)*שעות_עבודה7[[#This Row],[שעות]]*($P$9:$Q$28*24)))) -> 
B64: =IF(שעות_עבודה7[[#This Row],[תאריך]]="","",ROW(A56)) ->  | I64: =IFERROR(IF(שעות_עבודה7[[#This Row],[סיום]]="","",שעות_עבודה7[[#This Row],[סיום]]-שעות_עבודה7[[#This Row],[התחלה]]+שעות_עבודה7[[#This Row],[הוספת שעות]]-שעות_עבודה7[[#This Row],[הפחתת שעות]]+(שעות_עבודה7[[#This Row],[סיום]]<שעות_עבודה7[[#This Row],[התחלה]])),"") ->  | J64: =IF(שעות_עבודה7[[#This Row],[שעות]]="","", IF(SUMPRODUCT((שעות_עבודה7[[#This Row],[שם העבודה]]=$N$9:$O$28)*שעות_עבודה7[[#This Row],[שעות]]*($P$9:$Q$28*24))=0,"", SUMPRODUCT((שעות_עבודה7[[#This Row],[שם העבודה]]=$N$9:$O$28)*שעות_עבודה7[[#This Row],[שעות]]*($P$9:$Q$28*24)))) -> 
B65: =IF(שעות_עבודה7[[#This Row],[תאריך]]="","",ROW(A57)) ->  | I65: =IFERROR(IF(שעות_עבודה7[[#This Row],[סיום]]="","",שעות_עבודה7[[#This Row],[סיום]]-שעות_עבודה7[[#This Row],[התחלה]]+שעות_עבודה7[[#This Row],[הוספת שעות]]-שעות_עבודה7[[#This Row],[הפחתת שעות]]+(שעות_עבודה7[[#This Row],[סיום]]<שעות_עבודה7[[#This Row],[התחלה]])),"") ->  | J65: =IF(שעות_עבודה7[[#This Row],[שעות]]="","", IF(SUMPRODUCT((שעות_עבודה7[[#This Row],[שם העבודה]]=$N$9:$O$28)*שעות_עבודה7[[#This Row],[שעות]]*($P$9:$Q$28*24))=0,"", SUMPRODUCT((שעות_עבודה7[[#This Row],[שם העבודה]]=$N$9:$O$28)*שעות_עבודה7[[#This Row],[שעות]]*($P$9:$Q$28*24)))) -> 
B66: =IF(שעות_עבודה7[[#This Row],[תאריך]]="","",ROW(A58)) ->  | I66: =IFERROR(IF(שעות_עבודה7[[#This Row],[סיום]]="","",שעות_עבודה7[[#This Row],[סיום]]-שעות_עבודה7[[#This Row],[התחלה]]+שעות_עבודה7[[#This Row],[הוספת שעות]]-שעות_עבודה7[[#This Row],[הפחתת שעות]]+(שעות_עבודה7[[#This Row],[סיום]]<שעות_עבודה7[[#This Row],[התחלה]])),"") ->  | J66: =IF(שעות_עבודה7[[#This Row],[שעות]]="","", IF(SUMPRODUCT((שעות_עבודה7[[#This Row],[שם העבודה]]=$N$9:$O$28)*שעות_עבודה7[[#This Row],[שעות]]*($P$9:$Q$28*24))=0,"", SUMPRODUCT((שעות_עבודה7[[#This Row],[שם העבודה]]=$N$9:$O$28)*שעות_עבודה7[[#This Row],[שעות]]*($P$9:$Q$28*24)))) -> 
B67: =IF(שעות_עבודה7[[#This Row],[תאריך]]="","",ROW(A59)) ->  | I67: =IFERROR(IF(שעות_עבודה7[[#This Row],[סיום]]="","",שעות_עבודה7[[#This Row],[סיום]]-שעות_עבודה7[[#This Row],[התחלה]]+שעות_עבודה7[[#This Row],[הוספת שעות]]-שעות_עבודה7[[#This Row],[הפחתת שעות]]+(שעות_עבודה7[[#This Row],[סיום]]<שעות_עבודה7[[#This Row],[התחלה]])),"") ->  | J67: =IF(שעות_עבודה7[[#This Row],[שעות]]="","", IF(SUMPRODUCT((שעות_עבודה7[[#This Row],[שם העבודה]]=$N$9:$O$28)*שעות_עבודה7[[#This Row],[שעות]]*($P$9:$Q$28*24))=0,"", SUMPRODUCT((שעות_עבודה7[[#This Row],[שם העבודה]]=$N$9:$O$28)*שעות_עבודה7[[#This Row],[שעות]]*($P$9:$Q$28*24)))) -> 
B68: =IF(שעות_עבודה7[[#This Row],[תאריך]]="","",ROW(A60)) ->  | I68: =IFERROR(IF(שעות_עבודה7[[#This Row],[סיום]]="","",שעות_עבודה7[[#This Row],[סיום]]-שעות_עבודה7[[#This Row],[התחלה]]+שעות_עבודה7[[#This Row],[הוספת שעות]]-שעות_עבודה7[[#This Row],[הפחתת שעות]]+(שעות_עבודה7[[#This Row],[סיום]]<שעות_עבודה7[[#This Row],[התחלה]])),"") ->  | J68: =IF(שעות_עבודה7[[#This Row],[שעות]]="","", IF(SUMPRODUCT((שעות_עבודה7[[#This Row],[שם העבודה]]=$N$9:$O$28)*שעות_עבודה7[[#This Row],[שעות]]*($P$9:$Q$28*24))=0,"", SUMPRODUCT((שעות_עבודה7[[#This Row],[שם העבודה]]=$N$9:$O$28)*שעות_עבודה7[[#This Row],[שעות]]*($P$9:$Q$28*24)))) -> 
B69: =IF(שעות_עבודה7[[#This Row],[תאריך]]="","",ROW(A61)) ->  | I69: =IFERROR(IF(שעות_עבודה7[[#This Row],[סיום]]="","",שעות_עבודה7[[#This Row],[סיום]]-שעות_עבודה7[[#This Row],[התחלה]]+שעות_עבודה7[[#This Row],[הוספת שעות]]-שעות_עבודה7[[#This Row],[הפחתת שעות]]+(שעות_עבודה7[[#This Row],[סיום]]<שעות_עבודה7[[#This Row],[התחלה]])),"") ->  | J69: =IF(שעות_עבודה7[[#This Row],[שעות]]="","", IF(SUMPRODUCT((שעות_עבודה7[[#This Row],[שם העבודה]]=$N$9:$O$28)*שעות_עבודה7[[#This Row],[שעות]]*($P$9:$Q$28*24))=0,"", SUMPRODUCT((שעות_עבודה7[[#This Row],[שם העבודה]]=$N$9:$O$28)*שעות_עבודה7[[#This Row],[שעות]]*($P$9:$Q$28*24)))) -> 
B70: =IF(שעות_עבודה7[[#This Row],[תאריך]]="","",ROW(A62)) ->  | I70: =IFERROR(IF(שעות_עבודה7[[#This Row],[סיום]]="","",שעות_עבודה7[[#This Row],[סיום]]-שעות_עבודה7[[#This Row],[התחלה]]+שעות_עבודה7[[#This Row],[הוספת שעות]]-שעות_עבודה7[[#This Row],[הפחתת שעות]]+(שעות_עבודה7[[#This Row],[סיום]]<שעות_עבודה7[[#This Row],[התחלה]])),"") ->  | J70: =IF(שעות_עבודה7[[#This Row],[שעות]]="","", IF(SUMPRODUCT((שעות_עבודה7[[#This Row],[שם העבודה]]=$N$9:$O$28)*שעות_עבודה7[[#This Row],[שעות]]*($P$9:$Q$28*24))=0,"", SUMPRODUCT((שעות_עבודה7[[#This Row],[שם העבודה]]=$N$9:$O$28)*שעות_עבודה7[[#This Row],[שעות]]*($P$9:$Q$28*24)))) -> 
B71: =IF(שעות_עבודה7[[#This Row],[תאריך]]="","",ROW(A63)) ->  | I71: =IFERROR(IF(שעות_עבודה7[[#This Row],[סיום]]="","",שעות_עבודה7[[#This Row],[סיום]]-שעות_עבודה7[[#This Row],[התחלה]]+שעות_עבודה7[[#This Row],[הוספת שעות]]-שעות_עבודה7[[#This Row],[הפחתת שעות]]+(שעות_עבודה7[[#This Row],[סיום]]<שעות_עבודה7[[#This Row],[התחלה]])),"") ->  | J71: =IF(שעות_עבודה7[[#This Row],[שעות]]="","", IF(SUMPRODUCT((שעות_עבודה7[[#This Row],[שם העבודה]]=$N$9:$O$28)*שעות_עבודה7[[#This Row],[שעות]]*($P$9:$Q$28*24))=0,"", SUMPRODUCT((שעות_עבודה7[[#This Row],[שם העבודה]]=$N$9:$O$28)*שעות_עבודה7[[#This Row],[שעות]]*($P$9:$Q$28*24)))) -> 
B72: =IF(שעות_עבודה7[[#This Row],[תאריך]]="","",ROW(A64)) ->  | I72: =IFERROR(IF(שעות_עבודה7[[#This Row],[סיום]]="","",שעות_עבודה7[[#This Row],[סיום]]-שעות_עבודה7[[#This Row],[התחלה]]+שעות_עבודה7[[#This Row],[הוספת שעות]]-שעות_עבודה7[[#This Row],[הפחתת שעות]]+(שעות_עבודה7[[#This Row],[סיום]]<שעות_עבודה7[[#This Row],[התחלה]])),"") ->  | J72: =IF(שעות_עבודה7[[#This Row],[שעות]]="","", IF(SUMPRODUCT((שעות_עבודה7[[#This Row],[שם העבודה]]=$N$9:$O$28)*שעות_עבודה7[[#This Row],[שעות]]*($P$9:$Q$28*24))=0,"", SUMPRODUCT((שעות_עבודה7[[#This Row],[שם העבודה]]=$N$9:$O$28)*שעות_עבודה7[[#This Row],[שעות]]*($P$9:$Q$28*24)))) -> 
B73: =IF(שעות_עבודה7[[#This Row],[תאריך]]="","",ROW(A65)) ->  | I73: =IFERROR(IF(שעות_עבודה7[[#This Row],[סיום]]="","",שעות_עבודה7[[#This Row],[סיום]]-שעות_עבודה7[[#This Row],[התחלה]]+שעות_עבודה7[[#This Row],[הוספת שעות]]-שעות_עבודה7[[#This Row],[הפחתת שעות]]+(שעות_עבודה7[[#This Row],[סיום]]<שעות_עבודה7[[#This Row],[התחלה]])),"") ->  | J73: =IF(שעות_עבודה7[[#This Row],[שעות]]="","", IF(SUMPRODUCT((שעות_עבודה7[[#This Row],[שם העבודה]]=$N$9:$O$28)*שעות_עבודה7[[#This Row],[שעות]]*($P$9:$Q$28*24))=0,"", SUMPRODUCT((שעות_עבודה7[[#This Row],[שם העבודה]]=$N$9:$O$28)*שעות_עבודה7[[#This Row],[שעות]]*($P$9:$Q$28*24)))) -> 
B74: =IF(שעות_עבודה7[[#This Row],[תאריך]]="","",ROW(A66)) ->  | I74: =IFERROR(IF(שעות_עבודה7[[#This Row],[סיום]]="","",שעות_עבודה7[[#This Row],[סיום]]-שעות_עבודה7[[#This Row],[התחלה]]+שעות_עבודה7[[#This Row],[הוספת שעות]]-שעות_עבודה7[[#This Row],[הפחתת שעות]]+(שעות_עבודה7[[#This Row],[סיום]]<שעות_עבודה7[[#This Row],[התחלה]])),"") ->  | J74: =IF(שעות_עבודה7[[#This Row],[שעות]]="","", IF(SUMPRODUCT((שעות_עבודה7[[#This Row],[שם העבודה]]=$N$9:$O$28)*שעות_עבודה7[[#This Row],[שעות]]*($P$9:$Q$28*24))=0,"", SUMPRODUCT((שעות_עבודה7[[#This Row],[שם העבודה]]=$N$9:$O$28)*שעות_עבודה7[[#This Row],[שעות]]*($P$9:$Q$28*24)))) -> 
B75: =IF(שעות_עבודה7[[#This Row],[תאריך]]="","",ROW(A67)) ->  | I75: =IFERROR(IF(שעות_עבודה7[[#This Row],[סיום]]="","",שעות_עבודה7[[#This Row],[סיום]]-שעות_עבודה7[[#This Row],[התחלה]]+שעות_עבודה7[[#This Row],[הוספת שעות]]-שעות_עבודה7[[#This Row],[הפחתת שעות]]+(שעות_עבודה7[[#This Row],[סיום]]<שעות_עבודה7[[#This Row],[התחלה]])),"") ->  | J75: =IF(שעות_עבודה7[[#This Row],[שעות]]="","", IF(SUMPRODUCT((שעות_עבודה7[[#This Row],[שם העבודה]]=$N$9:$O$28)*שעות_עבודה7[[#This Row],[שעות]]*($P$9:$Q$28*24))=0,"", SUMPRODUCT((שעות_עבודה7[[#This Row],[שם העבודה]]=$N$9:$O$28)*שעות_עבודה7[[#This Row],[שעות]]*($P$9:$Q$28*24)))) -> 
B76: =IF(שעות_עבודה7[[#This Row],[תאריך]]="","",ROW(A68)) ->  | I76: =IFERROR(IF(שעות_עבודה7[[#This Row],[סיום]]="","",שעות_עבודה7[[#This Row],[סיום]]-שעות_עבודה7[[#This Row],[התחלה]]+שעות_עבודה7[[#This Row],[הוספת שעות]]-שעות_עבודה7[[#This Row],[הפחתת שעות]]+(שעות_עבודה7[[#This Row],[סיום]]<שעות_עבודה7[[#This Row],[התחלה]])),"") ->  | J76: =IF(שעות_עבודה7[[#This Row],[שעות]]="","", IF(SUMPRODUCT((שעות_עבודה7[[#This Row],[שם העבודה]]=$N$9:$O$28)*שעות_עבודה7[[#This Row],[שעות]]*($P$9:$Q$28*24))=0,"", SUMPRODUCT((שעות_עבודה7[[#This Row],[שם העבודה]]=$N$9:$O$28)*שעות_עבודה7[[#This Row],[שעות]]*($P$9:$Q$28*24)))) -> 
B77: =IF(שעות_עבודה7[[#This Row],[תאריך]]="","",ROW(A69)) ->  | I77: =IFERROR(IF(שעות_עבודה7[[#This Row],[סיום]]="","",שעות_עבודה7[[#This Row],[סיום]]-שעות_עבודה7[[#This Row],[התחלה]]+שעות_עבודה7[[#This Row],[הוספת שעות]]-שעות_עבודה7[[#This Row],[הפחתת שעות]]+(שעות_עבודה7[[#This Row],[סיום]]<שעות_עבודה7[[#This Row],[התחלה]])),"") ->  | J77: =IF(שעות_עבודה7[[#This Row],[שעות]]="","", IF(SUMPRODUCT((שעות_עבודה7[[#This Row],[שם העבודה]]=$N$9:$O$28)*שעות_עבודה7[[#This Row],[שעות]]*($P$9:$Q$28*24))=0,"", SUMPRODUCT((שעות_עבודה7[[#This Row],[שם העבודה]]=$N$9:$O$28)*שעות_עבודה7[[#This Row],[שעות]]*($P$9:$Q$28*24)))) -> 
B78: =IF(שעות_עבודה7[[#This Row],[תאריך]]="","",ROW(A70)) ->  | I78: =IFERROR(IF(שעות_עבודה7[[#This Row],[סיום]]="","",שעות_עבודה7[[#This Row],[סיום]]-שעות_עבודה7[[#This Row],[התחלה]]+שעות_עבודה7[[#This Row],[הוספת שעות]]-שעות_עבודה7[[#This Row],[הפחתת שעות]]+(שעות_עבודה7[[#This Row],[סיום]]<שעות_עבודה7[[#This Row],[התחלה]])),"") ->  | J78: =IF(שעות_עבודה7[[#This Row],[שעות]]="","", IF(SUMPRODUCT((שעות_עבודה7[[#This Row],[שם העבודה]]=$N$9:$O$28)*שעות_עבודה7[[#This Row],[שעות]]*($P$9:$Q$28*24))=0,"", SUMPRODUCT((שעות_עבודה7[[#This Row],[שם העבודה]]=$N$9:$O$28)*שעות_עבודה7[[#This Row],[שעות]]*($P$9:$Q$28*24)))) -> 
B79: =IF(שעות_עבודה7[[#This Row],[תאריך]]="","",ROW(A71)) ->  | I79: =IFERROR(IF(שעות_עבודה7[[#This Row],[סיום]]="","",שעות_עבודה7[[#This Row],[סיום]]-שעות_עבודה7[[#This Row],[התחלה]]+שעות_עבודה7[[#This Row],[הוספת שעות]]-שעות_עבודה7[[#This Row],[הפחתת שעות]]+(שעות_עבודה7[[#This Row],[סיום]]<שעות_עבודה7[[#This Row],[התחלה]])),"") ->  | J79: =IF(שעות_עבודה7[[#This Row],[שעות]]="","", IF(SUMPRODUCT((שעות_עבודה7[[#This Row],[שם העבודה]]=$N$9:$O$28)*שעות_עבודה7[[#This Row],[שעות]]*($P$9:$Q$28*24))=0,"", SUMPRODUCT((שעות_עבודה7[[#This Row],[שם העבודה]]=$N$9:$O$28)*שעות_עבודה7[[#This Row],[שעות]]*($P$9:$Q$28*24)))) -> 
B80: =IF(שעות_עבודה7[[#This Row],[תאריך]]="","",ROW(A72)) ->  | I80: =IFERROR(IF(שעות_עבודה7[[#This Row],[סיום]]="","",שעות_עבודה7[[#This Row],[סיום]]-שעות_עבודה7[[#This Row],[התחלה]]+שעות_עבודה7[[#This Row],[הוספת שעות]]-שעות_עבודה7[[#This Row],[הפחתת שעות]]+(שעות_עבודה7[[#This Row],[סיום]]<שעות_עבודה7[[#This Row],[התחלה]])),"") ->  | J80: =IF(שעות_עבודה7[[#This Row],[שעות]]="","", IF(SUMPRODUCT((שעות_עבודה7[[#This Row],[שם העבודה]]=$N$9:$O$28)*שעות_עבודה7[[#This Row],[שעות]]*($P$9:$Q$28*24))=0,"", SUMPRODUCT((שעות_עבודה7[[#This Row],[שם העבודה]]=$N$9:$O$28)*שעות_עבודה7[[#This Row],[שעות]]*($P$9:$Q$28*24)))) -> 
B81: =IF(שעות_עבודה7[[#This Row],[תאריך]]="","",ROW(A73)) ->  | I81: =IFERROR(IF(שעות_עבודה7[[#This Row],[סיום]]="","",שעות_עבודה7[[#This Row],[סיום]]-שעות_עבודה7[[#This Row],[התחלה]]+שעות_עבודה7[[#This Row],[הוספת שעות]]-שעות_עבודה7[[#This Row],[הפחתת שעות]]+(שעות_עבודה7[[#This Row],[סיום]]<שעות_עבודה7[[#This Row],[התחלה]])),"") ->  | J81: =IF(שעות_עבודה7[[#This Row],[שעות]]="","", IF(SUMPRODUCT((שעות_עבודה7[[#This Row],[שם העבודה]]=$N$9:$O$28)*שעות_עבודה7[[#This Row],[שעות]]*($P$9:$Q$28*24))=0,"", SUMPRODUCT((שעות_עבודה7[[#This Row],[שם העבודה]]=$N$9:$O$28)*שעות_עבודה7[[#This Row],[שעות]]*($P$9:$Q$28*24)))) -> 
B82: =IF(שעות_עבודה7[[#This Row],[תאריך]]="","",ROW(A74)) ->  | I82: =IFERROR(IF(שעות_עבודה7[[#This Row],[סיום]]="","",שעות_עבודה7[[#This Row],[סיום]]-שעות_עבודה7[[#This Row],[התחלה]]+שעות_עבודה7[[#This Row],[הוספת שעות]]-שעות_עבודה7[[#This Row],[הפחתת שעות]]+(שעות_עבודה7[[#This Row],[סיום]]<שעות_עבודה7[[#This Row],[התחלה]])),"") ->  | J82: =IF(שעות_עבודה7[[#This Row],[שעות]]="","", IF(SUMPRODUCT((שעות_עבודה7[[#This Row],[שם העבודה]]=$N$9:$O$28)*שעות_עבודה7[[#This Row],[שעות]]*($P$9:$Q$28*24))=0,"", SUMPRODUCT((שעות_עבודה7[[#This Row],[שם העבודה]]=$N$9:$O$28)*שעות_עבודה7[[#This Row],[שעות]]*($P$9:$Q$28*24)))) -> 
B83: =IF(שעות_עבודה7[[#This Row],[תאריך]]="","",ROW(A75)) ->  | I83: =IFERROR(IF(שעות_עבודה7[[#This Row],[סיום]]="","",שעות_עבודה7[[#This Row],[סיום]]-שעות_עבודה7[[#This Row],[התחלה]]+שעות_עבודה7[[#This Row],[הוספת שעות]]-שעות_עבודה7[[#This Row],[הפחתת שעות]]+(שעות_עבודה7[[#This Row],[סיום]]<שעות_עבודה7[[#This Row],[התחלה]])),"") ->  | J83: =IF(שעות_עבודה7[[#This Row],[שעות]]="","", IF(SUMPRODUCT((שעות_עבודה7[[#This Row],[שם העבודה]]=$N$9:$O$28)*שעות_עבודה7[[#This Row],[שעות]]*($P$9:$Q$28*24))=0,"", SUMPRODUCT((שעות_עבודה7[[#This Row],[שם העבודה]]=$N$9:$O$28)*שעות_עבודה7[[#This Row],[שעות]]*($P$9:$Q$28*24)))) -> 
B84: =IF(שעות_עבודה7[[#This Row],[תאריך]]="","",ROW(A76)) ->  | I84: =IFERROR(IF(שעות_עבודה7[[#This Row],[סיום]]="","",שעות_עבודה7[[#This Row],[סיום]]-שעות_עבודה7[[#This Row],[התחלה]]+שעות_עבודה7[[#This Row],[הוספת שעות]]-שעות_עבודה7[[#This Row],[הפחתת שעות]]+(שעות_עבודה7[[#This Row],[סיום]]<שעות_עבודה7[[#This Row],[התחלה]])),"") ->  | J84: =IF(שעות_עבודה7[[#This Row],[שעות]]="","", IF(SUMPRODUCT((שעות_עבודה7[[#This Row],[שם העבודה]]=$N$9:$O$28)*שעות_עבודה7[[#This Row],[שעות]]*($P$9:$Q$28*24))=0,"", SUMPRODUCT((שעות_עבודה7[[#This Row],[שם העבודה]]=$N$9:$O$28)*שעות_עבודה7[[#This Row],[שעות]]*($P$9:$Q$28*24)))) -> 
B85: =IF(שעות_עבודה7[[#This Row],[תאריך]]="","",ROW(A77)) ->  | I85: =IFERROR(IF(שעות_עבודה7[[#This Row],[סיום]]="","",שעות_עבודה7[[#This Row],[סיום]]-שעות_עבודה7[[#This Row],[התחלה]]+שעות_עבודה7[[#This Row],[הוספת שעות]]-שעות_עבודה7[[#This Row],[הפחתת שעות]]+(שעות_עבודה7[[#This Row],[סיום]]<שעות_עבודה7[[#This Row],[התחלה]])),"") ->  | J85: =IF(שעות_עבודה7[[#This Row],[שעות]]="","", IF(SUMPRODUCT((שעות_עבודה7[[#This Row],[שם העבודה]]=$N$9:$O$28)*שעות_עבודה7[[#This Row],[שעות]]*($P$9:$Q$28*24))=0,"", SUMPRODUCT((שעות_עבודה7[[#This Row],[שם העבודה]]=$N$9:$O$28)*שעות_עבודה7[[#This Row],[שעות]]*($P$9:$Q$28*24)))) -> 
B86: =IF(שעות_עבודה7[[#This Row],[תאריך]]="","",ROW(A78)) ->  | I86: =IFERROR(IF(שעות_עבודה7[[#This Row],[סיום]]="","",שעות_עבודה7[[#This Row],[סיום]]-שעות_עבודה7[[#This Row],[התחלה]]+שעות_עבודה7[[#This Row],[הוספת שעות]]-שעות_עבודה7[[#This Row],[הפחתת שעות]]+(שעות_עבודה7[[#This Row],[סיום]]<שעות_עבודה7[[#This Row],[התחלה]])),"") ->  | J86: =IF(שעות_עבודה7[[#This Row],[שעות]]="","", IF(SUMPRODUCT((שעות_עבודה7[[#This Row],[שם העבודה]]=$N$9:$O$28)*שעות_עבודה7[[#This Row],[שעות]]*($P$9:$Q$28*24))=0,"", SUMPRODUCT((שעות_עבודה7[[#This Row],[שם העבודה]]=$N$9:$O$28)*שעות_עבודה7[[#This Row],[שעות]]*($P$9:$Q$28*24)))) -> 
B87: =IF(שעות_עבודה7[[#This Row],[תאריך]]="","",ROW(A79)) ->  | I87: =IFERROR(IF(שעות_עבודה7[[#This Row],[סיום]]="","",שעות_עבודה7[[#This Row],[סיום]]-שעות_עבודה7[[#This Row],[התחלה]]+שעות_עבודה7[[#This Row],[הוספת שעות]]-שעות_עבודה7[[#This Row],[הפחתת שעות]]+(שעות_עבודה7[[#This Row],[סיום]]<שעות_עבודה7[[#This Row],[התחלה]])),"") ->  | J87: =IF(שעות_עבודה7[[#This Row],[שעות]]="","", IF(SUMPRODUCT((שעות_עבודה7[[#This Row],[שם העבודה]]=$N$9:$O$28)*שעות_עבודה7[[#This Row],[שעות]]*($P$9:$Q$28*24))=0,"", SUMPRODUCT((שעות_עבודה7[[#This Row],[שם העבודה]]=$N$9:$O$28)*שעות_עבודה7[[#This Row],[שעות]]*($P$9:$Q$28*24)))) -> 
B88: =IF(שעות_עבודה7[[#This Row],[תאריך]]="","",ROW(A80)) ->  | I88: =IFERROR(IF(שעות_עבודה7[[#This Row],[סיום]]="","",שעות_עבודה7[[#This Row],[סיום]]-שעות_עבודה7[[#This Row],[התחלה]]+שעות_עבודה7[[#This Row],[הוספת שעות]]-שעות_עבודה7[[#This Row],[הפחתת שעות]]+(שעות_עבודה7[[#This Row],[סיום]]<שעות_עבודה7[[#This Row],[התחלה]])),"") ->  | J88: =IF(שעות_עבודה7[[#This Row],[שעות]]="","", IF(SUMPRODUCT((שעות_עבודה7[[#This Row],[שם העבודה]]=$N$9:$O$28)*שעות_עבודה7[[#This Row],[שעות]]*($P$9:$Q$28*24))=0,"", SUMPRODUCT((שעות_עבודה7[[#This Row],[שם העבודה]]=$N$9:$O$28)*שעות_עבודה7[[#This Row],[שעות]]*($P$9:$Q$28*24)))) -> 
B89: =IF(שעות_עבודה7[[#This Row],[תאריך]]="","",ROW(A81)) ->  | I89: =IFERROR(IF(שעות_עבודה7[[#This Row],[סיום]]="","",שעות_עבודה7[[#This Row],[סיום]]-שעות_עבודה7[[#This Row],[התחלה]]+שעות_עבודה7[[#This Row],[הוספת שעות]]-שעות_עבודה7[[#This Row],[הפחתת שעות]]+(שעות_עבודה7[[#This Row],[סיום]]<שעות_עבודה7[[#This Row],[התחלה]])),"") ->  | J89: =IF(שעות_עבודה7[[#This Row],[שעות]]="","", IF(SUMPRODUCT((שעות_עבודה7[[#This Row],[שם העבודה]]=$N$9:$O$28)*שעות_עבודה7[[#This Row],[שעות]]*($P$9:$Q$28*24))=0,"", SUMPRODUCT((שעות_עבודה7[[#This Row],[שם העבודה]]=$N$9:$O$28)*שעות_עבודה7[[#This Row],[שעות]]*($P$9:$Q$28*24)))) -> 
B90: =IF(שעות_עבודה7[[#This Row],[תאריך]]="","",ROW(A82)) ->  | I90: =IFERROR(IF(שעות_עבודה7[[#This Row],[סיום]]="","",שעות_עבודה7[[#This Row],[סיום]]-שעות_עבודה7[[#This Row],[התחלה]]+שעות_עבודה7[[#This Row],[הוספת שעות]]-שעות_עבודה7[[#This Row],[הפחתת שעות]]+(שעות_עבודה7[[#This Row],[סיום]]<שעות_עבודה7[[#This Row],[התחלה]])),"") ->  | J90: =IF(שעות_עבודה7[[#This Row],[שעות]]="","", IF(SUMPRODUCT((שעות_עבודה7[[#This Row],[שם העבודה]]=$N$9:$O$28)*שעות_עבודה7[[#This Row],[שעות]]*($P$9:$Q$28*24))=0,"", SUMPRODUCT((שעות_עבודה7[[#This Row],[שם העבודה]]=$N$9:$O$28)*שעות_עבודה7[[#This Row],[שעות]]*($P$9:$Q$28*24)))) -> 
B91: =IF(שעות_עבודה7[[#This Row],[תאריך]]="","",ROW(A83)) ->  | I91: =IFERROR(IF(שעות_עבודה7[[#This Row],[סיום]]="","",שעות_עבודה7[[#This Row],[סיום]]-שעות_עבודה7[[#This Row],[התחלה]]+שעות_עבודה7[[#This Row],[הוספת שעות]]-שעות_עבודה7[[#This Row],[הפחתת שעות]]+(שעות_עבודה7[[#This Row],[סיום]]<שעות_עבודה7[[#This Row],[התחלה]])),"") ->  | J91: =IF(שעות_עבודה7[[#This Row],[שעות]]="","", IF(SUMPRODUCT((שעות_עבודה7[[#This Row],[שם העבודה]]=$N$9:$O$28)*שעות_עבודה7[[#This Row],[שעות]]*($P$9:$Q$28*24))=0,"", SUMPRODUCT((שעות_עבודה7[[#This Row],[שם העבודה]]=$N$9:$O$28)*שעות_עבודה7[[#This Row],[שעות]]*($P$9:$Q$28*24)))) -> 
B92: =IF(שעות_עבודה7[[#This Row],[תאריך]]="","",ROW(A84)) ->  | I92: =IFERROR(IF(שעות_עבודה7[[#This Row],[סיום]]="","",שעות_עבודה7[[#This Row],[סיום]]-שעות_עבודה7[[#This Row],[התחלה]]+שעות_עבודה7[[#This Row],[הוספת שעות]]-שעות_עבודה7[[#This Row],[הפחתת שעות]]+(שעות_עבודה7[[#This Row],[סיום]]<שעות_עבודה7[[#This Row],[התחלה]])),"") ->  | J92: =IF(שעות_עבודה7[[#This Row],[שעות]]="","", IF(SUMPRODUCT((שעות_עבודה7[[#This Row],[שם העבודה]]=$N$9:$O$28)*שעות_עבודה7[[#This Row],[שעות]]*($P$9:$Q$28*24))=0,"", SUMPRODUCT((שעות_עבודה7[[#This Row],[שם העבודה]]=$N$9:$O$28)*שעות_עבודה7[[#This Row],[שעות]]*($P$9:$Q$28*24)))) -> 
B93: =IF(שעות_עבודה7[[#This Row],[תאריך]]="","",ROW(A85)) ->  | I93: =IFERROR(IF(שעות_עבודה7[[#This Row],[סיום]]="","",שעות_עבודה7[[#This Row],[סיום]]-שעות_עבודה7[[#This Row],[התחלה]]+שעות_עבודה7[[#This Row],[הוספת שעות]]-שעות_עבודה7[[#This Row],[הפחתת שעות]]+(שעות_עבודה7[[#This Row],[סיום]]<שעות_עבודה7[[#This Row],[התחלה]])),"") ->  | J93: =IF(שעות_עבודה7[[#This Row],[שעות]]="","", IF(SUMPRODUCT((שעות_עבודה7[[#This Row],[שם העבודה]]=$N$9:$O$28)*שעות_עבודה7[[#This Row],[שעות]]*($P$9:$Q$28*24))=0,"", SUMPRODUCT((שעות_עבודה7[[#This Row],[שם העבודה]]=$N$9:$O$28)*שעות_עבודה7[[#This Row],[שעות]]*($P$9:$Q$28*24)))) -> 
B94: =IF(שעות_עבודה7[[#This Row],[תאריך]]="","",ROW(A86)) ->  | I94: =IFERROR(IF(שעות_עבודה7[[#This Row],[סיום]]="","",שעות_עבודה7[[#This Row],[סיום]]-שעות_עבודה7[[#This Row],[התחלה]]+שעות_עבודה7[[#This Row],[הוספת שעות]]-שעות_עבודה7[[#This Row],[הפחתת שעות]]+(שעות_עבודה7[[#This Row],[סיום]]<שעות_עבודה7[[#This Row],[התחלה]])),"") ->  | J94: =IF(שעות_עבודה7[[#This Row],[שעות]]="","", IF(SUMPRODUCT((שעות_עבודה7[[#This Row],[שם העבודה]]=$N$9:$O$28)*שעות_עבודה7[[#This Row],[שעות]]*($P$9:$Q$28*24))=0,"", SUMPRODUCT((שעות_עבודה7[[#This Row],[שם העבודה]]=$N$9:$O$28)*שעות_עבודה7[[#This Row],[שעות]]*($P$9:$Q$28*24)))) -> 
B95: =IF(שעות_עבודה7[[#This Row],[תאריך]]="","",ROW(A87)) ->  | I95: =IFERROR(IF(שעות_עבודה7[[#This Row],[סיום]]="","",שעות_עבודה7[[#This Row],[סיום]]-שעות_עבודה7[[#This Row],[התחלה]]+שעות_עבודה7[[#This Row],[הוספת שעות]]-שעות_עבודה7[[#This Row],[הפחתת שעות]]+(שעות_עבודה7[[#This Row],[סיום]]<שעות_עבודה7[[#This Row],[התחלה]])),"") ->  | J95: =IF(שעות_עבודה7[[#This Row],[שעות]]="","", IF(SUMPRODUCT((שעות_עבודה7[[#This Row],[שם העבודה]]=$N$9:$O$28)*שעות_עבודה7[[#This Row],[שעות]]*($P$9:$Q$28*24))=0,"", SUMPRODUCT((שעות_עבודה7[[#This Row],[שם העבודה]]=$N$9:$O$28)*שעות_עבודה7[[#This Row],[שעות]]*($P$9:$Q$28*24)))) -> 
B96: =IF(שעות_עבודה7[[#This Row],[תאריך]]="","",ROW(A88)) ->  | I96: =IFERROR(IF(שעות_עבודה7[[#This Row],[סיום]]="","",שעות_עבודה7[[#This Row],[סיום]]-שעות_עבודה7[[#This Row],[התחלה]]+שעות_עבודה7[[#This Row],[הוספת שעות]]-שעות_עבודה7[[#This Row],[הפחתת שעות]]+(שעות_עבודה7[[#This Row],[סיום]]<שעות_עבודה7[[#This Row],[התחלה]])),"") ->  | J96: =IF(שעות_עבודה7[[#This Row],[שעות]]="","", IF(SUMPRODUCT((שעות_עבודה7[[#This Row],[שם העבודה]]=$N$9:$O$28)*שעות_עבודה7[[#This Row],[שעות]]*($P$9:$Q$28*24))=0,"", SUMPRODUCT((שעות_עבודה7[[#This Row],[שם העבודה]]=$N$9:$O$28)*שעות_עבודה7[[#This Row],[שעות]]*($P$9:$Q$28*24)))) -> 
B97: =IF(שעות_עבודה7[[#This Row],[תאריך]]="","",ROW(A89)) ->  | I97: =IFERROR(IF(שעות_עבודה7[[#This Row],[סיום]]="","",שעות_עבודה7[[#This Row],[סיום]]-שעות_עבודה7[[#This Row],[התחלה]]+שעות_עבודה7[[#This Row],[הוספת שעות]]-שעות_עבודה7[[#This Row],[הפחתת שעות]]+(שעות_עבודה7[[#This Row],[סיום]]<שעות_עבודה7[[#This Row],[התחלה]])),"") ->  | J97: =IF(שעות_עבודה7[[#This Row],[שעות]]="","", IF(SUMPRODUCT((שעות_עבודה7[[#This Row],[שם העבודה]]=$N$9:$O$28)*שעות_עבודה7[[#This Row],[שעות]]*($P$9:$Q$28*24))=0,"", SUMPRODUCT((שעות_עבודה7[[#This Row],[שם העבודה]]=$N$9:$O$28)*שעות_עבודה7[[#This Row],[שעות]]*($P$9:$Q$28*24)))) -> 
B98: =IF(שעות_עבודה7[[#This Row],[תאריך]]="","",ROW(A90)) ->  | I98: =IFERROR(IF(שעות_עבודה7[[#This Row],[סיום]]="","",שעות_עבודה7[[#This Row],[סיום]]-שעות_עבודה7[[#This Row],[התחלה]]+שעות_עבודה7[[#This Row],[הוספת שעות]]-שעות_עבודה7[[#This Row],[הפחתת שעות]]+(שעות_עבודה7[[#This Row],[סיום]]<שעות_עבודה7[[#This Row],[התחלה]])),"") ->  | J98: =IF(שעות_עבודה7[[#This Row],[שעות]]="","", IF(SUMPRODUCT((שעות_עבודה7[[#This Row],[שם העבודה]]=$N$9:$O$28)*שעות_עבודה7[[#This Row],[שעות]]*($P$9:$Q$28*24))=0,"", SUMPRODUCT((שעות_עבודה7[[#This Row],[שם העבודה]]=$N$9:$O$28)*שעות_עבודה7[[#This Row],[שעות]]*($P$9:$Q$28*24)))) -> 
B99: =IF(שעות_עבודה7[[#This Row],[תאריך]]="","",ROW(A91)) ->  | I99: =IFERROR(IF(שעות_עבודה7[[#This Row],[סיום]]="","",שעות_עבודה7[[#This Row],[סיום]]-שעות_עבודה7[[#This Row],[התחלה]]+שעות_עבודה7[[#This Row],[הוספת שעות]]-שעות_עבודה7[[#This Row],[הפחתת שעות]]+(שעות_עבודה7[[#This Row],[סיום]]<שעות_עבודה7[[#This Row],[התחלה]])),"") ->  | J99: =IF(שעות_עבודה7[[#This Row],[שעות]]="","", IF(SUMPRODUCT((שעות_עבודה7[[#This Row],[שם העבודה]]=$N$9:$O$28)*שעות_עבודה7[[#This Row],[שעות]]*($P$9:$Q$28*24))=0,"", SUMPRODUCT((שעות_עבודה7[[#This Row],[שם העבודה]]=$N$9:$O$28)*שעות_עבודה7[[#This Row],[שעות]]*($P$9:$Q$28*24)))) -> 
B100: =IF(שעות_עבודה7[[#This Row],[תאריך]]="","",ROW(A92)) ->  | I100: =IFERROR(IF(שעות_עבודה7[[#This Row],[סיום]]="","",שעות_עבודה7[[#This Row],[סיום]]-שעות_עבודה7[[#This Row],[התחלה]]+שעות_עבודה7[[#This Row],[הוספת שעות]]-שעות_עבודה7[[#This Row],[הפחתת שעות]]+(שעות_עבודה7[[#This Row],[סיום]]<שעות_עבודה7[[#This Row],[התחלה]])),"") ->  | J100: =IF(שעות_עבודה7[[#This Row],[שעות]]="","", IF(SUMPRODUCT((שעות_עבודה7[[#This Row],[שם העבודה]]=$N$9:$O$28)*שעות_עבודה7[[#This Row],[שעות]]*($P$9:$Q$28*24))=0,"", SUMPRODUCT((שעות_עבודה7[[#This Row],[שם העבודה]]=$N$9:$O$28)*שעות_עבודה7[[#This Row],[שעות]]*($P$9:$Q$28*24)))) -> 
B101: =IF(שעות_עבודה7[[#This Row],[תאריך]]="","",ROW(A93)) ->  | I101: =IFERROR(IF(שעות_עבודה7[[#This Row],[סיום]]="","",שעות_עבודה7[[#This Row],[סיום]]-שעות_עבודה7[[#This Row],[התחלה]]+שעות_עבודה7[[#This Row],[הוספת שעות]]-שעות_עבודה7[[#This Row],[הפחתת שעות]]+(שעות_עבודה7[[#This Row],[סיום]]<שעות_עבודה7[[#This Row],[התחלה]])),"") ->  | J101: =IF(שעות_עבודה7[[#This Row],[שעות]]="","", IF(SUMPRODUCT((שעות_עבודה7[[#This Row],[שם העבודה]]=$N$9:$O$28)*שעות_עבודה7[[#This Row],[שעות]]*($P$9:$Q$28*24))=0,"", SUMPRODUCT((שעות_עבודה7[[#This Row],[שם העבודה]]=$N$9:$O$28)*שעות_עבודה7[[#This Row],[שעות]]*($P$9:$Q$28*24)))) -> 
B102: =IF(שעות_עבודה7[[#This Row],[תאריך]]="","",ROW(A94)) ->  | I102: =IFERROR(IF(שעות_עבודה7[[#This Row],[סיום]]="","",שעות_עבודה7[[#This Row],[סיום]]-שעות_עבודה7[[#This Row],[התחלה]]+שעות_עבודה7[[#This Row],[הוספת שעות]]-שעות_עבודה7[[#This Row],[הפחתת שעות]]+(שעות_עבודה7[[#This Row],[סיום]]<שעות_עבודה7[[#This Row],[התחלה]])),"") ->  | J102: =IF(שעות_עבודה7[[#This Row],[שעות]]="","", IF(SUMPRODUCT((שעות_עבודה7[[#This Row],[שם העבודה]]=$N$9:$O$28)*שעות_עבודה7[[#This Row],[שעות]]*($P$9:$Q$28*24))=0,"", SUMPRODUCT((שעות_עבודה7[[#This Row],[שם העבודה]]=$N$9:$O$28)*שעות_עבודה7[[#This Row],[שעות]]*($P$9:$Q$28*24)))) -> 
B103: =IF(שעות_עבודה7[[#This Row],[תאריך]]="","",ROW(A95)) ->  | I103: =IFERROR(IF(שעות_עבודה7[[#This Row],[סיום]]="","",שעות_עבודה7[[#This Row],[סיום]]-שעות_עבודה7[[#This Row],[התחלה]]+שעות_עבודה7[[#This Row],[הוספת שעות]]-שעות_עבודה7[[#This Row],[הפחתת שעות]]+(שעות_עבודה7[[#This Row],[סיום]]<שעות_עבודה7[[#This Row],[התחלה]])),"") ->  | J103: =IF(שעות_עבודה7[[#This Row],[שעות]]="","", IF(SUMPRODUCT((שעות_עבודה7[[#This Row],[שם העבודה]]=$N$9:$O$28)*שעות_עבודה7[[#This Row],[שעות]]*($P$9:$Q$28*24))=0,"", SUMPRODUCT((שעות_עבודה7[[#This Row],[שם העבודה]]=$N$9:$O$28)*שעות_עבודה7[[#This Row],[שעות]]*($P$9:$Q$28*24)))) -> 
B104: =IF(שעות_עבודה7[[#This Row],[תאריך]]="","",ROW(A96)) ->  | I104: =IFERROR(IF(שעות_עבודה7[[#This Row],[סיום]]="","",שעות_עבודה7[[#This Row],[סיום]]-שעות_עבודה7[[#This Row],[התחלה]]+שעות_עבודה7[[#This Row],[הוספת שעות]]-שעות_עבודה7[[#This Row],[הפחתת שעות]]+(שעות_עבודה7[[#This Row],[סיום]]<שעות_עבודה7[[#This Row],[התחלה]])),"") ->  | J104: =IF(שעות_עבודה7[[#This Row],[שעות]]="","", IF(SUMPRODUCT((שעות_עבודה7[[#This Row],[שם העבודה]]=$N$9:$O$28)*שעות_עבודה7[[#This Row],[שעות]]*($P$9:$Q$28*24))=0,"", SUMPRODUCT((שעות_עבודה7[[#This Row],[שם העבודה]]=$N$9:$O$28)*שעות_עבודה7[[#This Row],[שעות]]*($P$9:$Q$28*24)))) -> 
B105: =IF(שעות_עבודה7[[#This Row],[תאריך]]="","",ROW(A97)) ->  | I105: =IFERROR(IF(שעות_עבודה7[[#This Row],[סיום]]="","",שעות_עבודה7[[#This Row],[סיום]]-שעות_עבודה7[[#This Row],[התחלה]]+שעות_עבודה7[[#This Row],[הוספת שעות]]-שעות_עבודה7[[#This Row],[הפחתת שעות]]+(שעות_עבודה7[[#This Row],[סיום]]<שעות_עבודה7[[#This Row],[התחלה]])),"") ->  | J105: =IF(שעות_עבודה7[[#This Row],[שעות]]="","", IF(SUMPRODUCT((שעות_עבודה7[[#This Row],[שם העבודה]]=$N$9:$O$28)*שעות_עבודה7[[#This Row],[שעות]]*($P$9:$Q$28*24))=0,"", SUMPRODUCT((שעות_עבודה7[[#This Row],[שם העבודה]]=$N$9:$O$28)*שעות_עבודה7[[#This Row],[שעות]]*($P$9:$Q$28*24)))) -> 
B106: =IF(שעות_עבודה7[[#This Row],[תאריך]]="","",ROW(A98)) ->  | I106: =IFERROR(IF(שעות_עבודה7[[#This Row],[סיום]]="","",שעות_עבודה7[[#This Row],[סיום]]-שעות_עבודה7[[#This Row],[התחלה]]+שעות_עבודה7[[#This Row],[הוספת שעות]]-שעות_עבודה7[[#This Row],[הפחתת שעות]]+(שעות_עבודה7[[#This Row],[סיום]]<שעות_עבודה7[[#This Row],[התחלה]])),"") ->  | J106: =IF(שעות_עבודה7[[#This Row],[שעות]]="","", IF(SUMPRODUCT((שעות_עבודה7[[#This Row],[שם העבודה]]=$N$9:$O$28)*שעות_עבודה7[[#This Row],[שעות]]*($P$9:$Q$28*24))=0,"", SUMPRODUCT((שעות_עבודה7[[#This Row],[שם העבודה]]=$N$9:$O$28)*שעות_עבודה7[[#This Row],[שעות]]*($P$9:$Q$28*24)))) -> 
B107: =IF(שעות_עבודה7[[#This Row],[תאריך]]="","",ROW(A99)) ->  | I107: =IFERROR(IF(שעות_עבודה7[[#This Row],[סיום]]="","",שעות_עבודה7[[#This Row],[סיום]]-שעות_עבודה7[[#This Row],[התחלה]]+שעות_עבודה7[[#This Row],[הוספת שעות]]-שעות_עבודה7[[#This Row],[הפחתת שעות]]+(שעות_עבודה7[[#This Row],[סיום]]<שעות_עבודה7[[#This Row],[התחלה]])),"") ->  | J107: =IF(שעות_עבודה7[[#This Row],[שעות]]="","", IF(SUMPRODUCT((שעות_עבודה7[[#This Row],[שם העבודה]]=$N$9:$O$28)*שעות_עבודה7[[#This Row],[שעות]]*($P$9:$Q$28*24))=0,"", SUMPRODUCT((שעות_עבודה7[[#This Row],[שם העבודה]]=$N$9:$O$28)*שעות_עבודה7[[#This Row],[שעות]]*($P$9:$Q$28*24)))) -> 
B108: =IF(שעות_עבודה7[[#This Row],[תאריך]]="","",ROW(A100)) ->  | I108: =IFERROR(IF(שעות_עבודה7[[#This Row],[סיום]]="","",שעות_עבודה7[[#This Row],[סיום]]-שעות_עבודה7[[#This Row],[התחלה]]+שעות_עבודה7[[#This Row],[הוספת שעות]]-שעות_עבודה7[[#This Row],[הפחתת שעות]]+(שעות_עבודה7[[#This Row],[סיום]]<שעות_עבודה7[[#This Row],[התחלה]])),"") ->  | J108: =IF(שעות_עבודה7[[#This Row],[שעות]]="","", IF(SUMPRODUCT((שעות_עבודה7[[#This Row],[שם העבודה]]=$N$9:$O$28)*שעות_עבודה7[[#This Row],[שעות]]*($P$9:$Q$28*24))=0,"", SUMPRODUCT((שעות_עבודה7[[#This Row],[שם העבודה]]=$N$9:$O$28)*שעות_עבודה7[[#This Row],[שעות]]*($P$9:$Q$28*24)))) -> 
B109: =IF(שעות_עבודה7[[#This Row],[תאריך]]="","",ROW(A101)) ->  | I109: =IFERROR(IF(שעות_עבודה7[[#This Row],[סיום]]="","",שעות_עבודה7[[#This Row],[סיום]]-שעות_עבודה7[[#This Row],[התחלה]]+שעות_עבודה7[[#This Row],[הוספת שעות]]-שעות_עבודה7[[#This Row],[הפחתת שעות]]+(שעות_עבודה7[[#This Row],[סיום]]<שעות_עבודה7[[#This Row],[התחלה]])),"") ->  | J109: =IF(שעות_עבודה7[[#This Row],[שעות]]="","", IF(SUMPRODUCT((שעות_עבודה7[[#This Row],[שם העבודה]]=$N$9:$O$28)*שעות_עבודה7[[#This Row],[שעות]]*($P$9:$Q$28*24))=0,"", SUMPRODUCT((שעות_עבודה7[[#This Row],[שם העבודה]]=$N$9:$O$28)*שעות_עבודה7[[#This Row],[שעות]]*($P$9:$Q$28*24)))) -> 
B110: =IF(שעות_עבודה7[[#This Row],[תאריך]]="","",ROW(A102)) ->  | I110: =IFERROR(IF(שעות_עבודה7[[#This Row],[סיום]]="","",שעות_עבודה7[[#This Row],[סיום]]-שעות_עבודה7[[#This Row],[התחלה]]+שעות_עבודה7[[#This Row],[הוספת שעות]]-שעות_עבודה7[[#This Row],[הפחתת שעות]]+(שעות_עבודה7[[#This Row],[סיום]]<שעות_עבודה7[[#This Row],[התחלה]])),"") ->  | J110: =IF(שעות_עבודה7[[#This Row],[שעות]]="","", IF(SUMPRODUCT((שעות_עבודה7[[#This Row],[שם העבודה]]=$N$9:$O$28)*שעות_עבודה7[[#This Row],[שעות]]*($P$9:$Q$28*24))=0,"", SUMPRODUCT((שעות_עבודה7[[#This Row],[שם העבודה]]=$N$9:$O$28)*שעות_עבודה7[[#This Row],[שעות]]*($P$9:$Q$28*24)))) -> 
B111: =IF(שעות_עבודה7[[#This Row],[תאריך]]="","",ROW(A103)) ->  | I111: =IFERROR(IF(שעות_עבודה7[[#This Row],[סיום]]="","",שעות_עבודה7[[#This Row],[סיום]]-שעות_עבודה7[[#This Row],[התחלה]]+שעות_עבודה7[[#This Row],[הוספת שעות]]-שעות_עבודה7[[#This Row],[הפחתת שעות]]+(שעות_עבודה7[[#This Row],[סיום]]<שעות_עבודה7[[#This Row],[התחלה]])),"") ->  | J111: =IF(שעות_עבודה7[[#This Row],[שעות]]="","", IF(SUMPRODUCT((שעות_עבודה7[[#This Row],[שם העבודה]]=$N$9:$O$28)*שעות_עבודה7[[#This Row],[שעות]]*($P$9:$Q$28*24))=0,"", SUMPRODUCT((שעות_עבודה7[[#This Row],[שם העבודה]]=$N$9:$O$28)*שעות_עבודה7[[#This Row],[שעות]]*($P$9:$Q$28*24)))) -> 
B112: =IF(שעות_עבודה7[[#This Row],[תאריך]]="","",ROW(A104)) ->  | I112: =IFERROR(IF(שעות_עבודה7[[#This Row],[סיום]]="","",שעות_עבודה7[[#This Row],[סיום]]-שעות_עבודה7[[#This Row],[התחלה]]+שעות_עבודה7[[#This Row],[הוספת שעות]]-שעות_עבודה7[[#This Row],[הפחתת שעות]]+(שעות_עבודה7[[#This Row],[סיום]]<שעות_עבודה7[[#This Row],[התחלה]])),"") ->  | J112: =IF(שעות_עבודה7[[#This Row],[שעות]]="","", IF(SUMPRODUCT((שעות_עבודה7[[#This Row],[שם העבודה]]=$N$9:$O$28)*שעות_עבודה7[[#This Row],[שעות]]*($P$9:$Q$28*24))=0,"", SUMPRODUCT((שעות_עבודה7[[#This Row],[שם העבודה]]=$N$9:$O$28)*שעות_עבודה7[[#This Row],[שעות]]*($P$9:$Q$28*24)))) -> 
B113: =IF(שעות_עבודה7[[#This Row],[תאריך]]="","",ROW(A105)) ->  | I113: =IFERROR(IF(שעות_עבודה7[[#This Row],[סיום]]="","",שעות_עבודה7[[#This Row],[סיום]]-שעות_עבודה7[[#This Row],[התחלה]]+שעות_עבודה7[[#This Row],[הוספת שעות]]-שעות_עבודה7[[#This Row],[הפחתת שעות]]+(שעות_עבודה7[[#This Row],[סיום]]<שעות_עבודה7[[#This Row],[התחלה]])),"") ->  | J113: =IF(שעות_עבודה7[[#This Row],[שעות]]="","", IF(SUMPRODUCT((שעות_עבודה7[[#This Row],[שם העבודה]]=$N$9:$O$28)*שעות_עבודה7[[#This Row],[שעות]]*($P$9:$Q$28*24))=0,"", SUMPRODUCT((שעות_עבודה7[[#This Row],[שם העבודה]]=$N$9:$O$28)*שעות_עבודה7[[#This Row],[שעות]]*($P$9:$Q$28*24)))) -> 
B114: =IF(שעות_עבודה7[[#This Row],[תאריך]]="","",ROW(A106)) ->  | I114: =IFERROR(IF(שעות_עבודה7[[#This Row],[סיום]]="","",שעות_עבודה7[[#This Row],[סיום]]-שעות_עבודה7[[#This Row],[התחלה]]+שעות_עבודה7[[#This Row],[הוספת שעות]]-שעות_עבודה7[[#This Row],[הפחתת שעות]]+(שעות_עבודה7[[#This Row],[סיום]]<שעות_עבודה7[[#This Row],[התחלה]])),"") ->  | J114: =IF(שעות_עבודה7[[#This Row],[שעות]]="","", IF(SUMPRODUCT((שעות_עבודה7[[#This Row],[שם העבודה]]=$N$9:$O$28)*שעות_עבודה7[[#This Row],[שעות]]*($P$9:$Q$28*24))=0,"", SUMPRODUCT((שעות_עבודה7[[#This Row],[שם העבודה]]=$N$9:$O$28)*שעות_עבודה7[[#This Row],[שעות]]*($P$9:$Q$28*24)))) -> 
B115: =IF(שעות_עבודה7[[#This Row],[תאריך]]="","",ROW(A107)) ->  | I115: =IFERROR(IF(שעות_עבודה7[[#This Row],[סיום]]="","",שעות_עבודה7[[#This Row],[סיום]]-שעות_עבודה7[[#This Row],[התחלה]]+שעות_עבודה7[[#This Row],[הוספת שעות]]-שעות_עבודה7[[#This Row],[הפחתת שעות]]+(שעות_עבודה7[[#This Row],[סיום]]<שעות_עבודה7[[#This Row],[התחלה]])),"") ->  | J115: =IF(שעות_עבודה7[[#This Row],[שעות]]="","", IF(SUMPRODUCT((שעות_עבודה7[[#This Row],[שם העבודה]]=$N$9:$O$28)*שעות_עבודה7[[#This Row],[שעות]]*($P$9:$Q$28*24))=0,"", SUMPRODUCT((שעות_עבודה7[[#This Row],[שם העבודה]]=$N$9:$O$28)*שעות_עבודה7[[#This Row],[שעות]]*($P$9:$Q$28*24)))) -> 
B116: =IF(שעות_עבודה7[[#This Row],[תאריך]]="","",ROW(A108)) ->  | I116: =IFERROR(IF(שעות_עבודה7[[#This Row],[סיום]]="","",שעות_עבודה7[[#This Row],[סיום]]-שעות_עבודה7[[#This Row],[התחלה]]+שעות_עבודה7[[#This Row],[הוספת שעות]]-שעות_עבודה7[[#This Row],[הפחתת שעות]]+(שעות_עבודה7[[#This Row],[סיום]]<שעות_עבודה7[[#This Row],[התחלה]])),"") ->  | J116: =IF(שעות_עבודה7[[#This Row],[שעות]]="","", IF(SUMPRODUCT((שעות_עבודה7[[#This Row],[שם העבודה]]=$N$9:$O$28)*שעות_עבודה7[[#This Row],[שעות]]*($P$9:$Q$28*24))=0,"", SUMPRODUCT((שעות_עבודה7[[#This Row],[שם העבודה]]=$N$9:$O$28)*שעות_עבודה7[[#This Row],[שעות]]*($P$9:$Q$28*24)))) -> 
B117: =IF(שעות_עבודה7[[#This Row],[תאריך]]="","",ROW(A109)) ->  | I117: =IFERROR(IF(שעות_עבודה7[[#This Row],[סיום]]="","",שעות_עבודה7[[#This Row],[סיום]]-שעות_עבודה7[[#This Row],[התחלה]]+שעות_עבודה7[[#This Row],[הוספת שעות]]-שעות_עבודה7[[#This Row],[הפחתת שעות]]+(שעות_עבודה7[[#This Row],[סיום]]<שעות_עבודה7[[#This Row],[התחלה]])),"") ->  | J117: =IF(שעות_עבודה7[[#This Row],[שעות]]="","", IF(SUMPRODUCT((שעות_עבודה7[[#This Row],[שם העבודה]]=$N$9:$O$28)*שעות_עבודה7[[#This Row],[שעות]]*($P$9:$Q$28*24))=0,"", SUMPRODUCT((שעות_עבודה7[[#This Row],[שם העבודה]]=$N$9:$O$28)*שעות_עבודה7[[#This Row],[שעות]]*($P$9:$Q$28*24)))) -> 
B118: =IF(שעות_עבודה7[[#This Row],[תאריך]]="","",ROW(A110)) ->  | I118: =IFERROR(IF(שעות_עבודה7[[#This Row],[סיום]]="","",שעות_עבודה7[[#This Row],[סיום]]-שעות_עבודה7[[#This Row],[התחלה]]+שעות_עבודה7[[#This Row],[הוספת שעות]]-שעות_עבודה7[[#This Row],[הפחתת שעות]]+(שעות_עבודה7[[#This Row],[סיום]]<שעות_עבודה7[[#This Row],[התחלה]])),"") ->  | J118: =IF(שעות_עבודה7[[#This Row],[שעות]]="","", IF(SUMPRODUCT((שעות_עבודה7[[#This Row],[שם העבודה]]=$N$9:$O$28)*שעות_עבודה7[[#This Row],[שעות]]*($P$9:$Q$28*24))=0,"", SUMPRODUCT((שעות_עבודה7[[#This Row],[שם העבודה]]=$N$9:$O$28)*שעות_עבודה7[[#This Row],[שעות]]*($P$9:$Q$28*24)))) -> 
B119: =IF(שעות_עבודה7[[#This Row],[תאריך]]="","",ROW(A111)) ->  | I119: =IFERROR(IF(שעות_עבודה7[[#This Row],[סיום]]="","",שעות_עבודה7[[#This Row],[סיום]]-שעות_עבודה7[[#This Row],[התחלה]]+שעות_עבודה7[[#This Row],[הוספת שעות]]-שעות_עבודה7[[#This Row],[הפחתת שעות]]+(שעות_עבודה7[[#This Row],[סיום]]<שעות_עבודה7[[#This Row],[התחלה]])),"") ->  | J119: =IF(שעות_עבודה7[[#This Row],[שעות]]="","", IF(SUMPRODUCT((שעות_עבודה7[[#This Row],[שם העבודה]]=$N$9:$O$28)*שעות_עבודה7[[#This Row],[שעות]]*($P$9:$Q$28*24))=0,"", SUMPRODUCT((שעות_עבודה7[[#This Row],[שם העבודה]]=$N$9:$O$28)*שעות_עבודה7[[#This Row],[שעות]]*($P$9:$Q$28*24)))) -> 
B120: =IF(שעות_עבודה7[[#This Row],[תאריך]]="","",ROW(A112)) ->  | I120: =IFERROR(IF(שעות_עבודה7[[#This Row],[סיום]]="","",שעות_עבודה7[[#This Row],[סיום]]-שעות_עבודה7[[#This Row],[התחלה]]+שעות_עבודה7[[#This Row],[הוספת שעות]]-שעות_עבודה7[[#This Row],[הפחתת שעות]]+(שעות_עבודה7[[#This Row],[סיום]]<שעות_עבודה7[[#This Row],[התחלה]])),"") ->  | J120: =IF(שעות_עבודה7[[#This Row],[שעות]]="","", IF(SUMPRODUCT((שעות_עבודה7[[#This Row],[שם העבודה]]=$N$9:$O$28)*שעות_עבודה7[[#This Row],[שעות]]*($P$9:$Q$28*24))=0,"", SUMPRODUCT((שעות_עבודה7[[#This Row],[שם העבודה]]=$N$9:$O$28)*שעות_עבודה7[[#This Row],[שעות]]*($P$9:$Q$28*24)))) -> 
B121: =IF(שעות_עבודה7[[#This Row],[תאריך]]="","",ROW(A113)) ->  | I121: =IFERROR(IF(שעות_עבודה7[[#This Row],[סיום]]="","",שעות_עבודה7[[#This Row],[סיום]]-שעות_עבודה7[[#This Row],[התחלה]]+שעות_עבודה7[[#This Row],[הוספת שעות]]-שעות_עבודה7[[#This Row],[הפחתת שעות]]+(שעות_עבודה7[[#This Row],[סיום]]<שעות_עבודה7[[#This Row],[התחלה]])),"") ->  | J121: =IF(שעות_עבודה7[[#This Row],[שעות]]="","", IF(SUMPRODUCT((שעות_עבודה7[[#This Row],[שם העבודה]]=$N$9:$O$28)*שעות_עבודה7[[#This Row],[שעות]]*($P$9:$Q$28*24))=0,"", SUMPRODUCT((שעות_עבודה7[[#This Row],[שם העבודה]]=$N$9:$O$28)*שעות_עבודה7[[#This Row],[שעות]]*($P$9:$Q$28*24)))) -> 
B122: =IF(שעות_עבודה7[[#This Row],[תאריך]]="","",ROW(A114)) ->  | I122: =IFERROR(IF(שעות_עבודה7[[#This Row],[סיום]]="","",שעות_עבודה7[[#This Row],[סיום]]-שעות_עבודה7[[#This Row],[התחלה]]+שעות_עבודה7[[#This Row],[הוספת שעות]]-שעות_עבודה7[[#This Row],[הפחתת שעות]]+(שעות_עבודה7[[#This Row],[סיום]]<שעות_עבודה7[[#This Row],[התחלה]])),"") ->  | J122: =IF(שעות_עבודה7[[#This Row],[שעות]]="","", IF(SUMPRODUCT((שעות_עבודה7[[#This Row],[שם העבודה]]=$N$9:$O$28)*שעות_עבודה7[[#This Row],[שעות]]*($P$9:$Q$28*24))=0,"", SUMPRODUCT((שעות_עבודה7[[#This Row],[שם העבודה]]=$N$9:$O$28)*שעות_עבודה7[[#This Row],[שעות]]*($P$9:$Q$28*24)))) -> 
B123: =IF(שעות_עבודה7[[#This Row],[תאריך]]="","",ROW(A115)) ->  | I123: =IFERROR(IF(שעות_עבודה7[[#This Row],[סיום]]="","",שעות_עבודה7[[#This Row],[סיום]]-שעות_עבודה7[[#This Row],[התחלה]]+שעות_עבודה7[[#This Row],[הוספת שעות]]-שעות_עבודה7[[#This Row],[הפחתת שעות]]+(שעות_עבודה7[[#This Row],[סיום]]<שעות_עבודה7[[#This Row],[התחלה]])),"") ->  | J123: =IF(שעות_עבודה7[[#This Row],[שעות]]="","", IF(SUMPRODUCT((שעות_עבודה7[[#This Row],[שם העבודה]]=$N$9:$O$28)*שעות_עבודה7[[#This Row],[שעות]]*($P$9:$Q$28*24))=0,"", SUMPRODUCT((שעות_עבודה7[[#This Row],[שם העבודה]]=$N$9:$O$28)*שעות_עבודה7[[#This Row],[שעות]]*($P$9:$Q$28*24)))) -> 
B124: =IF(שעות_עבודה7[[#This Row],[תאריך]]="","",ROW(A116)) ->  | I124: =IFERROR(IF(שעות_עבודה7[[#This Row],[סיום]]="","",שעות_עבודה7[[#This Row],[סיום]]-שעות_עבודה7[[#This Row],[התחלה]]+שעות_עבודה7[[#This Row],[הוספת שעות]]-שעות_עבודה7[[#This Row],[הפחתת שעות]]+(שעות_עבודה7[[#This Row],[סיום]]<שעות_עבודה7[[#This Row],[התחלה]])),"") ->  | J124: =IF(שעות_עבודה7[[#This Row],[שעות]]="","", IF(SUMPRODUCT((שעות_עבודה7[[#This Row],[שם העבודה]]=$N$9:$O$28)*שעות_עבודה7[[#This Row],[שעות]]*($P$9:$Q$28*24))=0,"", SUMPRODUCT((שעות_עבודה7[[#This Row],[שם העבודה]]=$N$9:$O$28)*שעות_עבודה7[[#This Row],[שעות]]*($P$9:$Q$28*24)))) -> 
B125: =IF(שעות_עבודה7[[#This Row],[תאריך]]="","",ROW(A117)) ->  | I125: =IFERROR(IF(שעות_עבודה7[[#This Row],[סיום]]="","",שעות_עבודה7[[#This Row],[סיום]]-שעות_עבודה7[[#This Row],[התחלה]]+שעות_עבודה7[[#This Row],[הוספת שעות]]-שעות_עבודה7[[#This Row],[הפחתת שעות]]+(שעות_עבודה7[[#This Row],[סיום]]<שעות_עבודה7[[#This Row],[התחלה]])),"") ->  | J125: =IF(שעות_עבודה7[[#This Row],[שעות]]="","", IF(SUMPRODUCT((שעות_עבודה7[[#This Row],[שם העבודה]]=$N$9:$O$28)*שעות_עבודה7[[#This Row],[שעות]]*($P$9:$Q$28*24))=0,"", SUMPRODUCT((שעות_עבודה7[[#This Row],[שם העבודה]]=$N$9:$O$28)*שעות_עבודה7[[#This Row],[שעות]]*($P$9:$Q$28*24)))) -> 
B126: =IF(שעות_עבודה7[[#This Row],[תאריך]]="","",ROW(A118)) ->  | I126: =IFERROR(IF(שעות_עבודה7[[#This Row],[סיום]]="","",שעות_עבודה7[[#This Row],[סיום]]-שעות_עבודה7[[#This Row],[התחלה]]+שעות_עבודה7[[#This Row],[הוספת שעות]]-שעות_עבודה7[[#This Row],[הפחתת שעות]]+(שעות_עבודה7[[#This Row],[סיום]]<שעות_עבודה7[[#This Row],[התחלה]])),"") ->  | J126: =IF(שעות_עבודה7[[#This Row],[שעות]]="","", IF(SUMPRODUCT((שעות_עבודה7[[#This Row],[שם העבודה]]=$N$9:$O$28)*שעות_עבודה7[[#This Row],[שעות]]*($P$9:$Q$28*24))=0,"", SUMPRODUCT((שעות_עבודה7[[#This Row],[שם העבודה]]=$N$9:$O$28)*שעות_עבודה7[[#This Row],[שעות]]*($P$9:$Q$28*24)))) -> 
B127: =IF(שעות_עבודה7[[#This Row],[תאריך]]="","",ROW(A119)) ->  | I127: =IFERROR(IF(שעות_עבודה7[[#This Row],[סיום]]="","",שעות_עבודה7[[#This Row],[סיום]]-שעות_עבודה7[[#This Row],[התחלה]]+שעות_עבודה7[[#This Row],[הוספת שעות]]-שעות_עבודה7[[#This Row],[הפחתת שעות]]+(שעות_עבודה7[[#This Row],[סיום]]<שעות_עבודה7[[#This Row],[התחלה]])),"") ->  | J127: =IF(שעות_עבודה7[[#This Row],[שעות]]="","", IF(SUMPRODUCT((שעות_עבודה7[[#This Row],[שם העבודה]]=$N$9:$O$28)*שעות_עבודה7[[#This Row],[שעות]]*($P$9:$Q$28*24))=0,"", SUMPRODUCT((שעות_עבודה7[[#This Row],[שם העבודה]]=$N$9:$O$28)*שעות_עבודה7[[#This Row],[שעות]]*($P$9:$Q$28*24)))) -> 
B128: =IF(שעות_עבודה7[[#This Row],[תאריך]]="","",ROW(A120)) ->  | I128: =IFERROR(IF(שעות_עבודה7[[#This Row],[סיום]]="","",שעות_עבודה7[[#This Row],[סיום]]-שעות_עבודה7[[#This Row],[התחלה]]+שעות_עבודה7[[#This Row],[הוספת שעות]]-שעות_עבודה7[[#This Row],[הפחתת שעות]]+(שעות_עבודה7[[#This Row],[סיום]]<שעות_עבודה7[[#This Row],[התחלה]])),"") ->  | J128: =IF(שעות_עבודה7[[#This Row],[שעות]]="","", IF(SUMPRODUCT((שעות_עבודה7[[#This Row],[שם העבודה]]=$N$9:$O$28)*שעות_עבודה7[[#This Row],[שעות]]*($P$9:$Q$28*24))=0,"", SUMPRODUCT((שעות_עבודה7[[#This Row],[שם העבודה]]=$N$9:$O$28)*שעות_עבודה7[[#This Row],[שעות]]*($P$9:$Q$28*24)))) -> 
B129: =IF(שעות_עבודה7[[#This Row],[תאריך]]="","",ROW(A121)) ->  | I129: =IFERROR(IF(שעות_עבודה7[[#This Row],[סיום]]="","",שעות_עבודה7[[#This Row],[סיום]]-שעות_עבודה7[[#This Row],[התחלה]]+שעות_עבודה7[[#This Row],[הוספת שעות]]-שעות_עבודה7[[#This Row],[הפחתת שעות]]+(שעות_עבודה7[[#This Row],[סיום]]<שעות_עבודה7[[#This Row],[התחלה]])),"") ->  | J129: =IF(שעות_עבודה7[[#This Row],[שעות]]="","", IF(SUMPRODUCT((שעות_עבודה7[[#This Row],[שם העבודה]]=$N$9:$O$28)*שעות_עבודה7[[#This Row],[שעות]]*($P$9:$Q$28*24))=0,"", SUMPRODUCT((שעות_עבודה7[[#This Row],[שם העבודה]]=$N$9:$O$28)*שעות_עבודה7[[#This Row],[שעות]]*($P$9:$Q$28*24)))) -> 
B130: =IF(שעות_עבודה7[[#This Row],[תאריך]]="","",ROW(A122)) ->  | I130: =IFERROR(IF(שעות_עבודה7[[#This Row],[סיום]]="","",שעות_עבודה7[[#This Row],[סיום]]-שעות_עבודה7[[#This Row],[התחלה]]+שעות_עבודה7[[#This Row],[הוספת שעות]]-שעות_עבודה7[[#This Row],[הפחתת שעות]]+(שעות_עבודה7[[#This Row],[סיום]]<שעות_עבודה7[[#This Row],[התחלה]])),"") ->  | J130: =IF(שעות_עבודה7[[#This Row],[שעות]]="","", IF(SUMPRODUCT((שעות_עבודה7[[#This Row],[שם העבודה]]=$N$9:$O$28)*שעות_עבודה7[[#This Row],[שעות]]*($P$9:$Q$28*24))=0,"", SUMPRODUCT((שעות_עבודה7[[#This Row],[שם העבודה]]=$N$9:$O$28)*שעות_עבודה7[[#This Row],[שעות]]*($P$9:$Q$28*24)))) -> 
B131: =IF(שעות_עבודה7[[#This Row],[תאריך]]="","",ROW(A123)) ->  | I131: =IFERROR(IF(שעות_עבודה7[[#This Row],[סיום]]="","",שעות_עבודה7[[#This Row],[סיום]]-שעות_עבודה7[[#This Row],[התחלה]]+שעות_עבודה7[[#This Row],[הוספת שעות]]-שעות_עבודה7[[#This Row],[הפחתת שעות]]+(שעות_עבודה7[[#This Row],[סיום]]<שעות_עבודה7[[#This Row],[התחלה]])),"") ->  | J131: =IF(שעות_עבודה7[[#This Row],[שעות]]="","", IF(SUMPRODUCT((שעות_עבודה7[[#This Row],[שם העבודה]]=$N$9:$O$28)*שעות_עבודה7[[#This Row],[שעות]]*($P$9:$Q$28*24))=0,"", SUMPRODUCT((שעות_עבודה7[[#This Row],[שם העבודה]]=$N$9:$O$28)*שעות_עבודה7[[#This Row],[שעות]]*($P$9:$Q$28*24)))) -> 
B132: =IF(שעות_עבודה7[[#This Row],[תאריך]]="","",ROW(A124)) ->  | I132: =IFERROR(IF(שעות_עבודה7[[#This Row],[סיום]]="","",שעות_עבודה7[[#This Row],[סיום]]-שעות_עבודה7[[#This Row],[התחלה]]+שעות_עבודה7[[#This Row],[הוספת שעות]]-שעות_עבודה7[[#This Row],[הפחתת שעות]]+(שעות_עבודה7[[#This Row],[סיום]]<שעות_עבודה7[[#This Row],[התחלה]])),"") ->  | J132: =IF(שעות_עבודה7[[#This Row],[שעות]]="","", IF(SUMPRODUCT((שעות_עבודה7[[#This Row],[שם העבודה]]=$N$9:$O$28)*שעות_עבודה7[[#This Row],[שעות]]*($P$9:$Q$28*24))=0,"", SUMPRODUCT((שעות_עבודה7[[#This Row],[שם העבודה]]=$N$9:$O$28)*שעות_עבודה7[[#This Row],[שעות]]*($P$9:$Q$28*24)))) -> 
B133: =IF(שעות_עבודה7[[#This Row],[תאריך]]="","",ROW(A125)) ->  | I133: =IFERROR(IF(שעות_עבודה7[[#This Row],[סיום]]="","",שעות_עבודה7[[#This Row],[סיום]]-שעות_עבודה7[[#This Row],[התחלה]]+שעות_עבודה7[[#This Row],[הוספת שעות]]-שעות_עבודה7[[#This Row],[הפחתת שעות]]+(שעות_עבודה7[[#This Row],[סיום]]<שעות_עבודה7[[#This Row],[התחלה]])),"") ->  | J133: =IF(שעות_עבודה7[[#This Row],[שעות]]="","", IF(SUMPRODUCT((שעות_עבודה7[[#This Row],[שם העבודה]]=$N$9:$O$28)*שעות_עבודה7[[#This Row],[שעות]]*($P$9:$Q$28*24))=0,"", SUMPRODUCT((שעות_עבודה7[[#This Row],[שם העבודה]]=$N$9:$O$28)*שעות_עבודה7[[#This Row],[שעות]]*($P$9:$Q$28*24)))) -> 
B134: =IF(שעות_עבודה7[[#This Row],[תאריך]]="","",ROW(A126)) ->  | I134: =IFERROR(IF(שעות_עבודה7[[#This Row],[סיום]]="","",שעות_עבודה7[[#This Row],[סיום]]-שעות_עבודה7[[#This Row],[התחלה]]+שעות_עבודה7[[#This Row],[הוספת שעות]]-שעות_עבודה7[[#This Row],[הפחתת שעות]]+(שעות_עבודה7[[#This Row],[סיום]]<שעות_עבודה7[[#This Row],[התחלה]])),"") ->  | J134: =IF(שעות_עבודה7[[#This Row],[שעות]]="","", IF(SUMPRODUCT((שעות_עבודה7[[#This Row],[שם העבודה]]=$N$9:$O$28)*שעות_עבודה7[[#This Row],[שעות]]*($P$9:$Q$28*24))=0,"", SUMPRODUCT((שעות_עבודה7[[#This Row],[שם העבודה]]=$N$9:$O$28)*שעות_עבודה7[[#This Row],[שעות]]*($P$9:$Q$28*24)))) -> 
B135: =IF(שעות_עבודה7[[#This Row],[תאריך]]="","",ROW(A127)) ->  | I135: =IFERROR(IF(שעות_עבודה7[[#This Row],[סיום]]="","",שעות_עבודה7[[#This Row],[סיום]]-שעות_עבודה7[[#This Row],[התחלה]]+שעות_עבודה7[[#This Row],[הוספת שעות]]-שעות_עבודה7[[#This Row],[הפחתת שעות]]+(שעות_עבודה7[[#This Row],[סיום]]<שעות_עבודה7[[#This Row],[התחלה]])),"") ->  | J135: =IF(שעות_עבודה7[[#This Row],[שעות]]="","", IF(SUMPRODUCT((שעות_עבודה7[[#This Row],[שם העבודה]]=$N$9:$O$28)*שעות_עבודה7[[#This Row],[שעות]]*($P$9:$Q$28*24))=0,"", SUMPRODUCT((שעות_עבודה7[[#This Row],[שם העבודה]]=$N$9:$O$28)*שעות_עבודה7[[#This Row],[שעות]]*($P$9:$Q$28*24)))) -> 
B136: =IF(שעות_עבודה7[[#This Row],[תאריך]]="","",ROW(A128)) ->  | I136: =IFERROR(IF(שעות_עבודה7[[#This Row],[סיום]]="","",שעות_עבודה7[[#This Row],[סיום]]-שעות_עבודה7[[#This Row],[התחלה]]+שעות_עבודה7[[#This Row],[הוספת שעות]]-שעות_עבודה7[[#This Row],[הפחתת שעות]]+(שעות_עבודה7[[#This Row],[סיום]]<שעות_עבודה7[[#This Row],[התחלה]])),"") ->  | J136: =IF(שעות_עבודה7[[#This Row],[שעות]]="","", IF(SUMPRODUCT((שעות_עבודה7[[#This Row],[שם העבודה]]=$N$9:$O$28)*שעות_עבודה7[[#This Row],[שעות]]*($P$9:$Q$28*24))=0,"", SUMPRODUCT((שעות_עבודה7[[#This Row],[שם העבודה]]=$N$9:$O$28)*שעות_עבודה7[[#This Row],[שעות]]*($P$9:$Q$28*24)))) -> 
B137: =IF(שעות_עבודה7[[#This Row],[תאריך]]="","",ROW(A129)) ->  | I137: =IFERROR(IF(שעות_עבודה7[[#This Row],[סיום]]="","",שעות_עבודה7[[#This Row],[סיום]]-שעות_עבודה7[[#This Row],[התחלה]]+שעות_עבודה7[[#This Row],[הוספת שעות]]-שעות_עבודה7[[#This Row],[הפחתת שעות]]+(שעות_עבודה7[[#This Row],[סיום]]<שעות_עבודה7[[#This Row],[התחלה]])),"") ->  | J137: =IF(שעות_עבודה7[[#This Row],[שעות]]="","", IF(SUMPRODUCT((שעות_עבודה7[[#This Row],[שם העבודה]]=$N$9:$O$28)*שעות_עבודה7[[#This Row],[שעות]]*($P$9:$Q$28*24))=0,"", SUMPRODUCT((שעות_עבודה7[[#This Row],[שם העבודה]]=$N$9:$O$28)*שעות_עבודה7[[#This Row],[שעות]]*($P$9:$Q$28*24)))) -> 
B138: =IF(שעות_עבודה7[[#This Row],[תאריך]]="","",ROW(A130)) ->  | I138: =IFERROR(IF(שעות_עבודה7[[#This Row],[סיום]]="","",שעות_עבודה7[[#This Row],[סיום]]-שעות_עבודה7[[#This Row],[התחלה]]+שעות_עבודה7[[#This Row],[הוספת שעות]]-שעות_עבודה7[[#This Row],[הפחתת שעות]]+(שעות_עבודה7[[#This Row],[סיום]]<שעות_עבודה7[[#This Row],[התחלה]])),"") ->  | J138: =IF(שעות_עבודה7[[#This Row],[שעות]]="","", IF(SUMPRODUCT((שעות_עבודה7[[#This Row],[שם העבודה]]=$N$9:$O$28)*שעות_עבודה7[[#This Row],[שעות]]*($P$9:$Q$28*24))=0,"", SUMPRODUCT((שעות_עבודה7[[#This Row],[שם העבודה]]=$N$9:$O$28)*שעות_עבודה7[[#This Row],[שעות]]*($P$9:$Q$28*24)))) -> 
B139: =IF(שעות_עבודה7[[#This Row],[תאריך]]="","",ROW(A131)) ->  | I139: =IFERROR(IF(שעות_עבודה7[[#This Row],[סיום]]="","",שעות_עבודה7[[#This Row],[סיום]]-שעות_עבודה7[[#This Row],[התחלה]]+שעות_עבודה7[[#This Row],[הוספת שעות]]-שעות_עבודה7[[#This Row],[הפחתת שעות]]+(שעות_עבודה7[[#This Row],[סיום]]<שעות_עבודה7[[#This Row],[התחלה]])),"") ->  | J139: =IF(שעות_עבודה7[[#This Row],[שעות]]="","", IF(SUMPRODUCT((שעות_עבודה7[[#This Row],[שם העבודה]]=$N$9:$O$28)*שעות_עבודה7[[#This Row],[שעות]]*($P$9:$Q$28*24))=0,"", SUMPRODUCT((שעות_עבודה7[[#This Row],[שם העבודה]]=$N$9:$O$28)*שעות_עבודה7[[#This Row],[שעות]]*($P$9:$Q$28*24)))) -> 
B140: =IF(שעות_עבודה7[[#This Row],[תאריך]]="","",ROW(A132)) ->  | I140: =IFERROR(IF(שעות_עבודה7[[#This Row],[סיום]]="","",שעות_עבודה7[[#This Row],[סיום]]-שעות_עבודה7[[#This Row],[התחלה]]+שעות_עבודה7[[#This Row],[הוספת שעות]]-שעות_עבודה7[[#This Row],[הפחתת שעות]]+(שעות_עבודה7[[#This Row],[סיום]]<שעות_עבודה7[[#This Row],[התחלה]])),"") ->  | J140: =IF(שעות_עבודה7[[#This Row],[שעות]]="","", IF(SUMPRODUCT((שעות_עבודה7[[#This Row],[שם העבודה]]=$N$9:$O$28)*שעות_עבודה7[[#This Row],[שעות]]*($P$9:$Q$28*24))=0,"", SUMPRODUCT((שעות_עבודה7[[#This Row],[שם העבודה]]=$N$9:$O$28)*שעות_עבודה7[[#This Row],[שעות]]*($P$9:$Q$28*24)))) -> 
B141: =IF(שעות_עבודה7[[#This Row],[תאריך]]="","",ROW(A133)) ->  | I141: =IFERROR(IF(שעות_עבודה7[[#This Row],[סיום]]="","",שעות_עבודה7[[#This Row],[סיום]]-שעות_עבודה7[[#This Row],[התחלה]]+שעות_עבודה7[[#This Row],[הוספת שעות]]-שעות_עבודה7[[#This Row],[הפחתת שעות]]+(שעות_עבודה7[[#This Row],[סיום]]<שעות_עבודה7[[#This Row],[התחלה]])),"") ->  | J141: =IF(שעות_עבודה7[[#This Row],[שעות]]="","", IF(SUMPRODUCT((שעות_עבודה7[[#This Row],[שם העבודה]]=$N$9:$O$28)*שעות_עבודה7[[#This Row],[שעות]]*($P$9:$Q$28*24))=0,"", SUMPRODUCT((שעות_עבודה7[[#This Row],[שם העבודה]]=$N$9:$O$28)*שעות_עבודה7[[#This Row],[שעות]]*($P$9:$Q$28*24)))) -> 
B142: =IF(שעות_עבודה7[[#This Row],[תאריך]]="","",ROW(A134)) ->  | I142: =IFERROR(IF(שעות_עבודה7[[#This Row],[סיום]]="","",שעות_עבודה7[[#This Row],[סיום]]-שעות_עבודה7[[#This Row],[התחלה]]+שעות_עבודה7[[#This Row],[הוספת שעות]]-שעות_עבודה7[[#This Row],[הפחתת שעות]]+(שעות_עבודה7[[#This Row],[סיום]]<שעות_עבודה7[[#This Row],[התחלה]])),"") ->  | J142: =IF(שעות_עבודה7[[#This Row],[שעות]]="","", IF(SUMPRODUCT((שעות_עבודה7[[#This Row],[שם העבודה]]=$N$9:$O$28)*שעות_עבודה7[[#This Row],[שעות]]*($P$9:$Q$28*24))=0,"", SUMPRODUCT((שעות_עבודה7[[#This Row],[שם העבודה]]=$N$9:$O$28)*שעות_עבודה7[[#This Row],[שעות]]*($P$9:$Q$28*24)))) -> 
B143: =IF(שעות_עבודה7[[#This Row],[תאריך]]="","",ROW(A135)) ->  | I143: =IFERROR(IF(שעות_עבודה7[[#This Row],[סיום]]="","",שעות_עבודה7[[#This Row],[סיום]]-שעות_עבודה7[[#This Row],[התחלה]]+שעות_עבודה7[[#This Row],[הוספת שעות]]-שעות_עבודה7[[#This Row],[הפחתת שעות]]+(שעות_עבודה7[[#This Row],[סיום]]<שעות_עבודה7[[#This Row],[התחלה]])),"") ->  | J143: =IF(שעות_עבודה7[[#This Row],[שעות]]="","", IF(SUMPRODUCT((שעות_עבודה7[[#This Row],[שם העבודה]]=$N$9:$O$28)*שעות_עבודה7[[#This Row],[שעות]]*($P$9:$Q$28*24))=0,"", SUMPRODUCT((שעות_עבודה7[[#This Row],[שם העבודה]]=$N$9:$O$28)*שעות_עבודה7[[#This Row],[שעות]]*($P$9:$Q$28*24)))) -> 
B144: =IF(שעות_עבודה7[[#This Row],[תאריך]]="","",ROW(A136)) ->  | I144: =IFERROR(IF(שעות_עבודה7[[#This Row],[סיום]]="","",שעות_עבודה7[[#This Row],[סיום]]-שעות_עבודה7[[#This Row],[התחלה]]+שעות_עבודה7[[#This Row],[הוספת שעות]]-שעות_עבודה7[[#This Row],[הפחתת שעות]]+(שעות_עבודה7[[#This Row],[סיום]]<שעות_עבודה7[[#This Row],[התחלה]])),"") ->  | J144: =IF(שעות_עבודה7[[#This Row],[שעות]]="","", IF(SUMPRODUCT((שעות_עבודה7[[#This Row],[שם העבודה]]=$N$9:$O$28)*שעות_עבודה7[[#This Row],[שעות]]*($P$9:$Q$28*24))=0,"", SUMPRODUCT((שעות_עבודה7[[#This Row],[שם העבודה]]=$N$9:$O$28)*שעות_עבודה7[[#This Row],[שעות]]*($P$9:$Q$28*24)))) -> 
B145: =IF(שעות_עבודה7[[#This Row],[תאריך]]="","",ROW(A137)) ->  | I145: =IFERROR(IF(שעות_עבודה7[[#This Row],[סיום]]="","",שעות_עבודה7[[#This Row],[סיום]]-שעות_עבודה7[[#This Row],[התחלה]]+שעות_עבודה7[[#This Row],[הוספת שעות]]-שעות_עבודה7[[#This Row],[הפחתת שעות]]+(שעות_עבודה7[[#This Row],[סיום]]<שעות_עבודה7[[#This Row],[התחלה]])),"") ->  | J145: =IF(שעות_עבודה7[[#This Row],[שעות]]="","", IF(SUMPRODUCT((שעות_עבודה7[[#This Row],[שם העבודה]]=$N$9:$O$28)*שעות_עבודה7[[#This Row],[שעות]]*($P$9:$Q$28*24))=0,"", SUMPRODUCT((שעות_עבודה7[[#This Row],[שם העבודה]]=$N$9:$O$28)*שעות_עבודה7[[#This Row],[שעות]]*($P$9:$Q$28*24)))) -> 
B146: =IF(שעות_עבודה7[[#This Row],[תאריך]]="","",ROW(A138)) ->  | I146: =IFERROR(IF(שעות_עבודה7[[#This Row],[סיום]]="","",שעות_עבודה7[[#This Row],[סיום]]-שעות_עבודה7[[#This Row],[התחלה]]+שעות_עבודה7[[#This Row],[הוספת שעות]]-שעות_עבודה7[[#This Row],[הפחתת שעות]]+(שעות_עבודה7[[#This Row],[סיום]]<שעות_עבודה7[[#This Row],[התחלה]])),"") ->  | J146: =IF(שעות_עבודה7[[#This Row],[שעות]]="","", IF(SUMPRODUCT((שעות_עבודה7[[#This Row],[שם העבודה]]=$N$9:$O$28)*שעות_עבודה7[[#This Row],[שעות]]*($P$9:$Q$28*24))=0,"", SUMPRODUCT((שעות_עבודה7[[#This Row],[שם העבודה]]=$N$9:$O$28)*שעות_עבודה7[[#This Row],[שעות]]*($P$9:$Q$28*24)))) -> 
B147: =IF(שעות_עבודה7[[#This Row],[תאריך]]="","",ROW(A139)) ->  | I147: =IFERROR(IF(שעות_עבודה7[[#This Row],[סיום]]="","",שעות_עבודה7[[#This Row],[סיום]]-שעות_עבודה7[[#This Row],[התחלה]]+שעות_עבודה7[[#This Row],[הוספת שעות]]-שעות_עבודה7[[#This Row],[הפחתת שעות]]+(שעות_עבודה7[[#This Row],[סיום]]<שעות_עבודה7[[#This Row],[התחלה]])),"") ->  | J147: =IF(שעות_עבודה7[[#This Row],[שעות]]="","", IF(SUMPRODUCT((שעות_עבודה7[[#This Row],[שם העבודה]]=$N$9:$O$28)*שעות_עבודה7[[#This Row],[שעות]]*($P$9:$Q$28*24))=0,"", SUMPRODUCT((שעות_עבודה7[[#This Row],[שם העבודה]]=$N$9:$O$28)*שעות_עבודה7[[#This Row],[שעות]]*($P$9:$Q$28*24)))) -> 
B148: =IF(שעות_עבודה7[[#This Row],[תאריך]]="","",ROW(A140)) ->  | I148: =IFERROR(IF(שעות_עבודה7[[#This Row],[סיום]]="","",שעות_עבודה7[[#This Row],[סיום]]-שעות_עבודה7[[#This Row],[התחלה]]+שעות_עבודה7[[#This Row],[הוספת שעות]]-שעות_עבודה7[[#This Row],[הפחתת שעות]]+(שעות_עבודה7[[#This Row],[סיום]]<שעות_עבודה7[[#This Row],[התחלה]])),"") ->  | J148: =IF(שעות_עבודה7[[#This Row],[שעות]]="","", IF(SUMPRODUCT((שעות_עבודה7[[#This Row],[שם העבודה]]=$N$9:$O$28)*שעות_עבודה7[[#This Row],[שעות]]*($P$9:$Q$28*24))=0,"", SUMPRODUCT((שעות_עבודה7[[#This Row],[שם העבודה]]=$N$9:$O$28)*שעות_עבודה7[[#This Row],[שעות]]*($P$9:$Q$28*24)))) -> 
B149: =IF(שעות_עבודה7[[#This Row],[תאריך]]="","",ROW(A141)) ->  | I149: =IFERROR(IF(שעות_עבודה7[[#This Row],[סיום]]="","",שעות_עבודה7[[#This Row],[סיום]]-שעות_עבודה7[[#This Row],[התחלה]]+שעות_עבודה7[[#This Row],[הוספת שעות]]-שעות_עבודה7[[#This Row],[הפחתת שעות]]+(שעות_עבודה7[[#This Row],[סיום]]<שעות_עבודה7[[#This Row],[התחלה]])),"") ->  | J149: =IF(שעות_עבודה7[[#This Row],[שעות]]="","", IF(SUMPRODUCT((שעות_עבודה7[[#This Row],[שם העבודה]]=$N$9:$O$28)*שעות_עבודה7[[#This Row],[שעות]]*($P$9:$Q$28*24))=0,"", SUMPRODUCT((שעות_עבודה7[[#This Row],[שם העבודה]]=$N$9:$O$28)*שעות_עבודה7[[#This Row],[שעות]]*($P$9:$Q$28*24)))) -> 
B150: =IF(שעות_עבודה7[[#This Row],[תאריך]]="","",ROW(A142)) ->  | I150: =IFERROR(IF(שעות_עבודה7[[#This Row],[סיום]]="","",שעות_עבודה7[[#This Row],[סיום]]-שעות_עבודה7[[#This Row],[התחלה]]+שעות_עבודה7[[#This Row],[הוספת שעות]]-שעות_עבודה7[[#This Row],[הפחתת שעות]]+(שעות_עבודה7[[#This Row],[סיום]]<שעות_עבודה7[[#This Row],[התחלה]])),"") ->  | J150: =IF(שעות_עבודה7[[#This Row],[שעות]]="","", IF(SUMPRODUCT((שעות_עבודה7[[#This Row],[שם העבודה]]=$N$9:$O$28)*שעות_עבודה7[[#This Row],[שעות]]*($P$9:$Q$28*24))=0,"", SUMPRODUCT((שעות_עבודה7[[#This Row],[שם העבודה]]=$N$9:$O$28)*שעות_עבודה7[[#This Row],[שעות]]*($P$9:$Q$28*24)))) -> 
B151: =IF(שעות_עבודה7[[#This Row],[תאריך]]="","",ROW(A143)) ->  | I151: =IFERROR(IF(שעות_עבודה7[[#This Row],[סיום]]="","",שעות_עבודה7[[#This Row],[סיום]]-שעות_עבודה7[[#This Row],[התחלה]]+שעות_עבודה7[[#This Row],[הוספת שעות]]-שעות_עבודה7[[#This Row],[הפחתת שעות]]+(שעות_עבודה7[[#This Row],[סיום]]<שעות_עבודה7[[#This Row],[התחלה]])),"") ->  | J151: =IF(שעות_עבודה7[[#This Row],[שעות]]="","", IF(SUMPRODUCT((שעות_עבודה7[[#This Row],[שם העבודה]]=$N$9:$O$28)*שעות_עבודה7[[#This Row],[שעות]]*($P$9:$Q$28*24))=0,"", SUMPRODUCT((שעות_עבודה7[[#This Row],[שם העבודה]]=$N$9:$O$28)*שעות_עבודה7[[#This Row],[שעות]]*($P$9:$Q$28*24)))) -> 
B152: =IF(שעות_עבודה7[[#This Row],[תאריך]]="","",ROW(A144)) ->  | I152: =IFERROR(IF(שעות_עבודה7[[#This Row],[סיום]]="","",שעות_עבודה7[[#This Row],[סיום]]-שעות_עבודה7[[#This Row],[התחלה]]+שעות_עבודה7[[#This Row],[הוספת שעות]]-שעות_עבודה7[[#This Row],[הפחתת שעות]]+(שעות_עבודה7[[#This Row],[סיום]]<שעות_עבודה7[[#This Row],[התחלה]])),"") ->  | J152: =IF(שעות_עבודה7[[#This Row],[שעות]]="","", IF(SUMPRODUCT((שעות_עבודה7[[#This Row],[שם העבודה]]=$N$9:$O$28)*שעות_עבודה7[[#This Row],[שעות]]*($P$9:$Q$28*24))=0,"", SUMPRODUCT((שעות_עבודה7[[#This Row],[שם העבודה]]=$N$9:$O$28)*שעות_עבודה7[[#This Row],[שעות]]*($P$9:$Q$28*24)))) -> 
B153: =IF(שעות_עבודה7[[#This Row],[תאריך]]="","",ROW(A145)) ->  | I153: =IFERROR(IF(שעות_עבודה7[[#This Row],[סיום]]="","",שעות_עבודה7[[#This Row],[סיום]]-שעות_עבודה7[[#This Row],[התחלה]]+שעות_עבודה7[[#This Row],[הוספת שעות]]-שעות_עבודה7[[#This Row],[הפחתת שעות]]+(שעות_עבודה7[[#This Row],[סיום]]<שעות_עבודה7[[#This Row],[התחלה]])),"") ->  | J153: =IF(שעות_עבודה7[[#This Row],[שעות]]="","", IF(SUMPRODUCT((שעות_עבודה7[[#This Row],[שם העבודה]]=$N$9:$O$28)*שעות_עבודה7[[#This Row],[שעות]]*($P$9:$Q$28*24))=0,"", SUMPRODUCT((שעות_עבודה7[[#This Row],[שם העבודה]]=$N$9:$O$28)*שעות_עבודה7[[#This Row],[שעות]]*($P$9:$Q$28*24)))) -> 
B154: =IF(שעות_עבודה7[[#This Row],[תאריך]]="","",ROW(A146)) ->  | I154: =IFERROR(IF(שעות_עבודה7[[#This Row],[סיום]]="","",שעות_עבודה7[[#This Row],[סיום]]-שעות_עבודה7[[#This Row],[התחלה]]+שעות_עבודה7[[#This Row],[הוספת שעות]]-שעות_עבודה7[[#This Row],[הפחתת שעות]]+(שעות_עבודה7[[#This Row],[סיום]]<שעות_עבודה7[[#This Row],[התחלה]])),"") ->  | J154: =IF(שעות_עבודה7[[#This Row],[שעות]]="","", IF(SUMPRODUCT((שעות_עבודה7[[#This Row],[שם העבודה]]=$N$9:$O$28)*שעות_עבודה7[[#This Row],[שעות]]*($P$9:$Q$28*24))=0,"", SUMPRODUCT((שעות_עבודה7[[#This Row],[שם העבודה]]=$N$9:$O$28)*שעות_עבודה7[[#This Row],[שעות]]*($P$9:$Q$28*24)))) -> 
B155: =IF(שעות_עבודה7[[#This Row],[תאריך]]="","",ROW(A147)) ->  | I155: =IFERROR(IF(שעות_עבודה7[[#This Row],[סיום]]="","",שעות_עבודה7[[#This Row],[סיום]]-שעות_עבודה7[[#This Row],[התחלה]]+שעות_עבודה7[[#This Row],[הוספת שעות]]-שעות_עבודה7[[#This Row],[הפחתת שעות]]+(שעות_עבודה7[[#This Row],[סיום]]<שעות_עבודה7[[#This Row],[התחלה]])),"") ->  | J155: =IF(שעות_עבודה7[[#This Row],[שעות]]="","", IF(SUMPRODUCT((שעות_עבודה7[[#This Row],[שם העבודה]]=$N$9:$O$28)*שעות_עבודה7[[#This Row],[שעות]]*($P$9:$Q$28*24))=0,"", SUMPRODUCT((שעות_עבודה7[[#This Row],[שם העבודה]]=$N$9:$O$28)*שעות_עבודה7[[#This Row],[שעות]]*($P$9:$Q$28*24)))) -> 
B156: =IF(שעות_עבודה7[[#This Row],[תאריך]]="","",ROW(A148)) ->  | I156: =IFERROR(IF(שעות_עבודה7[[#This Row],[סיום]]="","",שעות_עבודה7[[#This Row],[סיום]]-שעות_עבודה7[[#This Row],[התחלה]]+שעות_עבודה7[[#This Row],[הוספת שעות]]-שעות_עבודה7[[#This Row],[הפחתת שעות]]+(שעות_עבודה7[[#This Row],[סיום]]<שעות_עבודה7[[#This Row],[התחלה]])),"") ->  | J156: =IF(שעות_עבודה7[[#This Row],[שעות]]="","", IF(SUMPRODUCT((שעות_עבודה7[[#This Row],[שם העבודה]]=$N$9:$O$28)*שעות_עבודה7[[#This Row],[שעות]]*($P$9:$Q$28*24))=0,"", SUMPRODUCT((שעות_עבודה7[[#This Row],[שם העבודה]]=$N$9:$O$28)*שעות_עבודה7[[#This Row],[שעות]]*($P$9:$Q$28*24)))) -> 
B157: =IF(שעות_עבודה7[[#This Row],[תאריך]]="","",ROW(A149)) ->  | I157: =IFERROR(IF(שעות_עבודה7[[#This Row],[סיום]]="","",שעות_עבודה7[[#This Row],[סיום]]-שעות_עבודה7[[#This Row],[התחלה]]+שעות_עבודה7[[#This Row],[הוספת שעות]]-שעות_עבודה7[[#This Row],[הפחתת שעות]]+(שעות_עבודה7[[#This Row],[סיום]]<שעות_עבודה7[[#This Row],[התחלה]])),"") ->  | J157: =IF(שעות_עבודה7[[#This Row],[שעות]]="","", IF(SUMPRODUCT((שעות_עבודה7[[#This Row],[שם העבודה]]=$N$9:$O$28)*שעות_עבודה7[[#This Row],[שעות]]*($P$9:$Q$28*24))=0,"", SUMPRODUCT((שעות_עבודה7[[#This Row],[שם העבודה]]=$N$9:$O$28)*שעות_עבודה7[[#This Row],[שעות]]*($P$9:$Q$28*24)))) -> 
B158: =IF(שעות_עבודה7[[#This Row],[תאריך]]="","",ROW(A150)) ->  | I158: =IFERROR(IF(שעות_עבודה7[[#This Row],[סיום]]="","",שעות_עבודה7[[#This Row],[סיום]]-שעות_עבודה7[[#This Row],[התחלה]]+שעות_עבודה7[[#This Row],[הוספת שעות]]-שעות_עבודה7[[#This Row],[הפחתת שעות]]+(שעות_עבודה7[[#This Row],[סיום]]<שעות_עבודה7[[#This Row],[התחלה]])),"") ->  | J158: =IF(שעות_עבודה7[[#This Row],[שעות]]="","", IF(SUMPRODUCT((שעות_עבודה7[[#This Row],[שם העבודה]]=$N$9:$O$28)*שעות_עבודה7[[#This Row],[שעות]]*($P$9:$Q$28*24))=0,"", SUMPRODUCT((שעות_עבודה7[[#This Row],[שם העבודה]]=$N$9:$O$28)*שעות_עבודה7[[#This Row],[שעות]]*($P$9:$Q$28*24)))) -> 
B159: =IF(שעות_עבודה7[[#This Row],[תאריך]]="","",ROW(A151)) ->  | I159: =IFERROR(IF(שעות_עבודה7[[#This Row],[סיום]]="","",שעות_עבודה7[[#This Row],[סיום]]-שעות_עבודה7[[#This Row],[התחלה]]+שעות_עבודה7[[#This Row],[הוספת שעות]]-שעות_עבודה7[[#This Row],[הפחתת שעות]]+(שעות_עבודה7[[#This Row],[סיום]]<שעות_עבודה7[[#This Row],[התחלה]])),"") ->  | J159: =IF(שעות_עבודה7[[#This Row],[שעות]]="","", IF(SUMPRODUCT((שעות_עבודה7[[#This Row],[שם העבודה]]=$N$9:$O$28)*שעות_עבודה7[[#This Row],[שעות]]*($P$9:$Q$28*24))=0,"", SUMPRODUCT((שעות_עבודה7[[#This Row],[שם העבודה]]=$N$9:$O$28)*שעות_עבודה7[[#This Row],[שעות]]*($P$9:$Q$28*24)))) -> 
B160: =IF(שעות_עבודה7[[#This Row],[תאריך]]="","",ROW(A152)) ->  | I160: =IFERROR(IF(שעות_עבודה7[[#This Row],[סיום]]="","",שעות_עבודה7[[#This Row],[סיום]]-שעות_עבודה7[[#This Row],[התחלה]]+שעות_עבודה7[[#This Row],[הוספת שעות]]-שעות_עבודה7[[#This Row],[הפחתת שעות]]+(שעות_עבודה7[[#This Row],[סיום]]<שעות_עבודה7[[#This Row],[התחלה]])),"") ->  | J160: =IF(שעות_עבודה7[[#This Row],[שעות]]="","", IF(SUMPRODUCT((שעות_עבודה7[[#This Row],[שם העבודה]]=$N$9:$O$28)*שעות_עבודה7[[#This Row],[שעות]]*($P$9:$Q$28*24))=0,"", SUMPRODUCT((שעות_עבודה7[[#This Row],[שם העבודה]]=$N$9:$O$28)*שעות_עבודה7[[#This Row],[שעות]]*($P$9:$Q$28*24)))) -> 
B161: =IF(שעות_עבודה7[[#This Row],[תאריך]]="","",ROW(A153)) ->  | I161: =IFERROR(IF(שעות_עבודה7[[#This Row],[סיום]]="","",שעות_עבודה7[[#This Row],[סיום]]-שעות_עבודה7[[#This Row],[התחלה]]+שעות_עבודה7[[#This Row],[הוספת שעות]]-שעות_עבודה7[[#This Row],[הפחתת שעות]]+(שעות_עבודה7[[#This Row],[סיום]]<שעות_עבודה7[[#This Row],[התחלה]])),"") ->  | J161: =IF(שעות_עבודה7[[#This Row],[שעות]]="","", IF(SUMPRODUCT((שעות_עבודה7[[#This Row],[שם העבודה]]=$N$9:$O$28)*שעות_עבודה7[[#This Row],[שעות]]*($P$9:$Q$28*24))=0,"", SUMPRODUCT((שעות_עבודה7[[#This Row],[שם העבודה]]=$N$9:$O$28)*שעות_עבודה7[[#This Row],[שעות]]*($P$9:$Q$28*24)))) -> 
B162: =IF(שעות_עבודה7[[#This Row],[תאריך]]="","",ROW(A154)) ->  | I162: =IFERROR(IF(שעות_עבודה7[[#This Row],[סיום]]="","",שעות_עבודה7[[#This Row],[סיום]]-שעות_עבודה7[[#This Row],[התחלה]]+שעות_עבודה7[[#This Row],[הוספת שעות]]-שעות_עבודה7[[#This Row],[הפחתת שעות]]+(שעות_עבודה7[[#This Row],[סיום]]<שעות_עבודה7[[#This Row],[התחלה]])),"") ->  | J162: =IF(שעות_עבודה7[[#This Row],[שעות]]="","", IF(SUMPRODUCT((שעות_עבודה7[[#This Row],[שם העבודה]]=$N$9:$O$28)*שעות_עבודה7[[#This Row],[שעות]]*($P$9:$Q$28*24))=0,"", SUMPRODUCT((שעות_עבודה7[[#This Row],[שם העבודה]]=$N$9:$O$28)*שעות_עבודה7[[#This Row],[שעות]]*($P$9:$Q$28*24)))) -> 
B163: =IF(שעות_עבודה7[[#This Row],[תאריך]]="","",ROW(A155)) ->  | I163: =IFERROR(IF(שעות_עבודה7[[#This Row],[סיום]]="","",שעות_עבודה7[[#This Row],[סיום]]-שעות_עבודה7[[#This Row],[התחלה]]+שעות_עבודה7[[#This Row],[הוספת שעות]]-שעות_עבודה7[[#This Row],[הפחתת שעות]]+(שעות_עבודה7[[#This Row],[סיום]]<שעות_עבודה7[[#This Row],[התחלה]])),"") ->  | J163: =IF(שעות_עבודה7[[#This Row],[שעות]]="","", IF(SUMPRODUCT((שעות_עבודה7[[#This Row],[שם העבודה]]=$N$9:$O$28)*שעות_עבודה7[[#This Row],[שעות]]*($P$9:$Q$28*24))=0,"", SUMPRODUCT((שעות_עבודה7[[#This Row],[שם העבודה]]=$N$9:$O$28)*שעות_עבודה7[[#This Row],[שעות]]*($P$9:$Q$28*24)))) -> 
B164: =IF(שעות_עבודה7[[#This Row],[תאריך]]="","",ROW(A156)) ->  | I164: =IFERROR(IF(שעות_עבודה7[[#This Row],[סיום]]="","",שעות_עבודה7[[#This Row],[סיום]]-שעות_עבודה7[[#This Row],[התחלה]]+שעות_עבודה7[[#This Row],[הוספת שעות]]-שעות_עבודה7[[#This Row],[הפחתת שעות]]+(שעות_עבודה7[[#This Row],[סיום]]<שעות_עבודה7[[#This Row],[התחלה]])),"") ->  | J164: =IF(שעות_עבודה7[[#This Row],[שעות]]="","", IF(SUMPRODUCT((שעות_עבודה7[[#This Row],[שם העבודה]]=$N$9:$O$28)*שעות_עבודה7[[#This Row],[שעות]]*($P$9:$Q$28*24))=0,"", SUMPRODUCT((שעות_עבודה7[[#This Row],[שם העבודה]]=$N$9:$O$28)*שעות_עבודה7[[#This Row],[שעות]]*($P$9:$Q$28*24)))) -> 
B165: =IF(שעות_עבודה7[[#This Row],[תאריך]]="","",ROW(A157)) ->  | I165: =IFERROR(IF(שעות_עבודה7[[#This Row],[סיום]]="","",שעות_עבודה7[[#This Row],[סיום]]-שעות_עבודה7[[#This Row],[התחלה]]+שעות_עבודה7[[#This Row],[הוספת שעות]]-שעות_עבודה7[[#This Row],[הפחתת שעות]]+(שעות_עבודה7[[#This Row],[סיום]]<שעות_עבודה7[[#This Row],[התחלה]])),"") ->  | J165: =IF(שעות_עבודה7[[#This Row],[שעות]]="","", IF(SUMPRODUCT((שעות_עבודה7[[#This Row],[שם העבודה]]=$N$9:$O$28)*שעות_עבודה7[[#This Row],[שעות]]*($P$9:$Q$28*24))=0,"", SUMPRODUCT((שעות_עבודה7[[#This Row],[שם העבודה]]=$N$9:$O$28)*שעות_עבודה7[[#This Row],[שעות]]*($P$9:$Q$28*24)))) -> 
B166: =IF(שעות_עבודה7[[#This Row],[תאריך]]="","",ROW(A158)) ->  | I166: =IFERROR(IF(שעות_עבודה7[[#This Row],[סיום]]="","",שעות_עבודה7[[#This Row],[סיום]]-שעות_עבודה7[[#This Row],[התחלה]]+שעות_עבודה7[[#This Row],[הוספת שעות]]-שעות_עבודה7[[#This Row],[הפחתת שעות]]+(שעות_עבודה7[[#This Row],[סיום]]<שעות_עבודה7[[#This Row],[התחלה]])),"") ->  | J166: =IF(שעות_עבודה7[[#This Row],[שעות]]="","", IF(SUMPRODUCT((שעות_עבודה7[[#This Row],[שם העבודה]]=$N$9:$O$28)*שעות_עבודה7[[#This Row],[שעות]]*($P$9:$Q$28*24))=0,"", SUMPRODUCT((שעות_עבודה7[[#This Row],[שם העבודה]]=$N$9:$O$28)*שעות_עבודה7[[#This Row],[שעות]]*($P$9:$Q$28*24)))) -> 
B167: =IF(שעות_עבודה7[[#This Row],[תאריך]]="","",ROW(A159)) ->  | I167: =IFERROR(IF(שעות_עבודה7[[#This Row],[סיום]]="","",שעות_עבודה7[[#This Row],[סיום]]-שעות_עבודה7[[#This Row],[התחלה]]+שעות_עבודה7[[#This Row],[הוספת שעות]]-שעות_עבודה7[[#This Row],[הפחתת שעות]]+(שעות_עבודה7[[#This Row],[סיום]]<שעות_עבודה7[[#This Row],[התחלה]])),"") ->  | J167: =IF(שעות_עבודה7[[#This Row],[שעות]]="","", IF(SUMPRODUCT((שעות_עבודה7[[#This Row],[שם העבודה]]=$N$9:$O$28)*שעות_עבודה7[[#This Row],[שעות]]*($P$9:$Q$28*24))=0,"", SUMPRODUCT((שעות_עבודה7[[#This Row],[שם העבודה]]=$N$9:$O$28)*שעות_עבודה7[[#This Row],[שעות]]*($P$9:$Q$28*24)))) -> 
B168: =IF(שעות_עבודה7[[#This Row],[תאריך]]="","",ROW(A160)) ->  | I168: =IFERROR(IF(שעות_עבודה7[[#This Row],[סיום]]="","",שעות_עבודה7[[#This Row],[סיום]]-שעות_עבודה7[[#This Row],[התחלה]]+שעות_עבודה7[[#This Row],[הוספת שעות]]-שעות_עבודה7[[#This Row],[הפחתת שעות]]+(שעות_עבודה7[[#This Row],[סיום]]<שעות_עבודה7[[#This Row],[התחלה]])),"") ->  | J168: =IF(שעות_עבודה7[[#This Row],[שעות]]="","", IF(SUMPRODUCT((שעות_עבודה7[[#This Row],[שם העבודה]]=$N$9:$O$28)*שעות_עבודה7[[#This Row],[שעות]]*($P$9:$Q$28*24))=0,"", SUMPRODUCT((שעות_עבודה7[[#This Row],[שם העבודה]]=$N$9:$O$28)*שעות_עבודה7[[#This Row],[שעות]]*($P$9:$Q$28*24)))) -> 
B169: =IF(שעות_עבודה7[[#This Row],[תאריך]]="","",ROW(A161)) ->  | I169: =IFERROR(IF(שעות_עבודה7[[#This Row],[סיום]]="","",שעות_עבודה7[[#This Row],[סיום]]-שעות_עבודה7[[#This Row],[התחלה]]+שעות_עבודה7[[#This Row],[הוספת שעות]]-שעות_עבודה7[[#This Row],[הפחתת שעות]]+(שעות_עבודה7[[#This Row],[סיום]]<שעות_עבודה7[[#This Row],[התחלה]])),"") ->  | J169: =IF(שעות_עבודה7[[#This Row],[שעות]]="","", IF(SUMPRODUCT((שעות_עבודה7[[#This Row],[שם העבודה]]=$N$9:$O$28)*שעות_עבודה7[[#This Row],[שעות]]*($P$9:$Q$28*24))=0,"", SUMPRODUCT((שעות_עבודה7[[#This Row],[שם העבודה]]=$N$9:$O$28)*שעות_עבודה7[[#This Row],[שעות]]*($P$9:$Q$28*24)))) -> 
B170: =IF(שעות_עבודה7[[#This Row],[תאריך]]="","",ROW(A162)) ->  | I170: =IFERROR(IF(שעות_עבודה7[[#This Row],[סיום]]="","",שעות_עבודה7[[#This Row],[סיום]]-שעות_עבודה7[[#This Row],[התחלה]]+שעות_עבודה7[[#This Row],[הוספת שעות]]-שעות_עבודה7[[#This Row],[הפחתת שעות]]+(שעות_עבודה7[[#This Row],[סיום]]<שעות_עבודה7[[#This Row],[התחלה]])),"") ->  | J170: =IF(שעות_עבודה7[[#This Row],[שעות]]="","", IF(SUMPRODUCT((שעות_עבודה7[[#This Row],[שם העבודה]]=$N$9:$O$28)*שעות_עבודה7[[#This Row],[שעות]]*($P$9:$Q$28*24))=0,"", SUMPRODUCT((שעות_עבודה7[[#This Row],[שם העבודה]]=$N$9:$O$28)*שעות_עבודה7[[#This Row],[שעות]]*($P$9:$Q$28*24)))) -> 
B171: =IF(שעות_עבודה7[[#This Row],[תאריך]]="","",ROW(A163)) ->  | I171: =IFERROR(IF(שעות_עבודה7[[#This Row],[סיום]]="","",שעות_עבודה7[[#This Row],[סיום]]-שעות_עבודה7[[#This Row],[התחלה]]+שעות_עבודה7[[#This Row],[הוספת שעות]]-שעות_עבודה7[[#This Row],[הפחתת שעות]]+(שעות_עבודה7[[#This Row],[סיום]]<שעות_עבודה7[[#This Row],[התחלה]])),"") ->  | J171: =IF(שעות_עבודה7[[#This Row],[שעות]]="","", IF(SUMPRODUCT((שעות_עבודה7[[#This Row],[שם העבודה]]=$N$9:$O$28)*שעות_עבודה7[[#This Row],[שעות]]*($P$9:$Q$28*24))=0,"", SUMPRODUCT((שעות_עבודה7[[#This Row],[שם העבודה]]=$N$9:$O$28)*שעות_עבודה7[[#This Row],[שעות]]*($P$9:$Q$28*24)))) -> 
B172: =IF(שעות_עבודה7[[#This Row],[תאריך]]="","",ROW(A164)) ->  | I172: =IFERROR(IF(שעות_עבודה7[[#This Row],[סיום]]="","",שעות_עבודה7[[#This Row],[סיום]]-שעות_עבודה7[[#This Row],[התחלה]]+שעות_עבודה7[[#This Row],[הוספת שעות]]-שעות_עבודה7[[#This Row],[הפחתת שעות]]+(שעות_עבודה7[[#This Row],[סיום]]<שעות_עבודה7[[#This Row],[התחלה]])),"") ->  | J172: =IF(שעות_עבודה7[[#This Row],[שעות]]="","", IF(SUMPRODUCT((שעות_עבודה7[[#This Row],[שם העבודה]]=$N$9:$O$28)*שעות_עבודה7[[#This Row],[שעות]]*($P$9:$Q$28*24))=0,"", SUMPRODUCT((שעות_עבודה7[[#This Row],[שם העבודה]]=$N$9:$O$28)*שעות_עבודה7[[#This Row],[שעות]]*($P$9:$Q$28*24)))) -> 
B173: =IF(שעות_עבודה7[[#This Row],[תאריך]]="","",ROW(A165)) ->  | I173: =IFERROR(IF(שעות_עבודה7[[#This Row],[סיום]]="","",שעות_עבודה7[[#This Row],[סיום]]-שעות_עבודה7[[#This Row],[התחלה]]+שעות_עבודה7[[#This Row],[הוספת שעות]]-שעות_עבודה7[[#This Row],[הפחתת שעות]]+(שעות_עבודה7[[#This Row],[סיום]]<שעות_עבודה7[[#This Row],[התחלה]])),"") ->  | J173: =IF(שעות_עבודה7[[#This Row],[שעות]]="","", IF(SUMPRODUCT((שעות_עבודה7[[#This Row],[שם העבודה]]=$N$9:$O$28)*שעות_עבודה7[[#This Row],[שעות]]*($P$9:$Q$28*24))=0,"", SUMPRODUCT((שעות_עבודה7[[#This Row],[שם העבודה]]=$N$9:$O$28)*שעות_עבודה7[[#This Row],[שעות]]*($P$9:$Q$28*24)))) -> 
B174: =IF(שעות_עבודה7[[#This Row],[תאריך]]="","",ROW(A166)) ->  | I174: =IFERROR(IF(שעות_עבודה7[[#This Row],[סיום]]="","",שעות_עבודה7[[#This Row],[סיום]]-שעות_עבודה7[[#This Row],[התחלה]]+שעות_עבודה7[[#This Row],[הוספת שעות]]-שעות_עבודה7[[#This Row],[הפחתת שעות]]+(שעות_עבודה7[[#This Row],[סיום]]<שעות_עבודה7[[#This Row],[התחלה]])),"") ->  | J174: =IF(שעות_עבודה7[[#This Row],[שעות]]="","", IF(SUMPRODUCT((שעות_עבודה7[[#This Row],[שם העבודה]]=$N$9:$O$28)*שעות_עבודה7[[#This Row],[שעות]]*($P$9:$Q$28*24))=0,"", SUMPRODUCT((שעות_עבודה7[[#This Row],[שם העבודה]]=$N$9:$O$28)*שעות_עבודה7[[#This Row],[שעות]]*($P$9:$Q$28*24)))) -> 
B175: =IF(שעות_עבודה7[[#This Row],[תאריך]]="","",ROW(A167)) ->  | I175: =IFERROR(IF(שעות_עבודה7[[#This Row],[סיום]]="","",שעות_עבודה7[[#This Row],[סיום]]-שעות_עבודה7[[#This Row],[התחלה]]+שעות_עבודה7[[#This Row],[הוספת שעות]]-שעות_עבודה7[[#This Row],[הפחתת שעות]]+(שעות_עבודה7[[#This Row],[סיום]]<שעות_עבודה7[[#This Row],[התחלה]])),"") ->  | J175: =IF(שעות_עבודה7[[#This Row],[שעות]]="","", IF(SUMPRODUCT((שעות_עבודה7[[#This Row],[שם העבודה]]=$N$9:$O$28)*שעות_עבודה7[[#This Row],[שעות]]*($P$9:$Q$28*24))=0,"", SUMPRODUCT((שעות_עבודה7[[#This Row],[שם העבודה]]=$N$9:$O$28)*שעות_עבודה7[[#This Row],[שעות]]*($P$9:$Q$28*24)))) -> 
B176: =IF(שעות_עבודה7[[#This Row],[תאריך]]="","",ROW(A168)) ->  | I176: =IFERROR(IF(שעות_עבודה7[[#This Row],[סיום]]="","",שעות_עבודה7[[#This Row],[סיום]]-שעות_עבודה7[[#This Row],[התחלה]]+שעות_עבודה7[[#This Row],[הוספת שעות]]-שעות_עבודה7[[#This Row],[הפחתת שעות]]+(שעות_עבודה7[[#This Row],[סיום]]<שעות_עבודה7[[#This Row],[התחלה]])),"") ->  | J176: =IF(שעות_עבודה7[[#This Row],[שעות]]="","", IF(SUMPRODUCT((שעות_עבודה7[[#This Row],[שם העבודה]]=$N$9:$O$28)*שעות_עבודה7[[#This Row],[שעות]]*($P$9:$Q$28*24))=0,"", SUMPRODUCT((שעות_עבודה7[[#This Row],[שם העבודה]]=$N$9:$O$28)*שעות_עבודה7[[#This Row],[שעות]]*($P$9:$Q$28*24)))) -> 
B177: =IF(שעות_עבודה7[[#This Row],[תאריך]]="","",ROW(A169)) ->  | I177: =IFERROR(IF(שעות_עבודה7[[#This Row],[סיום]]="","",שעות_עבודה7[[#This Row],[סיום]]-שעות_עבודה7[[#This Row],[התחלה]]+שעות_עבודה7[[#This Row],[הוספת שעות]]-שעות_עבודה7[[#This Row],[הפחתת שעות]]+(שעות_עבודה7[[#This Row],[סיום]]<שעות_עבודה7[[#This Row],[התחלה]])),"") ->  | J177: =IF(שעות_עבודה7[[#This Row],[שעות]]="","", IF(SUMPRODUCT((שעות_עבודה7[[#This Row],[שם העבודה]]=$N$9:$O$28)*שעות_עבודה7[[#This Row],[שעות]]*($P$9:$Q$28*24))=0,"", SUMPRODUCT((שעות_עבודה7[[#This Row],[שם העבודה]]=$N$9:$O$28)*שעות_עבודה7[[#This Row],[שעות]]*($P$9:$Q$28*24)))) -> 
B178: =IF(שעות_עבודה7[[#This Row],[תאריך]]="","",ROW(A170)) ->  | I178: =IFERROR(IF(שעות_עבודה7[[#This Row],[סיום]]="","",שעות_עבודה7[[#This Row],[סיום]]-שעות_עבודה7[[#This Row],[התחלה]]+שעות_עבודה7[[#This Row],[הוספת שעות]]-שעות_עבודה7[[#This Row],[הפחתת שעות]]+(שעות_עבודה7[[#This Row],[סיום]]<שעות_עבודה7[[#This Row],[התחלה]])),"") ->  | J178: =IF(שעות_עבודה7[[#This Row],[שעות]]="","", IF(SUMPRODUCT((שעות_עבודה7[[#This Row],[שם העבודה]]=$N$9:$O$28)*שעות_עבודה7[[#This Row],[שעות]]*($P$9:$Q$28*24))=0,"", SUMPRODUCT((שעות_עבודה7[[#This Row],[שם העבודה]]=$N$9:$O$28)*שעות_עבודה7[[#This Row],[שעות]]*($P$9:$Q$28*24)))) -> 
B179: =IF(שעות_עבודה7[[#This Row],[תאריך]]="","",ROW(A171)) ->  | I179: =IFERROR(IF(שעות_עבודה7[[#This Row],[סיום]]="","",שעות_עבודה7[[#This Row],[סיום]]-שעות_עבודה7[[#This Row],[התחלה]]+שעות_עבודה7[[#This Row],[הוספת שעות]]-שעות_עבודה7[[#This Row],[הפחתת שעות]]+(שעות_עבודה7[[#This Row],[סיום]]<שעות_עבודה7[[#This Row],[התחלה]])),"") ->  | J179: =IF(שעות_עבודה7[[#This Row],[שעות]]="","", IF(SUMPRODUCT((שעות_עבודה7[[#This Row],[שם העבודה]]=$N$9:$O$28)*שעות_עבודה7[[#This Row],[שעות]]*($P$9:$Q$28*24))=0,"", SUMPRODUCT((שעות_עבודה7[[#This Row],[שם העבודה]]=$N$9:$O$28)*שעות_עבודה7[[#This Row],[שעות]]*($P$9:$Q$28*24)))) -> 
B180: =IF(שעות_עבודה7[[#This Row],[תאריך]]="","",ROW(A172)) ->  | I180: =IFERROR(IF(שעות_עבודה7[[#This Row],[סיום]]="","",שעות_עבודה7[[#This Row],[סיום]]-שעות_עבודה7[[#This Row],[התחלה]]+שעות_עבודה7[[#This Row],[הוספת שעות]]-שעות_עבודה7[[#This Row],[הפחתת שעות]]+(שעות_עבודה7[[#This Row],[סיום]]<שעות_עבודה7[[#This Row],[התחלה]])),"") ->  | J180: =IF(שעות_עבודה7[[#This Row],[שעות]]="","", IF(SUMPRODUCT((שעות_עבודה7[[#This Row],[שם העבודה]]=$N$9:$O$28)*שעות_עבודה7[[#This Row],[שעות]]*($P$9:$Q$28*24))=0,"", SUMPRODUCT((שעות_עבודה7[[#This Row],[שם העבודה]]=$N$9:$O$28)*שעות_עבודה7[[#This Row],[שעות]]*($P$9:$Q$28*24)))) -> 
B181: =IF(שעות_עבודה7[[#This Row],[תאריך]]="","",ROW(A173)) ->  | I181: =IFERROR(IF(שעות_עבודה7[[#This Row],[סיום]]="","",שעות_עבודה7[[#This Row],[סיום]]-שעות_עבודה7[[#This Row],[התחלה]]+שעות_עבודה7[[#This Row],[הוספת שעות]]-שעות_עבודה7[[#This Row],[הפחתת שעות]]+(שעות_עבודה7[[#This Row],[סיום]]<שעות_עבודה7[[#This Row],[התחלה]])),"") ->  | J181: =IF(שעות_עבודה7[[#This Row],[שעות]]="","", IF(SUMPRODUCT((שעות_עבודה7[[#This Row],[שם העבודה]]=$N$9:$O$28)*שעות_עבודה7[[#This Row],[שעות]]*($P$9:$Q$28*24))=0,"", SUMPRODUCT((שעות_עבודה7[[#This Row],[שם העבודה]]=$N$9:$O$28)*שעות_עבודה7[[#This Row],[שעות]]*($P$9:$Q$28*24)))) -> 
B182: =IF(שעות_עבודה7[[#This Row],[תאריך]]="","",ROW(A174)) ->  | I182: =IFERROR(IF(שעות_עבודה7[[#This Row],[סיום]]="","",שעות_עבודה7[[#This Row],[סיום]]-שעות_עבודה7[[#This Row],[התחלה]]+שעות_עבודה7[[#This Row],[הוספת שעות]]-שעות_עבודה7[[#This Row],[הפחתת שעות]]+(שעות_עבודה7[[#This Row],[סיום]]<שעות_עבודה7[[#This Row],[התחלה]])),"") ->  | J182: =IF(שעות_עבודה7[[#This Row],[שעות]]="","", IF(SUMPRODUCT((שעות_עבודה7[[#This Row],[שם העבודה]]=$N$9:$O$28)*שעות_עבודה7[[#This Row],[שעות]]*($P$9:$Q$28*24))=0,"", SUMPRODUCT((שעות_עבודה7[[#This Row],[שם העבודה]]=$N$9:$O$28)*שעות_עבודה7[[#This Row],[שעות]]*($P$9:$Q$28*24)))) -> 
B183: =IF(שעות_עבודה7[[#This Row],[תאריך]]="","",ROW(A175)) ->  | I183: =IFERROR(IF(שעות_עבודה7[[#This Row],[סיום]]="","",שעות_עבודה7[[#This Row],[סיום]]-שעות_עבודה7[[#This Row],[התחלה]]+שעות_עבודה7[[#This Row],[הוספת שעות]]-שעות_עבודה7[[#This Row],[הפחתת שעות]]+(שעות_עבודה7[[#This Row],[סיום]]<שעות_עבודה7[[#This Row],[התחלה]])),"") ->  | J183: =IF(שעות_עבודה7[[#This Row],[שעות]]="","", IF(SUMPRODUCT((שעות_עבודה7[[#This Row],[שם העבודה]]=$N$9:$O$28)*שעות_עבודה7[[#This Row],[שעות]]*($P$9:$Q$28*24))=0,"", SUMPRODUCT((שעות_עבודה7[[#This Row],[שם העבודה]]=$N$9:$O$28)*שעות_עבודה7[[#This Row],[שעות]]*($P$9:$Q$28*24)))) -> 
B184: =IF(שעות_עבודה7[[#This Row],[תאריך]]="","",ROW(A176)) ->  | I184: =IFERROR(IF(שעות_עבודה7[[#This Row],[סיום]]="","",שעות_עבודה7[[#This Row],[סיום]]-שעות_עבודה7[[#This Row],[התחלה]]+שעות_עבודה7[[#This Row],[הוספת שעות]]-שעות_עבודה7[[#This Row],[הפחתת שעות]]+(שעות_עבודה7[[#This Row],[סיום]]<שעות_עבודה7[[#This Row],[התחלה]])),"") ->  | J184: =IF(שעות_עבודה7[[#This Row],[שעות]]="","", IF(SUMPRODUCT((שעות_עבודה7[[#This Row],[שם העבודה]]=$N$9:$O$28)*שעות_עבודה7[[#This Row],[שעות]]*($P$9:$Q$28*24))=0,"", SUMPRODUCT((שעות_עבודה7[[#This Row],[שם העבודה]]=$N$9:$O$28)*שעות_עבודה7[[#This Row],[שעות]]*($P$9:$Q$28*24)))) -> 
B185: =IF(שעות_עבודה7[[#This Row],[תאריך]]="","",ROW(A177)) ->  | I185: =IFERROR(IF(שעות_עבודה7[[#This Row],[סיום]]="","",שעות_עבודה7[[#This Row],[סיום]]-שעות_עבודה7[[#This Row],[התחלה]]+שעות_עבודה7[[#This Row],[הוספת שעות]]-שעות_עבודה7[[#This Row],[הפחתת שעות]]+(שעות_עבודה7[[#This Row],[סיום]]<שעות_עבודה7[[#This Row],[התחלה]])),"") ->  | J185: =IF(שעות_עבודה7[[#This Row],[שעות]]="","", IF(SUMPRODUCT((שעות_עבודה7[[#This Row],[שם העבודה]]=$N$9:$O$28)*שעות_עבודה7[[#This Row],[שעות]]*($P$9:$Q$28*24))=0,"", SUMPRODUCT((שעות_עבודה7[[#This Row],[שם העבודה]]=$N$9:$O$28)*שעות_עבודה7[[#This Row],[שעות]]*($P$9:$Q$28*24)))) -> 
B186: =IF(שעות_עבודה7[[#This Row],[תאריך]]="","",ROW(A178)) ->  | I186: =IFERROR(IF(שעות_עבודה7[[#This Row],[סיום]]="","",שעות_עבודה7[[#This Row],[סיום]]-שעות_עבודה7[[#This Row],[התחלה]]+שעות_עבודה7[[#This Row],[הוספת שעות]]-שעות_עבודה7[[#This Row],[הפחתת שעות]]+(שעות_עבודה7[[#This Row],[סיום]]<שעות_עבודה7[[#This Row],[התחלה]])),"") ->  | J186: =IF(שעות_עבודה7[[#This Row],[שעות]]="","", IF(SUMPRODUCT((שעות_עבודה7[[#This Row],[שם העבודה]]=$N$9:$O$28)*שעות_עבודה7[[#This Row],[שעות]]*($P$9:$Q$28*24))=0,"", SUMPRODUCT((שעות_עבודה7[[#This Row],[שם העבודה]]=$N$9:$O$28)*שעות_עבודה7[[#This Row],[שעות]]*($P$9:$Q$28*24)))) -> 
B187: =IF(שעות_עבודה7[[#This Row],[תאריך]]="","",ROW(A179)) ->  | I187: =IFERROR(IF(שעות_עבודה7[[#This Row],[סיום]]="","",שעות_עבודה7[[#This Row],[סיום]]-שעות_עבודה7[[#This Row],[התחלה]]+שעות_עבודה7[[#This Row],[הוספת שעות]]-שעות_עבודה7[[#This Row],[הפחתת שעות]]+(שעות_עבודה7[[#This Row],[סיום]]<שעות_עבודה7[[#This Row],[התחלה]])),"") ->  | J187: =IF(שעות_עבודה7[[#This Row],[שעות]]="","", IF(SUMPRODUCT((שעות_עבודה7[[#This Row],[שם העבודה]]=$N$9:$O$28)*שעות_עבודה7[[#This Row],[שעות]]*($P$9:$Q$28*24))=0,"", SUMPRODUCT((שעות_עבודה7[[#This Row],[שם העבודה]]=$N$9:$O$28)*שעות_עבודה7[[#This Row],[שעות]]*($P$9:$Q$28*24)))) -> 
B188: =IF(שעות_עבודה7[[#This Row],[תאריך]]="","",ROW(A180)) ->  | I188: =IFERROR(IF(שעות_עבודה7[[#This Row],[סיום]]="","",שעות_עבודה7[[#This Row],[סיום]]-שעות_עבודה7[[#This Row],[התחלה]]+שעות_עבודה7[[#This Row],[הוספת שעות]]-שעות_עבודה7[[#This Row],[הפחתת שעות]]+(שעות_עבודה7[[#This Row],[סיום]]<שעות_עבודה7[[#This Row],[התחלה]])),"") ->  | J188: =IF(שעות_עבודה7[[#This Row],[שעות]]="","", IF(SUMPRODUCT((שעות_עבודה7[[#This Row],[שם העבודה]]=$N$9:$O$28)*שעות_עבודה7[[#This Row],[שעות]]*($P$9:$Q$28*24))=0,"", SUMPRODUCT((שעות_עבודה7[[#This Row],[שם העבודה]]=$N$9:$O$28)*שעות_עבודה7[[#This Row],[שעות]]*($P$9:$Q$28*24)))) -> 
B189: =IF(שעות_עבודה7[[#This Row],[תאריך]]="","",ROW(A181)) ->  | I189: =IFERROR(IF(שעות_עבודה7[[#This Row],[סיום]]="","",שעות_עבודה7[[#This Row],[סיום]]-שעות_עבודה7[[#This Row],[התחלה]]+שעות_עבודה7[[#This Row],[הוספת שעות]]-שעות_עבודה7[[#This Row],[הפחתת שעות]]+(שעות_עבודה7[[#This Row],[סיום]]<שעות_עבודה7[[#This Row],[התחלה]])),"") ->  | J189: =IF(שעות_עבודה7[[#This Row],[שעות]]="","", IF(SUMPRODUCT((שעות_עבודה7[[#This Row],[שם העבודה]]=$N$9:$O$28)*שעות_עבודה7[[#This Row],[שעות]]*($P$9:$Q$28*24))=0,"", SUMPRODUCT((שעות_עבודה7[[#This Row],[שם העבודה]]=$N$9:$O$28)*שעות_עבודה7[[#This Row],[שעות]]*($P$9:$Q$28*24)))) -> 
B190: =IF(שעות_עבודה7[[#This Row],[תאריך]]="","",ROW(A182)) ->  | I190: =IFERROR(IF(שעות_עבודה7[[#This Row],[סיום]]="","",שעות_עבודה7[[#This Row],[סיום]]-שעות_עבודה7[[#This Row],[התחלה]]+שעות_עבודה7[[#This Row],[הוספת שעות]]-שעות_עבודה7[[#This Row],[הפחתת שעות]]+(שעות_עבודה7[[#This Row],[סיום]]<שעות_עבודה7[[#This Row],[התחלה]])),"") ->  | J190: =IF(שעות_עבודה7[[#This Row],[שעות]]="","", IF(SUMPRODUCT((שעות_עבודה7[[#This Row],[שם העבודה]]=$N$9:$O$28)*שעות_עבודה7[[#This Row],[שעות]]*($P$9:$Q$28*24))=0,"", SUMPRODUCT((שעות_עבודה7[[#This Row],[שם העבודה]]=$N$9:$O$28)*שעות_עבודה7[[#This Row],[שעות]]*($P$9:$Q$28*24)))) -> 
B191: =IF(שעות_עבודה7[[#This Row],[תאריך]]="","",ROW(A183)) ->  | I191: =IFERROR(IF(שעות_עבודה7[[#This Row],[סיום]]="","",שעות_עבודה7[[#This Row],[סיום]]-שעות_עבודה7[[#This Row],[התחלה]]+שעות_עבודה7[[#This Row],[הוספת שעות]]-שעות_עבודה7[[#This Row],[הפחתת שעות]]+(שעות_עבודה7[[#This Row],[סיום]]<שעות_עבודה7[[#This Row],[התחלה]])),"") ->  | J191: =IF(שעות_עבודה7[[#This Row],[שעות]]="","", IF(SUMPRODUCT((שעות_עבודה7[[#This Row],[שם העבודה]]=$N$9:$O$28)*שעות_עבודה7[[#This Row],[שעות]]*($P$9:$Q$28*24))=0,"", SUMPRODUCT((שעות_עבודה7[[#This Row],[שם העבודה]]=$N$9:$O$28)*שעות_עבודה7[[#This Row],[שעות]]*($P$9:$Q$28*24)))) -> 
B192: =IF(שעות_עבודה7[[#This Row],[תאריך]]="","",ROW(A184)) ->  | I192: =IFERROR(IF(שעות_עבודה7[[#This Row],[סיום]]="","",שעות_עבודה7[[#This Row],[סיום]]-שעות_עבודה7[[#This Row],[התחלה]]+שעות_עבודה7[[#This Row],[הוספת שעות]]-שעות_עבודה7[[#This Row],[הפחתת שעות]]+(שעות_עבודה7[[#This Row],[סיום]]<שעות_עבודה7[[#This Row],[התחלה]])),"") ->  | J192: =IF(שעות_עבודה7[[#This Row],[שעות]]="","", IF(SUMPRODUCT((שעות_עבודה7[[#This Row],[שם העבודה]]=$N$9:$O$28)*שעות_עבודה7[[#This Row],[שעות]]*($P$9:$Q$28*24))=0,"", SUMPRODUCT((שעות_עבודה7[[#This Row],[שם העבודה]]=$N$9:$O$28)*שעות_עבודה7[[#This Row],[שעות]]*($P$9:$Q$28*24)))) -> 
B193: =IF(שעות_עבודה7[[#This Row],[תאריך]]="","",ROW(A185)) ->  | I193: =IFERROR(IF(שעות_עבודה7[[#This Row],[סיום]]="","",שעות_עבודה7[[#This Row],[סיום]]-שעות_עבודה7[[#This Row],[התחלה]]+שעות_עבודה7[[#This Row],[הוספת שעות]]-שעות_עבודה7[[#This Row],[הפחתת שעות]]+(שעות_עבודה7[[#This Row],[סיום]]<שעות_עבודה7[[#This Row],[התחלה]])),"") ->  | J193: =IF(שעות_עבודה7[[#This Row],[שעות]]="","", IF(SUMPRODUCT((שעות_עבודה7[[#This Row],[שם העבודה]]=$N$9:$O$28)*שעות_עבודה7[[#This Row],[שעות]]*($P$9:$Q$28*24))=0,"", SUMPRODUCT((שעות_עבודה7[[#This Row],[שם העבודה]]=$N$9:$O$28)*שעות_עבודה7[[#This Row],[שעות]]*($P$9:$Q$28*24)))) -> 
B194: =IF(שעות_עבודה7[[#This Row],[תאריך]]="","",ROW(A186)) ->  | I194: =IFERROR(IF(שעות_עבודה7[[#This Row],[סיום]]="","",שעות_עבודה7[[#This Row],[סיום]]-שעות_עבודה7[[#This Row],[התחלה]]+שעות_עבודה7[[#This Row],[הוספת שעות]]-שעות_עבודה7[[#This Row],[הפחתת שעות]]+(שעות_עבודה7[[#This Row],[סיום]]<שעות_עבודה7[[#This Row],[התחלה]])),"") ->  | J194: =IF(שעות_עבודה7[[#This Row],[שעות]]="","", IF(SUMPRODUCT((שעות_עבודה7[[#This Row],[שם העבודה]]=$N$9:$O$28)*שעות_עבודה7[[#This Row],[שעות]]*($P$9:$Q$28*24))=0,"", SUMPRODUCT((שעות_עבודה7[[#This Row],[שם העבודה]]=$N$9:$O$28)*שעות_עבודה7[[#This Row],[שעות]]*($P$9:$Q$28*24)))) -> 
B195: =IF(שעות_עבודה7[[#This Row],[תאריך]]="","",ROW(A187)) ->  | I195: =IFERROR(IF(שעות_עבודה7[[#This Row],[סיום]]="","",שעות_עבודה7[[#This Row],[סיום]]-שעות_עבודה7[[#This Row],[התחלה]]+שעות_עבודה7[[#This Row],[הוספת שעות]]-שעות_עבודה7[[#This Row],[הפחתת שעות]]+(שעות_עבודה7[[#This Row],[סיום]]<שעות_עבודה7[[#This Row],[התחלה]])),"") ->  | J195: =IF(שעות_עבודה7[[#This Row],[שעות]]="","", IF(SUMPRODUCT((שעות_עבודה7[[#This Row],[שם העבודה]]=$N$9:$O$28)*שעות_עבודה7[[#This Row],[שעות]]*($P$9:$Q$28*24))=0,"", SUMPRODUCT((שעות_עבודה7[[#This Row],[שם העבודה]]=$N$9:$O$28)*שעות_עבודה7[[#This Row],[שעות]]*($P$9:$Q$28*24)))) -> 
B196: =IF(שעות_עבודה7[[#This Row],[תאריך]]="","",ROW(A188)) ->  | I196: =IFERROR(IF(שעות_עבודה7[[#This Row],[סיום]]="","",שעות_עבודה7[[#This Row],[סיום]]-שעות_עבודה7[[#This Row],[התחלה]]+שעות_עבודה7[[#This Row],[הוספת שעות]]-שעות_עבודה7[[#This Row],[הפחתת שעות]]+(שעות_עבודה7[[#This Row],[סיום]]<שעות_עבודה7[[#This Row],[התחלה]])),"") ->  | J196: =IF(שעות_עבודה7[[#This Row],[שעות]]="","", IF(SUMPRODUCT((שעות_עבודה7[[#This Row],[שם העבודה]]=$N$9:$O$28)*שעות_עבודה7[[#This Row],[שעות]]*($P$9:$Q$28*24))=0,"", SUMPRODUCT((שעות_עבודה7[[#This Row],[שם העבודה]]=$N$9:$O$28)*שעות_עבודה7[[#This Row],[שעות]]*($P$9:$Q$28*24)))) -> 
B197: =IF(שעות_עבודה7[[#This Row],[תאריך]]="","",ROW(A189)) ->  | I197: =IFERROR(IF(שעות_עבודה7[[#This Row],[סיום]]="","",שעות_עבודה7[[#This Row],[סיום]]-שעות_עבודה7[[#This Row],[התחלה]]+שעות_עבודה7[[#This Row],[הוספת שעות]]-שעות_עבודה7[[#This Row],[הפחתת שעות]]+(שעות_עבודה7[[#This Row],[סיום]]<שעות_עבודה7[[#This Row],[התחלה]])),"") ->  | J197: =IF(שעות_עבודה7[[#This Row],[שעות]]="","", IF(SUMPRODUCT((שעות_עבודה7[[#This Row],[שם העבודה]]=$N$9:$O$28)*שעות_עבודה7[[#This Row],[שעות]]*($P$9:$Q$28*24))=0,"", SUMPRODUCT((שעות_עבודה7[[#This Row],[שם העבודה]]=$N$9:$O$28)*שעות_עבודה7[[#This Row],[שעות]]*($P$9:$Q$28*24)))) -> 
B198: =IF(שעות_עבודה7[[#This Row],[תאריך]]="","",ROW(A190)) ->  | I198: =IFERROR(IF(שעות_עבודה7[[#This Row],[סיום]]="","",שעות_עבודה7[[#This Row],[סיום]]-שעות_עבודה7[[#This Row],[התחלה]]+שעות_עבודה7[[#This Row],[הוספת שעות]]-שעות_עבודה7[[#This Row],[הפחתת שעות]]+(שעות_עבודה7[[#This Row],[סיום]]<שעות_עבודה7[[#This Row],[התחלה]])),"") ->  | J198: =IF(שעות_עבודה7[[#This Row],[שעות]]="","", IF(SUMPRODUCT((שעות_עבודה7[[#This Row],[שם העבודה]]=$N$9:$O$28)*שעות_עבודה7[[#This Row],[שעות]]*($P$9:$Q$28*24))=0,"", SUMPRODUCT((שעות_עבודה7[[#This Row],[שם העבודה]]=$N$9:$O$28)*שעות_עבודה7[[#This Row],[שעות]]*($P$9:$Q$28*24)))) -> 
B199: =IF(שעות_עבודה7[[#This Row],[תאריך]]="","",ROW(A191)) ->  | I199: =IFERROR(IF(שעות_עבודה7[[#This Row],[סיום]]="","",שעות_עבודה7[[#This Row],[סיום]]-שעות_עבודה7[[#This Row],[התחלה]]+שעות_עבודה7[[#This Row],[הוספת שעות]]-שעות_עבודה7[[#This Row],[הפחתת שעות]]+(שעות_עבודה7[[#This Row],[סיום]]<שעות_עבודה7[[#This Row],[התחלה]])),"") ->  | J199: =IF(שעות_עבודה7[[#This Row],[שעות]]="","", IF(SUMPRODUCT((שעות_עבודה7[[#This Row],[שם העבודה]]=$N$9:$O$28)*שעות_עבודה7[[#This Row],[שעות]]*($P$9:$Q$28*24))=0,"", SUMPRODUCT((שעות_עבודה7[[#This Row],[שם העבודה]]=$N$9:$O$28)*שעות_עבודה7[[#This Row],[שעות]]*($P$9:$Q$28*24)))) -> 
B200: =IF(שעות_עבודה7[[#This Row],[תאריך]]="","",ROW(A192)) ->  | I200: =IFERROR(IF(שעות_עבודה7[[#This Row],[סיום]]="","",שעות_עבודה7[[#This Row],[סיום]]-שעות_עבודה7[[#This Row],[התחלה]]+שעות_עבודה7[[#This Row],[הוספת שעות]]-שעות_עבודה7[[#This Row],[הפחתת שעות]]+(שעות_עבודה7[[#This Row],[סיום]]<שעות_עבודה7[[#This Row],[התחלה]])),"") ->  | J200: =IF(שעות_עבודה7[[#This Row],[שעות]]="","", IF(SUMPRODUCT((שעות_עבודה7[[#This Row],[שם העבודה]]=$N$9:$O$28)*שעות_עבודה7[[#This Row],[שעות]]*($P$9:$Q$28*24))=0,"", SUMPRODUCT((שעות_עבודה7[[#This Row],[שם העבודה]]=$N$9:$O$28)*שעות_עבודה7[[#This Row],[שעות]]*($P$9:$Q$28*24)))) -> 
B201: =IF(שעות_עבודה7[[#This Row],[תאריך]]="","",ROW(A193)) ->  | I201: =IFERROR(IF(שעות_עבודה7[[#This Row],[סיום]]="","",שעות_עבודה7[[#This Row],[סיום]]-שעות_עבודה7[[#This Row],[התחלה]]+שעות_עבודה7[[#This Row],[הוספת שעות]]-שעות_עבודה7[[#This Row],[הפחתת שעות]]+(שעות_עבודה7[[#This Row],[סיום]]<שעות_עבודה7[[#This Row],[התחלה]])),"") ->  | J201: =IF(שעות_עבודה7[[#This Row],[שעות]]="","", IF(SUMPRODUCT((שעות_עבודה7[[#This Row],[שם העבודה]]=$N$9:$O$28)*שעות_עבודה7[[#This Row],[שעות]]*($P$9:$Q$28*24))=0,"", SUMPRODUCT((שעות_עבודה7[[#This Row],[שם העבודה]]=$N$9:$O$28)*שעות_עבודה7[[#This Row],[שעות]]*($P$9:$Q$28*24)))) -> 
B202: =IF(שעות_עבודה7[[#This Row],[תאריך]]="","",ROW(A194)) ->  | I202: =IFERROR(IF(שעות_עבודה7[[#This Row],[סיום]]="","",שעות_עבודה7[[#This Row],[סיום]]-שעות_עבודה7[[#This Row],[התחלה]]+שעות_עבודה7[[#This Row],[הוספת שעות]]-שעות_עבודה7[[#This Row],[הפחתת שעות]]+(שעות_עבודה7[[#This Row],[סיום]]<שעות_עבודה7[[#This Row],[התחלה]])),"") ->  | J202: =IF(שעות_עבודה7[[#This Row],[שעות]]="","", IF(SUMPRODUCT((שעות_עבודה7[[#This Row],[שם העבודה]]=$N$9:$O$28)*שעות_עבודה7[[#This Row],[שעות]]*($P$9:$Q$28*24))=0,"", SUMPRODUCT((שעות_עבודה7[[#This Row],[שם העבודה]]=$N$9:$O$28)*שעות_עבודה7[[#This Row],[שעות]]*($P$9:$Q$28*24)))) -> 
... 6 more rows

Sheet סיכום התשלומים
G2: סיכום התשלומים
B4: שמות העבודות | C4: שכר לשעה | D4: שעות העבודה | E4: לתשלום | F4: חיובים נוספים 1 | G4: חיובים נוספים 2 | H4: חיובים נוספים 3 | I4: זיכויים / שולם 1 | J4: זיכויים / שולם 2 | K4: זיכויים / שולם 3 | L4: זיכויים / שולם 4 | M4: יתרה
B5: =IF('טיימר עבודות'!N9="","",'טיימר עבודות'!N9) -> הבית לעורך | C5: =IF('טיימר עבודות'!P9="","",'טיימר עבודות'!P9) -> 30 | D5: =IF('טיימר עבודות'!R9="","",'טיימר עבודות'!R9) -> 0.2958564815 | E5: =IF('טיימר עבודות'!S9="","",'טיימר עבודות'!S9) -> 213.0166667 | M5: =IF(טבלה3[[#This Row],[עמודה4]]="","",SUM(טבלה3[[#This Row],[עמודה4]:[עמודה12]])-SUM(טבלה3[[#This Row],[עמודה6]:[עמודה11]])) -> 213.0166667
B6: =IF('טיימר עבודות'!N10="","",'טיימר עבודות'!N10) -> העורך התורני | C6: =IF('טיימר עבודות'!P10="","",'טיימר עבודות'!P10) -> 50 | D6: =IF('טיימר עבודות'!R10="","",'טיימר עבודות'!R10) -> 0.1699074074 | E6: =IF('טיימר עבודות'!S10="","",'טיימר עבודות'!S10) -> 203.8888889 | M6: =IF(טבלה3[[#This Row],[עמודה4]]="","",SUM(טבלה3[[#This Row],[עמודה4]:[עמודה12]])-SUM(טבלה3[[#This Row],[עמודה6]:[עמודה11]])) -> 203.8888889
B7: =IF('טיימר עבודות'!N11="","",'טיימר עבודות'!N11) -> חיים של תורה | C7: =IF('טיימר עבודות'!P11="","",'טיימר עבודות'!P11) -> 70 | D7: =IF('טיימר עבודות'!R11="","",'טיימר עבודות'!R11) -> 0.09376157407 | E7: =IF('טיימר עבודות'!S11="","",'טיימר עבודות'!S11) -> 157.5194444 | M7: =IF(טבלה3[[#This Row],[עמודה4]]="","",SUM(טבלה3[[#This Row],[עמודה4]:[עמודה12]])-SUM(טבלה3[[#This Row],[עמודה6]:[עמודה11]])) -> 157.5194444
B8: =IF('טיימר עבודות'!N12="","",'טיימר עבודות'!N12) -> המאיר לדרים | C8: =IF('טיימר עבודות'!P12="","",'טיימר עבודות'!P12) -> 60 | D8: =IF('טיימר עבודות'!R12="","",'טיימר עבודות'!R12) -> 0.2094675926 | E8: =IF('טיימר עבודות'!S12="","",'טיימר עבודות'!S12) -> 301.6333333 | M8: =IF(טבלה3[[#This Row],[עמודה4]]="","",SUM(טבלה3[[#This Row],[עמודה4]:[עמודה12]])-SUM(טבלה3[[#This Row],[עמודה6]:[עמודה11]])) -> 301.6333333
B9: =IF('טיימר עבודות'!N13="","",'טיימר עבודות'!N13) -> עריכת מהדו"ת | C9: =IF('טיימר עבודות'!P13="","",'טיימר עבודות'!P13) -> 110 | D9: =IF('טיימר עבודות'!R13="","",'טיימר עבודות'!R13) ->  | E9: =IF('טיימר עבודות'!S13="","",'טיימר עבודות'!S13) ->  | M9: =IF(טבלה3[[#This Row],[עמודה4]]="","",SUM(טבלה3[[#This Row],[עמודה4]:[עמודה12]])-SUM(טבלה3[[#This Row],[עמודה6]:[עמודה11]])) -> 
B10: =IF('טיימר עבודות'!N14="","",'טיימר עבודות'!N14) -> עיון במקורות | C10: =IF('טיימר עבודות'!P14="","",'טיימר עבודות'!P14) -> 70 | D10: =IF('טיימר עבודות'!R14="","",'טיימר עבודות'!R14) ->  | E10: =IF('טיימר עבודות'!S14="","",'טיימר עבודות'!S14) ->  | M10: =IF(טבלה3[[#This Row],[עמודה4]]="","",SUM(טבלה3[[#This Row],[עמודה4]:[עמודה12]])-SUM(טבלה3[[#This Row],[עמודה6]:[עמודה11]])) -> 
B11: =IF('טיימר עבודות'!N15="","",'טיימר עבודות'!N15) ->  | C11: =IF('טיימר עבודות'!P15="","",'טיימר עבודות'!P15) ->  | D11: =IF('טיימר עבודות'!R15="","",'טיימר עבודות'!R15) ->  | E11: =IF('טיימר עבודות'!S15="","",'טיימר עבודות'!S15) ->  | M11: =IF(טבלה3[[#This Row],[עמודה4]]="","",SUM(טבלה3[[#This Row],[עמודה4]:[עמודה12]])-SUM(טבלה3[[#This Row],[עמודה6]:[עמודה11]])) -> 
B12: =IF('טיימר עבודות'!N16="","",'טיימר עבודות'!N16) ->  | C12: =IF('טיימר עבודות'!P16="","",'טיימר עבודות'!P16) ->  | D12: =IF('טיימר עבודות'!R16="","",'טיימר עבודות'!R16) ->  | E12: =IF('טיימר עבודות'!S16="","",'טיימר עבודות'!S16) ->  | M12: =IF(טבלה3[[#This Row],[עמודה4]]="","",SUM(טבלה3[[#This Row],[עמודה4]:[עמודה12]])-SUM(טבלה3[[#This Row],[עמודה6]:[עמודה11]])) -> 
B13: =IF('טיימר עבודות'!N17="","",'טיימר עבודות'!N17) ->  | C13: =IF('טיימר עבודות'!P17="","",'טיימר עבודות'!P17) ->  | D13: =IF('טיימר עבודות'!R17="","",'טיימר עבודות'!R17) ->  | E13: =IF('טיימר עבודות'!S17="","",'טיימר עבודות'!S17) ->  | M13: =IF(טבלה3[[#This Row],[עמודה4]]="","",SUM(טבלה3[[#This Row],[עמודה4]:[עמודה12]])-SUM(טבלה3[[#This Row],[עמודה6]:[עמודה11]])) -> 
B14: =IF('טיימר עבודות'!N18="","",'טיימר עבודות'!N18) ->  | C14: =IF('טיימר עבודות'!P18="","",'טיימר עבודות'!P18) ->  | D14: =IF('טיימר עבודות'!R18="","",'טיימר עבודות'!R18) ->  | E14: =IF('טיימר עבודות'!S18="","",'טיימר עבודות'!S18) ->  | M14: =IF(טבלה3[[#This Row],[עמודה4]]="","",SUM(טבלה3[[#This Row],[עמודה4]:[עמודה12]])-SUM(טבלה3[[#This Row],[עמודה6]:[עמודה11]])) -> 
B15: =IF('טיימר עבודות'!N19="","",'טיימר עבודות'!N19) ->  | C15: =IF('טיימר עבודות'!P19="","",'טיימר עבודות'!P19) ->  | D15: =IF('טיימר עבודות'!R19="","",'טיימר עבודות'!R19) ->  | E15: =IF('טיימר עבודות'!S19="","",'טיימר עבודות'!S19) ->  | M15: =IF(טבלה3[[#This Row],[עמודה4]]="","",SUM(טבלה3[[#This Row],[עמודה4]:[עמודה12]])-SUM(טבלה3[[#This Row],[עמודה6]:[עמודה11]])) -> 
B16: =IF('טיימר עבודות'!N20="","",'טיימר עבודות'!N20) ->  | C16: =IF('טיימר עבודות'!P20="","",'טיימר עבודות'!P20) ->  | D16: =IF('טיימר עבודות'!R20="","",'טיימר עבודות'!R20) ->  | E16: =IF('טיימר עבודות'!S20="","",'טיימר עבודות'!S20) ->  | M16: =IF(טבלה3[[#This Row],[עמודה4]]="","",SUM(טבלה3[[#This Row],[עמודה4]:[עמודה12]])-SUM(טבלה3[[#This Row],[עמודה6]:[עמודה11]])) -> 
B17: =IF('טיימר עבודות'!N21="","",'טיימר עבודות'!N21) ->  | C17: =IF('טיימר עבודות'!P21="","",'טיימר עבודות'!P21) ->  | D17: =IF('טיימר עבודות'!R21="","",'טיימר עבודות'!R21) ->  | E17: =IF('טיימר עבודות'!S21="","",'טיימר עבודות'!S21) ->  | M17: =IF(טבלה3[[#This Row],[עמודה4]]="","",SUM(טבלה3[[#This Row],[עמודה4]:[עמודה12]])-SUM(טבלה3[[#This Row],[עמודה6]:[עמודה11]])) -> 
B18: =IF('טיימר עבודות'!N22="","",'טיימר עבודות'!N22) ->  | C18: =IF('טיימר עבודות'!P22="","",'טיימר עבודות'!P22) ->  | D18: =IF('טיימר עבודות'!R22="","",'טיימר עבודות'!R22) ->  | E18: =IF('טיימר עבודות'!S22="","",'טיימר עבודות'!S22) ->  | M18: =IF(טבלה3[[#This Row],[עמודה4]]="","",SUM(טבלה3[[#This Row],[עמודה4]:[עמודה12]])-SUM(טבלה3[[#This Row],[עמודה6]:[עמודה11]])) -> 
B19: =IF('טיימר עבודות'!N23="","",'טיימר עבודות'!N23) ->  | C19: =IF('טיימר עבודות'!P23="","",'טיימר עבודות'!P23) ->  | D19: =IF('טיימר עבודות'!R23="","",'טיימר עבודות'!R23) ->  | E19: =IF('טיימר עבודות'!S23="","",'טיימר עבודות'!S23) ->  | M19: =IF(טבלה3[[#This Row],[עמודה4]]="","",SUM(טבלה3[[#This Row],[עמודה4]:[עמודה12]])-SUM(טבלה3[[#This Row],[עמודה6]:[עמודה11]])) -> 
B20: =IF('טיימר עבודות'!N24="","",'טיימר עבודות'!N24) ->  | C20: =IF('טיימר עבודות'!P24="","",'טיימר עבודות'!P24) ->  | D20: =IF('טיימר עבודות'!R24="","",'טיימר עבודות'!R24) ->  | E20: =IF('טיימר עבודות'!S24="","",'טיימר עבודות'!S24) ->  | M20: =IF(טבלה3[[#This Row],[עמודה4]]="","",SUM(טבלה3[[#This Row],[עמודה4]:[עמודה12]])-SUM(טבלה3[[#This Row],[עמודה6]:[עמודה11]])) -> 
B21: =IF('טיימר עבודות'!N25="","",'טיימר עבודות'!N25) ->  | C21: =IF('טיימר עבודות'!P25="","",'טיימר עבודות'!P25) ->  | D21: =IF('טיימר עבודות'!R25="","",'טיימר עבודות'!R25) ->  | E21: =IF('טיימר עבודות'!S25="","",'טיימר עבודות'!S25) ->  | M21: =IF(טבלה3[[#This Row],[עמודה4]]="","",SUM(טבלה3[[#This Row],[עמודה4]:[עמודה12]])-SUM(טבלה3[[#This Row],[עמודה6]:[עמודה11]])) -> 
B22: =IF('טיימר עבודות'!N26="","",'טיימר עבודות'!N26) ->  | C22: =IF('טיימר עבודות'!P26="","",'טיימר עבודות'!P26) ->  | D22: =IF('טיימר עבודות'!R26="","",'טיימר עבודות'!R26) ->  | E22: =IF('טיימר עבודות'!S26="","",'טיימר עבודות'!S26) ->  | M22: =IF(טבלה3[[#This Row],[עמודה4]]="","",SUM(טבלה3[[#This Row],[עמודה4]:[עמודה12]])-SUM(טבלה3[[#This Row],[עמודה6]:[עמודה11]])) -> 
B23: =IF('טיימר עבודות'!N27="","",'טיימר עבודות'!N27) ->  | C23: =IF('טיימר עבודות'!P27="","",'טיימר עבודות'!P27) ->  | D23: =IF('טיימר עבודות'!R27="","",'טיימר עבודות'!R27) ->  | E23: =IF('טיימר עבודות'!S27="","",'טיימר עבודות'!S27) ->  | M23: =IF(טבלה3[[#This Row],[עמודה4]]="","",SUM(טבלה3[[#This Row],[עמודה4]:[עמודה12]])-SUM(טבלה3[[#This Row],[עמודה6]:[עמודה11]])) -> 
B24: =IF('טיימר עבודות'!N28="","",'טיימר עבודות'!N28) ->  | C24: =IF('טיימר עבודות'!P28="","",'טיימר עבודות'!P28) ->  | D24: =IF('טיימר עבודות'!R28="","",'טיימר עבודות'!R28) ->  | E24: =IF('טיימר עבודות'!S28="","",'טיימר עבודות'!S28) ->  | M24: =IF(טבלה3[[#This Row],[עמודה4]]="","",SUM(טבלה3[[#This Row],[עמודה4]:[עמודה12]])-SUM(טבלה3[[#This Row],[עמודה6]:[עמודה11]])) -> 

Sheet הדרכה
